{"text_format":"1","workbook":"xlsx","n_sheets":15,"sheets":["Accueil","Calcul des taux (formules)","Aide AFRFRQ","Carte - Admissibilité AFRFRQ","Martelage","→ Réductions zones-bandes ←","→ Coupes sans investissement ←","Traitements admissibles","Étapes calcul majorations","Versions du fichier","Calculs grille","Menus","Majorations applicables","RXF","Log"],"not_rendered":{"charts":0,"images":8,"macros":1,"external_links":2,"defined_names":174,"comments":3,"pivot_tables":0},"unopened":[],"bounds":{"document_bytes":16777216,"sheet_cells":100000,"rows_first":2000,"rows_last":500,"rows_between":2000,"halvings":0,"cell_chars":16384,"cell_head_chars":4096},"cells_cut":0,"cells_raw":0,"read":"row_number_cap","date_system":"1900"}

{"sheet":"Accueil","index":0,"n_rows":22,"n_cols":4,"rows_kept":22,"cut":false,"hidden":false,"merged":[[14,3,14,13],[21,3,21,13],[17,3,18,13]]}
[]
[]
[]
[]
[]
[]
[]
[]
[]
[]
[]
[]
[]
[]
[null,null,null,"Annexe au calcul de l'aide à l’aménagement des forêts résineuses de faibles\nrendement et qualité pour l’année financière\n2019-2020                    \nForêt publique"]
[]
[]
[null,null,null,"L'activation du contenu de ce fichier est requise afin d'assurer l'exécution des macro-commandes qui sont nécessaires\nà son bon fonctionnement."]
[]
[]
[]
[null,null,null,"https://support.office.com/fr-fr/article/activer-ou-d%C3%A9sactiver-les-macros-dans-les-fichiers-office-12b036fd-d140-4e74-b45e-16fed1a7e5c6"]

{"sheet":"Calcul des taux (formules)","index":1,"n_rows":1048523,"n_cols":22,"rows_kept":4500,"cut":true,"hidden":true,"merged":[[151,6,153,8],[155,0,156,5],[147,0,147,8],[5,6,5,8],[6,6,6,8],[7,6,7,8],[8,6,8,8],[38,0,38,8],[39,0,39,8],[35,6,35,8],[36,6,36,8],[37,6,37,8],[40,0,40,8],[43,0,43,8],[44,0,44,8],[46,0,46,8],[47,0,47,8],[49,6,49,8],[118,0,118,5],[91,0,91,5],[145,0,145,5],[90,0,90,8],[103,0,103,8],[126,0,126,5],[2,0,2,6],[2,7,2,8],[143,0,143,5],[86,0,86,8],[144,0,144,5],[130,0,130,5],[140,0,140,4],[131,0,131,5],[141,0,141,5],[121,0,121,4],[98,0,98,5],[99,0,99,5],[108,0,108,5],[114,0,114,5],[109,0,109,5],[110,0,110,5],[125,0,125,5],[122,0,122,5],[102,0,102,5],[132,0,132,5],[73,0,73,5],[55,4,55,5],[68,0,68,8],[9,0,9,5],[146,0,146,8],[0,0,0,8],[11,0,11,8],[13,0,13,8],[14,0,14,8],[15,0,15,8],[17,0,17,8],[21,0,21,8],[23,0,23,8],[25,0,25,8],[5,0,5,5],[3,0,3,5],[4,0,4,8],[16,0,16,8],[20,0,20,8],[22,0,22,8],[24,0,24,8],[105,0,105,5],[85,0,85,5],[87,0,87,5],[137,0,137,5],[95,0,95,5],[97,0,97,5],[92,0,92,5],[138,0,138,5],[139,0,139,5],[142,0,142,8],[133,0,133,5],[135,0,135,5],[136,0,136,5],[100,0,100,5],[120,0,120,5],[127,0,127,8],[129,0,129,5],[134,0,134,5],[128,0,128,5],[106,0,106,5],[124,0,124,5],[111,0,111,5],[115,0,115,5],[113,0,113,5],[104,0,104,5],[112,0,112,5],[107,0,107,8],[123,0,123,8],[117,0,117,5],[119,0,119,5],[116,0,116,5],[83,0,83,5],[75,0,75,5],[79,0,79,5],[80,0,80,5],[82,0,82,5],[84,0,84,4],[101,0,101,4],[88,0,88,5],[89,0,89,5],[94,0,94,5],[93,0,93,5],[96,0,96,5],[56,2,56,3],[74,0,74,5],[77,0,77,5],[76,0,76,5],[78,0,78,5],[81,0,81,5],[61,0,61,5],[59,0,59,1],[60,0,60,1],[59,2,59,3],[60,2,60,3],[72,0,72,8],[64,4,64,5],[35,0,35,5],[51,0,51,5],[49,0,49,5],[36,0,36,5],[34,0,34,4],[50,0,50,5],[45,0,45,2],[45,3,45,5],[41,0,41,8],[48,0,48,8],[42,6,42,8],[45,6,45,8],[37,0,37,5],[42,0,42,5],[50,6,50,8],[51,6,51,8],[33,0,33,8],[12,0,12,4],[6,0,6,5],[7,0,7,5],[8,0,8,5],[32,0,32,8],[28,0,28,8],[30,0,30,8],[27,0,27,8],[29,0,29,8],[31,0,31,8],[10,4,10,5],[10,0,10,3],[18,0,18,8],[19,0,19,8],[52,0,52,5],[69,0,69,8],[62,0,62,8],[71,0,71,8],[57,4,57,5],[59,4,59,5],[60,4,60,5],[67,0,67,5],[53,0,53,8],[58,4,58,5],[57,0,57,1],[58,0,58,1],[57,2,57,3],[58,2,58,3],[64,0,64,3],[70,0,70,5],[63,0,63,8],[54,0,54,8],[55,0,55,1],[56,4,56,5],[65,0,65,8],[66,0,66,8],[56,0,56,1],[55,2,55,3],[168,0,168,5],[168,6,168,8],[1048494,0,1048494,5],[1048491,0,1048491,1],[1048491,2,1048491,3],[1048491,4,1048491,5],[1048492,0,1048492,1],[1048492,2,1048492,3],[1048492,4,1048492,5],[1048493,0,1048493,1],[1048493,2,1048493,3],[1048493,4,1048493,5],[1048489,0,1048489,1],[1048489,2,1048489,3],[1048489,4,1048489,5],[1048490,0,1048490,1],[1048490,2,1048490,3],[1048490,4,1048490,5],[154,0,154,5],[154,6,154,8],[155,6,156,8],[157,6,157,8],[158,0,158,8],[161,0,161,8],[165,0,165,5],[165,6,165,8],[166,6,167,8],[1,0,1,8],[179,6,179,8],[179,0,179,5],[181,0,182,8],[177,6,178,8],[177,0,178,5],[173,0,175,5],[173,6,175,8],[162,0,164,5],[162,6,164,8],[166,0,167,5],[148,0,148,8],[149,0,149,8],[160,0,160,8],[159,0,159,8],[170,0,170,8],[171,0,171,8],[169,0,169,8],[172,0,172,8],[176,0,176,5],[176,6,176,8],[151,0,153,5],[150,0,150,8],[157,0,157,5]],"bounds":{"rows_first":2000,"rows_last":500,"rows_between":2000,"halvings":0},"read":"row_number_cap"}
[]
["Annexe au rapport et au calcul des taux d'investissement pour les coupes partielles\n2019-2020\nForêt publique"]
[" *** Veuillez saisir les informations dans les cellules blanches (Planification et BGAD) et jaunes (Ministère) ***",null,null,null,null,null,null,"Version 1 : 2019-10-09"]
["Contexte d'utilisation",null,null,null,null,null,null,null,"Inscrire une valeur"]
["Identification"]
["Unité d'aménagement (UA)"]
["Secteur d'intervention"]
["Unité de compilation"]
["Numéro de la prescription"]
["Traitement (Code DICA)",null,null,null,null,null,null,null,"Inscrire une valeur"]
["Traitement (Code RATF)",null,null,null,{"$f":"IFERROR(VLOOKUP($I$10,Menus!$A$213:$E$315,3,FALSE),Menus!$C$315)","v":"RATF_Utilisateur"}]
["Formule à utiliser pour le calcul"]
[{"$f":"IF($I$10<>\"\",\"Choix de la formule en fonction du code DICA  -  \"&$I$10,\"Choix de la formule en fonction du code DICA\")","v":"Choix de la formule en fonction du code DICA  -  Inscrire une valeur"},null,null,null,null,{"$f":"IFERROR(VLOOKUP($I$10,Menus!$A$366:$F$473,6,FALSE),Menus!$F$474)","v":"F_Utilisateur"},null,null,"Inscrire une valeur"]
["Constante et formule utilisées pour déterminer le taux d'investissement"]
["Constante 1"]
["C1 = - 0,0425P + (327,505 / P) + 4,8643"]
["Constante 2"]
["C2 = - 0,0530P + (327,505 / P) + 5,5333"]
["Constante 3"]
["C3 = - 0,0419P + (163,753 / P) + 5,7780"]
["Formule 1 - EC1"]
["Valeur = ( C1 + (4,944vr -0,682 - 7,615vp -0,391)) x P"]
["Formule 1 - EC2"]
["Valeur = ( C3 + (4,944vr -0,682 - 7,615vp -0,391)) x P"]
["Formule 2"]
["Valeur = ( C1 + (14,631vr -0,237 - 10,362vp -0,237) - 0,44) x P"]
["Formule 4"]
["Valeur = ( C2 + (11,18vr -0,526 - 6,603vp -0,563) - 0,44) x P"]
["Formule 6"]
["Valeur = ( C2 + (7,769vr -0,534 - 6,418vp -0,564) x P  "]
["Formule 7"]
["Valeur = ( C2 + (7,615vr -0,643 - 6,418vp -0,564) x P"]
["Intrants"]
["Intrants (Toutes)"]
["Sélection des tiges à récolter",null,null,null,null,{"$f":"IFERROR((VLOOKUP($I$13,Menus!$A$319:$C$325,2,FALSE)),\"\")","v":""}]
["Volume à prélever, m3/ha net (P)"]
["Volume moyen des tiges du peuplement avant la récolte, m3/tige brut (vp)"]
["Volume moyen des tiges à récolter, m3/tige brut (vr)"]
[{"$f":"\"Majorations et/ou réductions admissibles pour la formule retenue « \"&I13&\" »\"&\" - Voir l'onglet «Étapes calcul majoration»\"","v":"Majorations et/ou réductions admissibles pour la formule retenue « Inscrire une valeur » - Voir l'onglet «Étapes calcul majoration»"}]
[{"$f":"VLOOKUP('Calcul des taux (formules)'!$I$13,'Majorations applicables'!$A$2:$G$8,7,FALSE)","v":"Inscrire une valeur à la cellule I13"}]
["Réduction selon le ratio des trouées récoltées sous forme de CPRS (EMR1)"]
["Réduction EMR1 (F4-F6-F7)"]
["Ratio des trouées sous forme de CPRS (%)"]
["Réduction pour les bandes non traitées (BNT1) - Voir l'onglet «Réductions zones-bandes»"]
["Formule utilisée pour calculer la proportion que la coupe partielle représente par rapport au secteur (Pr)"]
[{"$f":"'Majorations applicables'!$A$25","v":" Pr (%)  = LP x 2 / (LP x 2 + SE + ZNT)"},null,null,"Selon les valeurs inscrites à G50-G51-G52",null,null,{"$f":"IFERROR(IF(EXACT($G$50,\"\"),\"\",IF(EXACT($G$50,0),0,IF($G$50>0,$G$50*2/($G$50*2+SUM($G$51:$G$52)),0))),0)","v":""}]
["Formule utilisée pour calculer la réduction (BNT1)"]
[{"$f":"'Majorations applicables'!$B$18","v":"BNT1 = (1,8 x Pr2) - (2,7 x Pr) + 1"}]
["Majoration BNT1 (F4-F6-F7)"]
["LP : Largeur de la coupe partielle, un côté seulement (m)"]
["SE : Largeur du sentier de débardage (m)"]
["ZNT : Largeur de la zone ou bande non traitée (m)"]
["Inscrire les renseignements dans la colonne associée au contexte d'utilisation",null,null,null,null,null,"Planification","BGAD","Ministère"]
["Majoration en fonction de la pente (PE2)"]
["Majoration en fonction de la pente (PE2) (Toutes)"]
["Classe de pente numérique",null,"Taux calculé ($/ha)",null,"Écart ($/ha)",null,"Superficie (ha)","Superficie (ha)","Superficie (ha)"]
["Pente A",null,{"$f":"IFERROR((VLOOKUP($I$13,$A$1048513:$W$1048523,8,FALSE)*VLOOKUP($A$57,'Majorations applicables'!$A$11:$B$15,2,FALSE)),0)","v":0},null,{"$f":"IFERROR(($C$57-(VLOOKUP($I$13,$A$1048513:$W$1048523,8,FALSE))),0)","v":0}]
["Pente B",null,{"$f":"IFERROR((VLOOKUP($I$13,$A$1048513:$W$1048523,8,FALSE)*VLOOKUP($A$58,'Majorations applicables'!$A$11:$B$15,2,FALSE)),0)","v":0},null,{"$f":"IFERROR(($C$58-(VLOOKUP($I$13,$A$1048513:$W$1048523,8,FALSE))),0)","v":0}]
["Pente C",null,{"$f":"IFERROR((VLOOKUP($I$13,$A$1048513:$W$1048523,8,FALSE)*VLOOKUP($A$59,'Majorations applicables'!$A$11:$B$15,2,FALSE)),0)","v":0},null,{"$f":"IFERROR(($C$59-(VLOOKUP($I$13,$A$1048513:$W$1048523,8,FALSE))),0)","v":0}]
["Pente D",null,{"$f":"IFERROR((VLOOKUP($I$13,$A$1048513:$W$1048523,8,FALSE)*VLOOKUP($A$60,'Majorations applicables'!$A$11:$B$15,2,FALSE)),0)","v":0},null,{"$f":"IFERROR(($C$60-(VLOOKUP($I$13,$A$1048513:$W$1048523,8,FALSE))),0)","v":0}]
["Pente E et plus",null,{"$f":"IFERROR((VLOOKUP($I$13,$A$1048513:$W$1048523,8,FALSE)*VLOOKUP($A$61,'Majorations applicables'!$A$11:$B$15,2,FALSE)),0)","v":0},null,{"$f":"IFERROR(($C$61-(VLOOKUP($I$13,$A$1048513:$W$1048523,8,FALSE))),0)","v":0}]
["Total",null,null,null,null,null,{"$f":"SUM($G$57:$G$61)","v":0},{"$f":"SUM($H$57:$H$61)","v":0},{"$f":"SUM($I$57:$I$61)","v":0}]
["Majorations pour les opérations manuelles (MAN)"]
["Majoration MAN (F1 - EC1)"]
["Type d'opérations ",null,null,null,{"$f":"IF(EXACT($I$13,\"\"),\"\",IF(EXACT($I$13,'Majorations applicables'!$A$2),Menus!$C$334,IF(EXACT($I$13,'Majorations applicables'!$A$3),Menus!$C$334,Menus!$C$336)))","v":"Majoration_MAN_DIFF_F1"}]
["Majoration pour le rubannage des sentiers (RUB1)"]
["Majoration RUB1 (F1-F2-F4-F7)"]
["Espacement entre les sentiers (m)"]
["Majoration pour l'hébergement (H1)"]
["Majoration H1 (F1-F2-F4-F6-F7)"]
[{"$f":"IFERROR(\"Hébergement (\"&TEXT(Menus!$B$329*100,\"#,#\")&\"%)\",\"Hébergement\")","v":"Hébergement (3,2%)"}]
["Totaux"]
["Totaux (F1 - EC1 et F1 - EC2)"]
["Taux de base exécution ($/m³)",null,null,null,null,null,{"$f":"IFERROR(IF(OR(EXACT($I$13,'Majorations applicables'!$A$2),EXACT($I$13,'Majorations applicables'!$A$3)),VLOOKUP($I$13,'Calcul des taux (formules)'!$A$1048514:$W$1048523,8,FALSE)/$G$36,0),0)","v":0},{"$f":"IFERROR(IF(OR(EXACT($I$4,Menus!$A$911),EXACT($I$4,Menus!$A$912)),IF(OR(EXACT($I$13,'Majorations applicables'!$A$2),EXACT($I$13,'Majorations applicables'!$A$3)),VLOOKUP($I$13,'Calcul des taux (formules)'!$A$1048514:$W$1048523,8,FALSE)/$G$36,0),0),0)","v":0},{"$f":"IFERROR(IF($I$4=Menus!$A$912,IF(OR(EXACT($I$13,'Majorations applicables'!A$2),EXACT($I$13,'Majorations applicables'!A$3)),VLOOKUP($I$13,'Calcul des taux (formules)'!$A$1048514:$W$1048523,8,FALSE)/$G$36,0),0),0)","v":0}]
["Majoration pour la pente PE2 ($/m³)",null,null,null,null,null,{"$f":"IFERROR(IF(OR(EXACT($I$13,'Majorations applicables'!$A$2),EXACT($I$13,'Majorations applicables'!$A$3)),VLOOKUP($I$13,$A$1048514:$W$1048523,11,FALSE)/$G$36,0),0)","v":0},{"$f":"IFERROR(IF(OR(EXACT($I$4,Menus!$A$911),EXACT($I$4,Menus!$A$912)),IF(OR(EXACT($I$13,'Majorations applicables'!$A$2),EXACT($I$13,'Majorations applicables'!$A$3)),VLOOKUP($I$13,$A$1048514:$W$1048523,12,FALSE)/$G$36,0),0),0)","v":0},{"$f":"IFERROR(IF(EXACT($I$4,Menus!$A$912),IF(OR(EXACT($I$13,'Majorations applicables'!$A$2),EXACT($I$13,'Majorations applicables'!$A$3)),VLOOKUP($I$13,$A$1048514:$W$1048523,13,FALSE)/$G$36,0),0),0)","v":0}]
["Majoration pour la pente PE2 ($/ha)",null,null,null,null,null,{"$f":"IFERROR(IF(OR(EXACT($I$13,'Majorations applicables'!$A$2),EXACT($I$13,'Majorations applicables'!$A$3)),VLOOKUP($I$13,$A$1048514:$W$1048523,11,FALSE),0),0)","v":0},{"$f":"IFERROR(IF(OR(EXACT($I$4,Menus!$A$911),EXACT($I$4,Menus!$A$912)),IF(OR(EXACT($I$13,'Majorations applicables'!$A$2),EXACT($I$13,'Majorations applicables'!$A$3)),VLOOKUP($I$13,$A$1048514:$W$1048523,12,FALSE),0),0),0)","v":0},{"$f":"IFERROR(IF(EXACT($I$4,Menus!$A$912),IF(OR(EXACT($I$13,'Majorations applicables'!$A$2),EXACT($I$13,'Majorations applicables'!$A$3)),VLOOKUP($I$13,$A$1048514:$W$1048523,13,FALSE),0),0),0)","v":0}]
["Taux MAN ($/m³)",null,null,null,null,null,{"$f":"IFERROR(VLOOKUP($I$13,'Calcul des taux (formules)'!$A$1048514:$W$1048523,14,FALSE)/$G$36,0)","v":0},{"$f":"IFERROR(IF(OR(EXACT($I$4,Menus!$A$911),EXACT($I$4,Menus!$A$912)),IF(OR(EXACT($I$13,'Majorations applicables'!$A$2),EXACT($I$13,'Majorations applicables'!$A$3)),VLOOKUP($I$13,$A$1048514:$W$1048523,15,FALSE)/$G$36,0),0),0)","v":0},{"$f":"IFERROR(IF(EXACT($I$4,Menus!$A$912),IF(OR(EXACT($I$13,'Majorations applicables'!$A$2),EXACT($I$13,'Majorations applicables'!$A$3)),VLOOKUP($I$13,$A$1048514:$W$1048523,16,FALSE)/$G$36,0),0),0)","v":0}]
["Taux RUB1 ($/m³)",null,null,null,null,null,{"$f":"IFERROR(IF(OR(EXACT($I$13,'Majorations applicables'!$A$2),EXACT($I$13,'Majorations applicables'!$A$3)),IF($G$68<>ROUND($G$68,0),\"Valider RUB1\",VLOOKUP($I$13,'Calcul des taux (formules)'!$A$1048514:$W$1048523,17,FALSE)/$G$36),0),0)","v":0},{"$f":"IFERROR(IF(OR(EXACT($I$4,Menus!$A$911),EXACT($I$4,Menus!$A$912)),IF(OR(EXACT($I$13,'Majorations applicables'!$A$2),EXACT($I$13,'Majorations applicables'!$A$3)),IF($H$68<>ROUND($H$68,0),\"Valider RUB1\",VLOOKUP($I$13,'Calcul des taux (formules)'!$A$1048514:$W$1048523,18,FALSE)/$G$36),0),0),0)","v":0},{"$f":"IFERROR(IF(EXACT($I$4,Menus!$A$912),IF(OR(EXACT($I$13,'Majorations applicables'!$A$2),EXACT($I$13,'Majorations applicables'!$A$3)),IF($I$68<>ROUND($I$68,0),\"Valider RUB1\",VLOOKUP($I$13,'Calcul des taux (formules)'!$A$1048514:$W$1048523,19,FALSE)/$G$36),0),0),0)","v":0}]
["Taux H1 ($/m³)",null,null,null,null,null,{"$f":"IFERROR(VLOOKUP($I$13,'Calcul des taux (formules)'!$A$1048514:$W$1048523,20,FALSE)/$G$36,0)","v":0},{"$f":"IFERROR(IF(OR(EXACT($I$4,Menus!$A$911),EXACT($I$4,Menus!$A$912)),VLOOKUP($I$13,'Calcul des taux (formules)'!$A$1048514:$W$1048523,21,FALSE)/$G$36,0),0)","v":0},{"$f":"IFERROR(IF(EXACT($I$4,Menus!$A$912),VLOOKUP($I$13,'Calcul des taux (formules)'!$A$1048514:$W$1048523,22,FALSE)/$G$36,0),0)","v":0}]
["Total des majorations à l'exécution ($/m³)",null,null,null,null,null,{"$f":"IFERROR(IF($G$78<>\"Valider RUB1\",SUM($G$77:$G$79,$G$75),0),0)","v":0},{"$f":"IFERROR(IF($H$78<>\"Valider RUB1\",SUM($H$77:$H$79,$H$75),0),0)","v":0},{"$f":"IFERROR(IF($I$78<>\"Valider RUB1\",SUM($I$77:$I$79,$I$75),0),0)","v":0}]
["Total des majorations à l'exécution ($/ha)",null,null,null,null,null,{"$f":"IFERROR($G$80*$G$36,0)","v":0},{"$f":"IFERROR($H$80*$G$36,0)","v":0},{"$f":"IFERROR($I$80*$G$36,0)","v":0}]
["Taux d'exécution ($/m³)",null,null,null,null,null,{"$f":"IFERROR(SUM(G$74,G$80),0)","v":0},{"$f":"IFERROR(SUM(H$74,H$80),0)","v":0},{"$f":"IFERROR(SUM(I$74,I$80),0)","v":0}]
["Taux d'exécution ($/m³)",null,null,null,null,null,{"$f":"IFERROR(G$82*G$36,0)","v":0},{"$f":"IFERROR(H$82*G$36,0)","v":0},{"$f":"IFERROR($I$82*$G$36,0)","v":0}]
["Tous les critères sont atteints1 (Oui ou Non)",null,null,null,null,null,"S/O"]
[{"$f":"IFERROR(\"Plancher d'investissement de \"&'Majorations applicables'!$B$45&\"$/ha (Oui, Non ou Sans Objet)\",\"Plancher d'investissement (Oui, Non ou Sans Objet)\")","v":"Plancher d'investissement de 40$/ha (Oui, Non ou Sans Objet)"},null,null,null,null,{"$f":"IFERROR((IF(AND($I$88<='Majorations applicables'!$B$45,$I$84<>\"\"),\"Question_2_Sous_plancher\",IF($I$88>='Majorations applicables'!$B$45,\"Question_2_Plancher_et_plus\",\"Question_2\"))),\"Question_2\")","v":"Question_2"},"S/O","S/O"]
["Pourcentage d'investissement",null,null,null,null,null,{"$f":"IFERROR('Majorations applicables'!$A$33,0.9)","v":0.9},{"$f":"IFERROR('Majorations applicables'!$A$33,0.9)","v":0.9},{"$f":"IFERROR('Majorations applicables'!$A$33,0.9)","v":0.9}]
["Résumé de l'investissement"]
["Taux global à payer ($/ha) - taux à inscrire à l'état d'avancement et au RATF",null,null,null,null,null,{"$f":"IFERROR(IF($G$62<>0,IF(ROUND(($G$83*$G$86),2)<'Majorations applicables'!$B$45,'Majorations applicables'!$B$45,ROUND(($G$83*$G$86),2)),0),0)","v":0},{"$f":"IFERROR(IF($H$62<>0,IF($H$84<>\"\",IF(OR(EXACT($I$4,Menus!$A$911),EXACT($I$4,Menus!$A$912)),IF($H$62<>0,IF(ROUND(($H$83*$H$86),2)<'Majorations applicables'!$B$45,'Majorations applicables'!$B$45,ROUND(($H$83*$H$86),2)),0),0),0),0),0)","v":0},{"$f":"IFERROR(IF($I$62<>0,IF(EXACT($I$4,Menus!$A$912),IF($I$62<>0,IF(AND(ROUND(($I$83*(IF($I$84<>\"\",$I$84,0))*$I$86),2)<'Majorations applicables'!$B$45,$I$85=\"Oui\"),'Majorations applicables'!$B$45,IF(ROUND(($I$83*(IF($I$84<>\"\",$I$84,0))*$I$86),2)<0,0,ROUND(($I$83*(IF($I$84<>\"\",$I$84,0))*$I$86),2))),0),0),0),0)","v":0}]
["Superficie (ha)",null,null,null,null,null,{"$f":"IFERROR(IF(OR(EXACT($I$13,'Majorations applicables'!$A$2),EXACT($I$13,'Majorations applicables'!$A$3)),ROUND($G$62,2),0),0)","v":0},{"$f":"IFERROR(IF(OR(EXACT($I$4,Menus!$A$911),EXACT($I$4,Menus!$A$912)),IF(OR(EXACT($I$13,'Majorations applicables'!$A$2),EXACT($I$13,'Majorations applicables'!$A$3)),ROUND($H$62,2),0),0),0)","v":0},{"$f":"IFERROR(IF(EXACT($I$4,Menus!$A$912),IF(OR(EXACT($I$13,'Majorations applicables'!$A$2),EXACT($I$13,'Majorations applicables'!$A$3)),ROUND($I$62,2),0),0),0)","v":0}]
["Montant total à payer ($)",null,null,null,null,null,{"$f":"IFERROR(ROUND($G$88*$G$89,2),0)","v":0},{"$f":"IFERROR(ROUND($H$88*$H$89,2),0)","v":0},{"$f":"IFERROR(ROUND($I$88*$I$89,2),0)","v":0}]
["Totaux (F2)"]
["Taux de base exécution  ($/m³)",null,null,null,null,null,{"$f":"IFERROR(IF(EXACT($I$13,'Majorations applicables'!$A$4),VLOOKUP($I$13,'Calcul des taux (formules)'!$A$1048514:$W$1048523,8,FALSE)/$G$36,0),0)","v":0},{"$f":"IFERROR(IF(OR(EXACT($I$4,Menus!$A$911),EXACT($I$4,Menus!$A$912)),IF(EXACT($I$13,'Majorations applicables'!$A$4),VLOOKUP($I$13,'Calcul des taux (formules)'!$A$1048514:$W$1048523,8,FALSE)/$G$36,0),0),0)","v":0},{"$f":"IFERROR(IF(EXACT($I$4,Menus!$A$912),IF(EXACT($I$13,'Majorations applicables'!A$4),VLOOKUP($I$13,'Calcul des taux (formules)'!$A$1048514:$W$1048523,8,FALSE)/$G$36,0),0),0)","v":0}]
["Majoration pour la pente PE2 ($/m³)",null,null,null,null,null,{"$f":"IFERROR(IF(EXACT($I$13,'Majorations applicables'!$A$4),VLOOKUP($I$13,$A$1048514:$W$1048523,11,FALSE)/$G$36,0),0)","v":0},{"$f":"IFERROR(IF(OR(EXACT($I$4,Menus!$A$911),EXACT($I$4,Menus!$A$912)),IF(EXACT($I$13,'Majorations applicables'!$A$4),VLOOKUP($I$13,$A$1048514:$W$1048523,12,FALSE)/$G$36,0),0),0)","v":0},{"$f":"IFERROR(IF(EXACT($I$4,Menus!$A$912),IF(EXACT($I$13,'Majorations applicables'!$A$4),VLOOKUP($I$13,$A$1048514:$W$1048523,13,FALSE)/$G$36,0),0),0)","v":0}]
["Majoration pour la pente PE2 ($/ha)",null,null,null,null,null,{"$f":"IFERROR(IF(EXACT($I$13,'Majorations applicables'!$A$4),VLOOKUP($I$13,$A$1048514:$W$1048523,11,FALSE),0),0)","v":0},{"$f":"IFERROR(IF(OR(EXACT($I$4,Menus!$A$911),EXACT($I$4,Menus!$A$912)),IF(EXACT($I$13,'Majorations applicables'!$A$4),VLOOKUP($I$13,$A$1048514:$W$1048523,12,FALSE),0),0),0)","v":0},{"$f":"IFERROR(IF(EXACT($I$4,Menus!$A$912),IF(EXACT($I$13,'Majorations applicables'!$A$4),VLOOKUP($I$13,$A$1048514:$W$1048523,13,FALSE),0),0),0)","v":0}]
["Taux RUB1 ($/m³)",null,null,null,null,null,{"$f":"IFERROR(IF(EXACT($I$13,'Majorations applicables'!$A$4),IF($G$68<>ROUND($G$68,0),\"Valider RUB1\",VLOOKUP($I$13,'Calcul des taux (formules)'!$A$1048514:$W$1048523,17,FALSE)/$G$36),0),0)","v":0},{"$f":"IFERROR(IF(OR(EXACT($I$4,Menus!$A$911),EXACT($I$4,Menus!$A$912)),IF(EXACT($I$13,'Majorations applicables'!$A$4),IF($H$68<>ROUND($H$68,0),\"Valider RUB1\",VLOOKUP($I$13,'Calcul des taux (formules)'!$A$1048514:$W$1048523,18,FALSE)/$G$36),0),0),0)","v":0},{"$f":"IFERROR(IF(EXACT($I$4,Menus!$A$912),IF(EXACT($I$13,'Majorations applicables'!$A$4),IF($I$68<>ROUND($I$68,0),\"Valider RUB1\",VLOOKUP($I$13,'Calcul des taux (formules)'!$A$1048514:$W$1048523,19,FALSE)/$G$36),0),0),0)","v":0}]
["Taux H1 ($/m³)",null,null,null,null,null,{"$f":"IFERROR(VLOOKUP($I$13,'Calcul des taux (formules)'!$A$1048514:$W$1048523,20,FALSE)/$G$36,0)","v":0},{"$f":"IFERROR(IF(OR(EXACT($I$4,Menus!$A$911),EXACT($I$4,Menus!$A$912)),VLOOKUP($I$13,'Calcul des taux (formules)'!$A$1048514:$W$1048523,21,FALSE)/$G$36,0),0)","v":0},{"$f":"IFERROR(IF(EXACT($I$4,Menus!$A$912),VLOOKUP($I$13,'Calcul des taux (formules)'!$A$1048514:$W$1048523,22,FALSE)/$G$36,0),0)","v":0}]
["Total des majorations à l'exécution ($/m³)",null,null,null,null,null,{"$f":"IFERROR(IF($G$95<>\"Valider RUB1\",SUM($G$95:$G$96,$G$93),0),0)","v":0},{"$f":"IFERROR(IF($H$95<>\"Valider RUB1\",SUM($H$95:$H$96,$H$93),0),0)","v":0},{"$f":"IFERROR(IF($I$95<>\"Valider RUB1\",SUM($I$95:$I$96,$I$93),0),0)","v":0}]
["Total des majorations à l'exécution ($/ha)",null,null,null,null,null,{"$f":"IFERROR($G$97*$G$36,0)","v":0},{"$f":"IFERROR($H$97*$G$36,0)","v":0},{"$f":"IFERROR($I$97*$G$36,0)","v":0}]
["Taux d'exécution ($/m³)",null,null,null,null,null,{"$f":"IFERROR(SUM($G$92,$G$97),0)","v":0},{"$f":"IFERROR(SUM($H$92,$H$97),0)","v":0},{"$f":"IFERROR(SUM($I$92,$I$97),0)","v":0}]
["Taux d'exécution ($/ha)",null,null,null,null,null,{"$f":"IFERROR($G$99*$G$36,0)","v":0},{"$f":"IFERROR($H$99*$G$36,0)","v":0},{"$f":"IFERROR($I$99*$G$36,0)","v":0}]
["Tous les critères sont atteints1 (Oui ou Non)",null,null,null,null,null,"S/O"]
[{"$f":"IFERROR(\"Plancher d'investissement de \"&'Majorations applicables'!$B$45&\"$/ha (Oui, Non ou Sans Objet)\",\"Plancher d'investissement (Oui, Non ou Sans Objet)\")","v":"Plancher d'investissement de 40$/ha (Oui, Non ou Sans Objet)"},null,null,null,null,{"$f":"IFERROR((IF(AND($I$105<='Majorations applicables'!$B$45,$I$101<>\"\"),\"Question_2_Sous_plancher\",IF($I$105>='Majorations applicables'!$B$45,\"Question_2_Plancher_et_plus\",\"Question_2\"))),\"Question_2\")","v":"Question_2"},"S/O","S/O"]
["Pourcentage d'investissement",null,null,null,null,null,{"$f":"IFERROR('Majorations applicables'!$A$33,0.9)","v":0.9},{"$f":"IFERROR('Majorations applicables'!$A$33,0.9)","v":0.9},{"$f":"IFERROR('Majorations applicables'!$A$33,0.9)","v":0.9}]
["Résumé de l'investissement"]
["Taux global à payer ($/ha) - taux à inscrire à l'état d'avancement et au RATF",null,null,null,null,null,{"$f":"IFERROR(IF($G$62<>0,IF(ROUND(($G$100*$G$103),2)<'Majorations applicables'!$B$45,'Majorations applicables'!$B$45,ROUND(($G$100*$G$103),2)),0),0)","v":0},{"$f":"IFERROR(IF($H$62<>0,IF($H$101<>\"\",IF(OR(EXACT($I$4,Menus!$A$911),EXACT($I$4,Menus!$A$912)),IF($H$62<>0,IF(ROUND(($H$100*$H$103),2)<'Majorations applicables'!$B$45,'Majorations applicables'!$B$45,ROUND(($H$100*$H$103),2)),0),0),0),0),0)","v":0},{"$f":"IFERROR(IF($I$62<>0,IF(EXACT($I$4,Menus!$A$912),IF($I$62<>0,IF(AND(ROUND(($I$100*(IF($I$101<>\"\",$I$101,0))*$I$103),2)<'Majorations applicables'!$B$45,$I$102=\"Oui\"),'Majorations applicables'!$B$45,IF(ROUND(($I$100*(IF($I$101<>\"\",$I$101,0))*$I$103),2)<0,0,ROUND(($I$100*(IF($I$101<>\"\",$I$101,0))*$I$103),2))),0),0),0),0)","v":0}]
["Superficie (ha)",null,null,null,null,null,{"$f":"IFERROR(IF(EXACT($I13,'Majorations applicables'!$A$4),ROUND($G$62,2),0),0)","v":0},{"$f":"IFERROR(IF(OR(EXACT($I$4,Menus!$A$911),EXACT($I$4,Menus!$A$912)),IF(EXACT($I$13,'Majorations applicables'!$A$4),ROUND($H$62,2),0),0),0)","v":0},{"$f":"IFERROR(IF(EXACT($I$4,Menus!$A$912),IF(EXACT($I$13,'Majorations applicables'!$A$4),ROUND($I$62,2),0),0),0)","v":0}]
["Montant total à payer ($)",null,null,null,null,null,{"$f":"IFERROR(ROUND($G$105*$G$106,2),0)","v":0},{"$f":"IFERROR(ROUND($H$105*$H$106,2),0)","v":0},{"$f":"IFERROR(ROUND($I$105*$I$106,2),0)","v":0}]
["Totaux (F4-F7)"]
["Taux de base exécution  ($/m³)",null,null,null,null,null,{"$f":"IFERROR(IF(OR(EXACT($I$13,'Majorations applicables'!$A$5),EXACT($I$13,'Majorations applicables'!$A$7)),VLOOKUP($I$13,'Calcul des taux (formules)'!$A$1048514:$W$1048523,8,FALSE)/$G$36,0),0)","v":0},{"$f":"IFERROR((IF(OR(EXACT($I$4,Menus!$A$911),EXACT($I$4,Menus!$A$912)),IF(OR(EXACT($I$13,'Majorations applicables'!$A$5),EXACT($I$13,'Majorations applicables'!$A$7)),VLOOKUP($I$13,'Calcul des taux (formules)'!$A$1048514:$W$1048523,8,FALSE)/$G$36,0),0)),0)","v":0},{"$f":"IFERROR(IF(EXACT($I$4,Menus!$A$912),IF(OR(EXACT($I$13,'Majorations applicables'!$A$5),EXACT($I$13,'Majorations applicables'!$A$7)),VLOOKUP($I$13,'Calcul des taux (formules)'!$A$1048514:$W$1048523,8,FALSE)/$G$36,0),0),0)","v":0}]
["Taux EMR1 ($/m³)",null,null,null,null,null,{"$f":"IFERROR(VLOOKUP($I$13,'Calcul des taux (formules)'!$A$1048514:$W$1048523,9,FALSE)/$G$36,0)","v":0},{"$f":"IFERROR(IF(OR(EXACT($I$4,Menus!$A$911),EXACT($I$4,Menus!$A$912)),VLOOKUP($I$13,'Calcul des taux (formules)'!$A$1048514:$W$1048523,9,FALSE)/$G$36,0),0)","v":0},{"$f":"IFERROR(IF(EXACT($I$4,Menus!$A$912),VLOOKUP($I$13,'Calcul des taux (formules)'!$A$1048514:$W$1048523,9,FALSE)/$G$36,0),0)","v":0}]
["Taux BNT1 (%)",null,null,null,null,null,{"$f":"IFERROR(IF(OR(EXACT($G$52,0),EXACT($G$52,\"\")),0,IF($G$50>0,-(('Majorations applicables'!$B$19*POWER($G$46,'Majorations applicables'!$B$20))-('Majorations applicables'!$B$21*$G$46)+1),IF(AND(OR(EXACT($G$50,0),(EXACT($G$50,\"\"))),OR($G$51>0,$G$52>0)),\"Valider BNT1\",0))),0)","v":0},{"$f":"IFERROR((IF(OR(EXACT($I$4,Menus!$A$911),EXACT($I$4,Menus!$A$912)),IF(OR(EXACT($G$52,0),EXACT($G$52,\"\")),0,IF($G$50>0,-(('Majorations applicables'!$B$19*POWER($G$46,'Majorations applicables'!$B$20))-('Majorations applicables'!$B$21*$G$46)+1),IF(AND(OR(EXACT($G$50,0),(EXACT($G$50,\"\"))),OR($G$51>0,$G$52>0)),\"Valider BNT1\",0))),0)),0)","v":0},{"$f":"IFERROR((IF(EXACT($I$4,Menus!$A$912),IF(OR(EXACT($G$52,0),EXACT($G$52,\"\")),0,IF($G$50>0,-(('Majorations applicables'!$B$19*POWER($G$46,'Majorations applicables'!$B$20))-('Majorations applicables'!$B$21*$G$46)+1),IF(AND(OR(EXACT($G$50,0),(EXACT($G$50,\"\"))),OR($G$51>0,$G$52>0)),\"Valider BNT1\",0))),0)),0)","v":0}]
["Taux BNT1 ($/m³)",null,null,null,null,null,{"$f":"IFERROR(VLOOKUP($I$13,'Calcul des taux (formules)'!$A$1048514:$W$1048523,10,FALSE)/$G$36,0)","v":0},{"$f":"IFERROR(IF(OR(EXACT($I$4,Menus!$A$911),EXACT($I$4,Menus!$A$912)),VLOOKUP($I$13,'Calcul des taux (formules)'!$A$1048514:$W$1048523,10,FALSE)/$G$36,0),0)","v":0},{"$f":"IFERROR(IF(EXACT($I$4,Menus!$A$912),VLOOKUP($I$13,'Calcul des taux (formules)'!$A$1048514:$W$1048523,10,FALSE)/$G$36,0),0)","v":0}]
["Majoration pour la pente PE2 ($/m³)",null,null,null,null,null,{"$f":"IFERROR(IF(OR(EXACT($I$13,'Majorations applicables'!$A$5),EXACT($I$13,'Majorations applicables'!$A$7)),VLOOKUP($I$13,'Calcul des taux (formules)'!$A$1048514:$W$1048523,11,FALSE)/$G$36,0),0)","v":0},{"$f":"IFERROR(IF(OR(EXACT($I$4,Menus!$A$911),EXACT($I$4,Menus!$A$912)),IF(OR(EXACT($I$13,'Majorations applicables'!$A$5),EXACT($I$13,'Majorations applicables'!$A$7)),VLOOKUP($I$13,'Calcul des taux (formules)'!$A$1048514:$W$1048523,12,FALSE)/$G$36,0),0),0)","v":0},{"$f":"IFERROR(IF(EXACT($I$4,Menus!$A$912),IF(OR(EXACT($I$13,'Majorations applicables'!$A$5),EXACT($I$13,'Majorations applicables'!$A$7)),VLOOKUP($I$13,'Calcul des taux (formules)'!$A$1048514:$W$1048523,13,FALSE)/$G$36,0),0),0)","v":0}]
["Majoration pour la pente PE2 ($/ha)",null,null,null,null,null,{"$f":"IFERROR(IF(OR(EXACT($I$13,'Majorations applicables'!$A$5),EXACT($I$13,'Majorations applicables'!$A$7)),VLOOKUP($I$13,'Calcul des taux (formules)'!$A$1048514:$W$1048523,11,FALSE),0),0)","v":0},{"$f":"IFERROR(IF(OR(EXACT($I$4,Menus!$A$911),EXACT($I$4,Menus!$A$912)),IF(OR(EXACT($I$13,'Majorations applicables'!$A$5),EXACT($I$13,'Majorations applicables'!$A$7)),VLOOKUP($I$13,'Calcul des taux (formules)'!$A$1048514:$W$1048523,12,FALSE),0),0),0)","v":0},{"$f":"IFERROR(IF(EXACT($I$4,Menus!$A$912),IF(OR(EXACT($I$13,'Majorations applicables'!$A$5),EXACT($I$13,'Majorations applicables'!$A$7)),VLOOKUP($I$13,'Calcul des taux (formules)'!$A$1048514:$W$1048523,13,FALSE),0),0),0)","v":0}]
["Taux RUB1 ($/m³)",null,null,null,null,null,{"$f":"IFERROR(IF(OR(EXACT($I$13,'Majorations applicables'!$A$5),EXACT($I$13,'Majorations applicables'!$A$7)),IF($G$68<>ROUND($G$68,0),\"Valider RUB1\",VLOOKUP($I$13,'Calcul des taux (formules)'!$A$1048514:$W$1048523,17,FALSE)/$G$36),0),0)","v":0},{"$f":"IFERROR(IF(OR(EXACT($I$4,Menus!$A$911),EXACT($I$4,Menus!$A$912)),IF(OR(EXACT($I$13,'Majorations applicables'!$A$5),EXACT($I$13,'Majorations applicables'!$A$7)),IF($H$68<>ROUND($H$68,0),\"Valider RUB1\",VLOOKUP($I$13,'Calcul des taux (formules)'!$A$1048514:$W$1048523,18,FALSE)/$G$36),0),0),0)","v":0},{"$f":"IFERROR(IF(EXACT($I$4,Menus!$A$912),IF(OR(EXACT($I$13,'Majorations applicables'!$A$5),EXACT($I$13,'Majorations applicables'!$A$7)),IF($I$68<>ROUND($I$68,0),\"Valider RUB1\",VLOOKUP($I$13,'Calcul des taux (formules)'!$A$1048514:$W$1048523,19,FALSE)/$G$36),0),0),0)","v":0}]
["Taux H1 ($/m³)",null,null,null,null,null,{"$f":"IFERROR(IF(OR(EXACT($I$13,'Majorations applicables'!$A$5),EXACT($I$13,'Majorations applicables'!$A$7)),VLOOKUP($I$13,'Calcul des taux (formules)'!$A$1048514:$W$1048523,20,FALSE)/$G$36,0),0)","v":0},{"$f":"IFERROR(IF(OR(EXACT($I$4,Menus!$A$911),EXACT($I$4,Menus!$A$912)),IF(OR(EXACT($I$13,'Majorations applicables'!$A$5),EXACT($I$13,'Majorations applicables'!$A$7)),VLOOKUP($I$13,'Calcul des taux (formules)'!$A$1048514:$W$1048523,21,FALSE)/$G$36,0),0),0)","v":0},{"$f":"IFERROR(IF(EXACT($I$4,Menus!$A$912),IF(OR(EXACT($I$13,'Majorations applicables'!$A$5),EXACT($I$13,'Majorations applicables'!$A$7)),VLOOKUP($I$13,'Calcul des taux (formules)'!$A$1048514:$W$1048523,22,FALSE)/$G$36,0),0),0)","v":0}]
["Total des majorations et réductions à l'exécution ($/m³)",null,null,null,null,null,{"$f":"IFERROR(IF(AND($G$111<>\"Valider BNT1\",$G$115<>\"Valider RUB1\"),SUM($G$110,$G$112,$G$115:$G$116,$G$113),0),0)","v":0},{"$f":"IFERROR(IF(AND($H$111<>\"Valider BNT1\",$H$115<>\"Valider RUB1\"),SUM($H$110,$H$112,$H$115:$H$116,$H$113),0),0)","v":0},{"$f":"IFERROR(IF(AND($I$111<>\"Valider BNT1\",$I$115<>\"Valider RUB1\"),SUM($I$110,$I$112,$I$115:$I$116,$I$113),0),0)","v":0}]
["Total des majorations et réductions à l'exécution ($/ha)",null,null,null,null,null,{"$f":"IFERROR($G$117*$G$36,0)","v":0},{"$f":"IFERROR($H$117*$G$36,0)","v":0},{"$f":"IFERROR($I$117*$G$36,0)","v":0}]
["Taux d'exécution ($/m³)",null,null,null,null,null,{"$f":"IFERROR(IF($G$46=0,0,SUM($G$109,$G$117)),0)","v":0},{"$f":"IFERROR(IF($G$46=0,0,SUM($H$109,$H$117)),0)","v":0},{"$f":"IFERROR(IF($G$46=0,0,SUM($I$109,$I$117)),0)","v":0}]
["Taux d'exécution ($/ha)",null,null,null,null,null,{"$f":"IFERROR(IF($G$46=0,0,$G$119*$G$36),0)","v":0},{"$f":"IFERROR(IF($G$46=0,0,$H$119*$G$36),0)","v":0},{"$f":"IFERROR(IF($G$46=0,0,$I$119*$G$36),0)","v":0}]
["Tous les critères sont atteints1 (Oui ou Non)",null,null,null,null,null,"S/O"]
[{"$f":"IFERROR(\"Plancher d'investissement de \"&'Majorations applicables'!$B$45&\"$/ha (Oui, Non ou Sans Objet)\",\"Plancher d'investissement (Oui, Non ou Sans Objet)\")","v":"Plancher d'investissement de 40$/ha (Oui, Non ou Sans Objet)"},null,null,null,null,{"$f":"IFERROR((IF(AND($I$125<='Majorations applicables'!$B$45,$I$121<>\"\"),\"Question_2_Sous_plancher\",IF($I$125>='Majorations applicables'!$B$45,\"Question_2_Plancher_et_plus\",\"Question_2\"))),\"Question_2\")","v":"Question_2"},"S/O","S/O"]
["Pourcentage d'investissement",null,null,null,null,null,{"$f":"IFERROR('Majorations applicables'!$A$33,0.9)","v":0.9},{"$f":"IFERROR('Majorations applicables'!$A$33,0.9)","v":0.9},{"$f":"IFERROR('Majorations applicables'!$A$33,0.9)","v":0.9}]
["Résumé de l'investissement"]
["Taux global à payer ($/ha) - taux à inscrire à l'état d'avancement et au RATF",null,null,null,null,null,{"$f":"IFERROR((IF($G$62<>0,IF(ROUND(($G$120*$G$123),2)<'Majorations applicables'!$B$45,'Majorations applicables'!$B$45,ROUND(($G$120*$G$123),2)),0)),0)","v":0},{"$f":"IFERROR((IF($H$62<>0,IF($H$121<>\"\",IF(OR(EXACT($I$4,Menus!$A$911),EXACT($I$4,Menus!$A$912)),IF($H$62<>0,IF(ROUND(($H$120*$H$123),2)<'Majorations applicables'!$B$45,'Majorations applicables'!$B$45,ROUND(($H$120*$H$123),2)),0),0),0),0)),0)","v":0},{"$f":"IFERROR(IF($I$62<>0,IF(EXACT($I$4,Menus!$A$912),IF($I$62<>0,IF(AND(ROUND(($I$120*(IF($I$121<>\"\",$I$121,0))*$I$123),2)<'Majorations applicables'!$B$45,$I$122=\"Oui\"),'Majorations applicables'!$B$45,IF(ROUND(($I$120*(IF($I$121<>\"\",$I$121,0))*$I$123),2)<0,0,ROUND(($I$120*(IF($I$121<>\"\",$I$121,0))*$I$123),2))),0),0),0),0)","v":0}]
["Superficie (ha)",null,null,null,null,null,{"$f":"IFERROR(IF(OR(EXACT(I$13,'Majorations applicables'!$A$5),EXACT(I$13,'Majorations applicables'!$A$7)),ROUND($G$62,2),0),0)","v":0},{"$f":"IFERROR(IF(OR(EXACT($I$4,Menus!$A$911),EXACT($I$4,Menus!$A$912)),IF(OR(EXACT($I13,'Majorations applicables'!$A$5),EXACT($I13,'Majorations applicables'!$A$7)),ROUND($H$62,2),0),0),0)","v":0},{"$f":"IFERROR(IF(EXACT($I$4,Menus!$A$912),IF(OR(EXACT($I13,'Majorations applicables'!$A$5),EXACT($I13,'Majorations applicables'!$A$7)),ROUND($I$62,2),0),0),0)","v":0}]
["Montant total à payer ($)",null,null,null,null,null,{"$f":"IFERROR(ROUND(($G$125*$G$126),2),0)","v":0},{"$f":"IFERROR(ROUND($H$125*$H$126,2),0)","v":0},{"$f":"IFERROR(ROUND(($I$125*$I$126),2),0)","v":0}]
["Totaux (F6)"]
["Taux de base exécution  ($/m³)",null,null,null,null,null,{"$f":"IFERROR(IF(EXACT($I$13,'Majorations applicables'!$A$6),VLOOKUP($I$13,'Calcul des taux (formules)'!$A$1048514:$W$1048523,8,FALSE)/$G$36,0),0)","v":0},{"$f":"IFERROR(IF(OR(EXACT($I$4,Menus!$A$911),EXACT($I$4,Menus!$A$912)),IF(EXACT($I$13,'Majorations applicables'!$A$6),VLOOKUP($I$13,'Calcul des taux (formules)'!$A$1048514:$W$1048523,8,FALSE)/$G$36,0),0),0)","v":0},{"$f":"IFERROR(IF(EXACT($I$4,Menus!$A$912),IF(EXACT($I$13,'Majorations applicables'!A$6),VLOOKUP($I$13,'Calcul des taux (formules)'!$A$1048514:$W$1048523,8,FALSE)/$G$36,0),0),0)","v":0}]
["Taux EMR1 ($/m³)",null,null,null,null,null,{"$f":"IFERROR(VLOOKUP($I$13,'Calcul des taux (formules)'!$A$1048514:$W$1048523,9,FALSE)/$G$36,0)","v":0},{"$f":"IFERROR(IF(OR(EXACT($I$4,Menus!$A$911),EXACT($I$4,Menus!$A$912)),VLOOKUP($I$13,'Calcul des taux (formules)'!$A$1048514:$W$1048523,9,FALSE)/$G$36,0),0)","v":0},{"$f":"IFERROR(IF(EXACT($I$4,Menus!$A$912),VLOOKUP($I$13,'Calcul des taux (formules)'!$A$1048514:$W$1048523,9,FALSE)/$G$36,0),0)","v":0}]
["Taux BNT1 (%)",null,null,null,null,null,{"$f":"IFERROR(IF(OR(EXACT($G$52,0),EXACT($G$52,\"\")),0,IF($G$50>0,-(('Majorations applicables'!$B$19*POWER($G$46,'Majorations applicables'!$B$20))-('Majorations applicables'!$B$21*$G$46)+1),IF(AND(OR(EXACT($G$50,0),(EXACT($G$50,\"\"))),OR($G$51>0,$G$52>0)),\"Valider BNT1\",0))),0)","v":0},{"$f":"IFERROR((IF(OR(EXACT($I$4,Menus!$A$911),EXACT($I$4,Menus!$A$912)),IF(OR(EXACT($G$52,0),EXACT($G$52,\"\")),0,IF($G$50>0,-(('Majorations applicables'!$B$19*POWER($G$46,'Majorations applicables'!$B$20))-('Majorations applicables'!$B$21*$G$46)+1),IF(AND(OR(EXACT($G$50,0),(EXACT($G$50,\"\"))),OR($G$51>0,$G$52>0)),\"Valider BNT1\",0))),0)),0)","v":0},{"$f":"IFERROR((IF(EXACT($I$4,Menus!$A$912),IF(OR(EXACT($G$52,0),EXACT($G$52,\"\")),0,IF($G$50>0,-(('Majorations applicables'!$B$19*POWER($G$46,'Majorations applicables'!$B$20))-('Majorations applicables'!$B$21*$G$46)+1),IF(AND(OR(EXACT($G$50,0),(EXACT($G$50,\"\"))),OR($G$51>0,$G$52>0)),\"Valider BNT1\",0))),0)),0)","v":0}]
["Taux BNT1 ($/m³)",null,null,null,null,null,{"$f":"IFERROR(VLOOKUP($I$13,'Calcul des taux (formules)'!$A$1048514:$W$1048523,10,FALSE)/$G$36,0)","v":0},{"$f":"IFERROR(IF(OR(EXACT($I$4,Menus!$A$911),EXACT($I$4,Menus!$A$912)),VLOOKUP($I$13,'Calcul des taux (formules)'!$A$1048514:$W$1048523,10,FALSE)/$G$36,0),0)","v":0},{"$f":"IFERROR(IF(EXACT($I$4,Menus!$A$912),VLOOKUP($I$13,'Calcul des taux (formules)'!$A$1048514:$W$1048523,10,FALSE)/$G$36,0),0)","v":0}]
["Majoration pour la pente PE2 ($/m³)",null,null,null,null,null,{"$f":"IFERROR(IF(EXACT($I$13,'Majorations applicables'!$A$6),VLOOKUP($I$13,$A$1048514:$W$1048523,11,FALSE)/$G$36,0),0)","v":0},{"$f":"IFERROR(IF(OR(EXACT($I$4,Menus!$A$911),EXACT($I$4,Menus!$A$912)),IF(EXACT($I$13,'Majorations applicables'!$A$6),VLOOKUP($I$13,$A$1048514:$W$1048523,12,FALSE)/$G$36,0),0),0)","v":0},{"$f":"IFERROR(IF(EXACT($I$4,Menus!$A$912),IF(EXACT($I$13,'Majorations applicables'!$A$6),VLOOKUP($I$13,$A$1048514:$W$1048523,13,FALSE)/$G$36,0),0),0)","v":0}]
["Majoration pour la pente PE2 ($/ha)",null,null,null,null,null,{"$f":"IFERROR(IF(EXACT($I$13,'Majorations applicables'!$A$6),VLOOKUP($I$13,$A$1048514:$W$1048523,11,FALSE),0),0)","v":0},{"$f":"IFERROR(IF(OR(EXACT($I$4,Menus!$A$911),EXACT($I$4,Menus!$A$912)),IF(EXACT($I$13,'Majorations applicables'!$A$6),VLOOKUP($I$13,$A$1048514:$W$1048523,12,FALSE),0),0),0)","v":0},{"$f":"IFERROR(IF($I$4=Menus!$A$912,IF($I$13='Majorations applicables'!$A$6,VLOOKUP($I$13,$A$1048514:$W$1048523,13,FALSE),0),0),0)","v":0}]
["Taux H1 ($/m³)",null,null,null,null,null,{"$f":"IFERROR(VLOOKUP($I$13,'Calcul des taux (formules)'!$A$1048514:$W$1048523,20,FALSE)/$G$36,0)","v":0},{"$f":"IFERROR(IF(OR($I$4=Menus!$A$911,$I$4=Menus!$A$912),VLOOKUP($I$13,'Calcul des taux (formules)'!$A$1048514:$W$1048523,21,FALSE)/$G$36,0),0)","v":0},{"$f":"IFERROR(IF(EXACT($I$4,Menus!$A$912),VLOOKUP($I$13,'Calcul des taux (formules)'!$A$1048514:$W$1048523,22,FALSE)/$G$36,0),0)","v":0}]
["Total des majorations et réductions à l'exécution ($/m³)",null,null,null,null,null,{"$f":"IFERROR(IF($G$131<>\"Valider BNT1\",SUM($G$130,$G$132:$G$133,$G$135),0),0)","v":0},{"$f":"IFERROR(IF($H$131<>\"Valider BNT1\",SUM($H$130,$H$132,H133,$H$135),0),0)","v":0},{"$f":"IFERROR(IF($I$131<>\"Valider BNT1\",SUM($I$130,$I$132,I133,$I$135),0),0)","v":0}]
["Total des majorations et réductions à l'exécution ($/ha)",null,null,null,null,null,{"$f":"IFERROR($G$136*$G$36,0)","v":0},{"$f":"IFERROR($H$136*$G$36,0)","v":0},{"$f":"IFERROR($I$136*$G$36,0)","v":0}]
["Taux d'exécution ($/m³)",null,null,null,null,null,{"$f":"IFERROR(IF(EXACT($G$46,0),0,SUM($G$129,$G$136)),0)","v":0},{"$f":"IFERROR(IF(EXACT($G$46,0),0,SUM($H$129,$H$136)),0)","v":0},{"$f":"IFERROR(IF(EXACT($G$46,0),0,SUM($I$129,$I$136)),0)","v":0}]
["Taux d'exécution ($/ha)",null,null,null,null,null,{"$f":"IFERROR(IF(EXACT($G$46,0),0,$G$138*$G$36),0)","v":0},{"$f":"IFERROR(IF(EXACT($G$46,0),0,$H$138*$G$36),0)","v":0},{"$f":"IFERROR(IF(EXACT($G$46,0),0,$I$138*$G$36),0)","v":0}]
["Tous les critères sont atteints1 (Oui ou Non)",null,null,null,null,null,"S/O"]
[{"$f":"IFERROR(\"Plancher d'investissement de \"&'Majorations applicables'!$B$45&\"$/ha (Oui, Non ou Sans Objet)\",\"Plancher d'investissement (Oui, Non ou Sans Objet)\")","v":"Plancher d'investissement de 40$/ha (Oui, Non ou Sans Objet)"},null,null,null,null,{"$f":"IFERROR((IF(AND($I$144<='Majorations applicables'!$B$45,$I$140<>\"\"),\"Question_2_Sous_plancher\",IF($I$144>='Majorations applicables'!$B$45,\"Question_2_Plancher_et_plus\",\"Question_2\"))),\"Question_2\")","v":"Question_2"},"S/O","S/O"]
["Pourcentage d'investissement",null,null,null,null,null,{"$f":"IFERROR('Majorations applicables'!$A$33,0.9)","v":0.9},{"$f":"IFERROR('Majorations applicables'!$A$33,0.9)","v":0.9},{"$f":"IFERROR('Majorations applicables'!$A$33,0.9)","v":0.9}]
["Résumé de l'investissement"]
["Taux global à payer ($/ha) - taux à inscrire à l'état d'avancement et au RATF",null,null,null,null,null,{"$f":"IFERROR(IF($G$62<>0,IF(ROUND(($G$139*$G$142),2)<'Majorations applicables'!$B$45,'Majorations applicables'!$B$45,ROUND(($G$139*$G$142),2)),0),0)","v":0},{"$f":"IFERROR(IF($H$62<>0,IF($H$140<>\"\",IF(OR(EXACT($I$4,Menus!$A$911),EXACT($I$4,Menus!$A$912)),IF($H$62<>0,IF(ROUND(($H$139*$H$142),2)<'Majorations applicables'!$B$45,'Majorations applicables'!$B$45,ROUND(($H$139*$H$142),2)),0),0),0),0),0)","v":0},{"$f":"IFERROR(IF($I$62<>0,IF(EXACT($I$4,Menus!$A$912),IF($I$62<>0,IF(AND(ROUND(($I$139*(IF($I$140<>\"\",$I$140,0))*$I$142),2)<'Majorations applicables'!$B$45,$I$141=\"Oui\"),'Majorations applicables'!$B$45,IF(ROUND(($I$139*(IF($I$140<>\"\",$I$140,0))*$I$142),2)<0,0,ROUND(($I$139*(IF($I$140<>\"\",$I$140,0))*$I$142),2))),0),0),0),0)","v":0}]
["Superficie (ha)",null,null,null,null,null,{"$f":"IFERROR(IF(EXACT($I$13,'Majorations applicables'!$A$6),ROUND($G$62,2),0),0)","v":0},{"$f":"IFERROR(IF(OR(EXACT($I$4,Menus!$A$911),EXACT($I$4,Menus!$A$912)),IF(EXACT($I$13,'Majorations applicables'!$A$6),ROUND($H$62,2),0),0),0)","v":0},{"$f":"IFERROR(IF(EXACT($I$4,Menus!$A$912),IF(EXACT($I$13,'Majorations applicables'!$A$6),ROUND($I$62,2),0),0),0)","v":0}]
["Montant total à payer ($)",null,null,null,null,null,{"$f":"IFERROR(ROUND($G$144*$G$145,2),0)","v":0},{"$f":"IFERROR(ROUND($H$144*$H$145,2),0)","v":0},{"$f":"IFERROR(ROUND($I$144*$I$145,2),0)","v":0}]
[]
["Section réservée à l'usage de la Planification"]
["Remarques"]
[]
["J'atteste que les renseignements fournis dans ce document afin de calculer les taux d'investissement sont complets et conformes à la vérité, au meilleur de mes connaissances."]
[]
[]
[]
["Nom et prénom de l'ingénieur forestier",null,null,null,null,null,"No de permis"]
[null,null,null,null,null,null,{"$f":"TODAY()","v":"2019-10-10"}]
[]
["Signature de l'ingénieur forestier",null,null,null,null,null,"Date (AAAA-MM-JJ)"]
["Section réservée à l'usage du BGAD"]
["Remarques"]
[]
["J'atteste que les renseignements fournis dans ce document afin de calculer les taux d'investissement sont complets et conformes à la vérité, au meilleur de mes connaissances."]
[]
[]
[]
["Nom et prénom de l'ingénieur forestier",null,null,null,null,null,"No de permis"]
[null,null,null,null,null,null,{"$f":"TODAY()","v":"2019-10-10"}]
[]
["Signature de l'ingénieur forestier",null,null,null,null,null,"Date (AAAA-MM-JJ)"]
["Section réservée à l'usage du Ministère"]
["Remarques"]
[]
["J'atteste que les renseignements fournis dans ce document afin de calculer les taux d'investissement sont complets et conformes à la vérité, au meilleur de mes connaissances."]
[]
[]
[]
["Nom et prénom de l'ingénieur forestier",null,null,null,null,null,"No de permis"]
[null,null,null,null,null,null,{"$f":"TODAY()","v":"2019-10-10"}]
[]
["Signature de l'ingénieur forestier",null,null,null,null,null,"Date (AAAA-MM-JJ)"]
[]
["(1) Si un ou plusieurs des critères établis à la prescription ne sont pas atteints, veuillez inscrire \"Non\". À la suite du dépôt de votre rapport, le responsable du dossier à l'Unité de gestion communiquera avec vous dans les meilleurs délais pour vous indiquer, le cas échéant, le montant de l'aide qui pourrait vous être accordé pour l'exécution des travaux. "]
[]
[]
[]
[]
[]
[]
[]
[]
[]
[]
[]
[]
[]
[]
[]
[]
[]
[]
[]
[]
[]
[]
[]
[]
[]
[]
[]
[]
[]
[]
[]
[]
[]
[]
[]
[]
[]
[]
[]
[]
[]
[]
[]
[]
[]
[]
[]
[]
[]
[]
[]
[]
[]
[]
[]
[]
[]
[]
[]
[]
[]
[]
[]
[]
[]
[]
[]
[]
[]
[]
[]
[]
[]
[]
[]
[]
[]
[]
[]
[]
[]
[]
[]
[]
[]
[]
[]
[]
[]
[]
[]
[]
[]
[]
[]
[]
[]
[]
[]
[]
[]
[]
[]
[]
[]
[]
[]
[]
[]
[]
[]
[]
[]
[]
[]
[]
[]
[]
[]
[]
[]
[]
[]
[]
[]
[]
[]
[]
[]
[]
[]
[]
[]
[]
[]
[]
[]
[]
[]
[]
[]
[]
[]
[]
[]
[]
[]
[]
[]
[]
[]
[]
[]
[]
[]
[]
[]
[]
[]
[]
[]
[]
[]
[]
[]
[]
[]
[]
[]
[]
[]
[]
[]
[]
[]
[]
[]
[]
[]
[]
[]
[]
[]
[]
[]
[]
[]
[]
[]
[]
[]
[]
[]
[]
[]
[]
[]
[]
[]
[]
[]
[]
[]
[]
[]
[]
[]
[]
[]
[]
[]
[]
[]
[]
[]
[]
[]
[]
[]
[]
[]
[]
[]
[]
[]
[]
[]
[]
[]
[]
[]
[]
[]
[]
[]
[]
[]
[]
[]
[]
[]
[]
[]
[]
[]
[]
[]
[]
[]
[]
[]
[]
[]
[]
[]
[]
[]
[]
[]
[]
[]
[]
[]
[]
[]
[]
[]
[]
[]
[]
[]
[]
[]
[]
[]
[]
[]
[]
[]
[]
[]
[]
[]
[]
[]
[]
[]
[]
[]
[]
[]
[]
[]
[]
[]
[]
[]
[]
[]
[]
[]
[]
[]
[]
[]
[]
[]
[]
[]
[]
[]
[]
[]
[]
[]
[]
[]
[]
[]
[]
[]
[]
[]
[]
[]
[]
[]
[]
[]
[]
[]
[]
[]
[]
[]
[]
[]
[]
[]
[]
[]
[]
[]
[]
[]
[]
[]
[]
[]
[]
[]
[]
[]
[]
[]
[]
[]
[]
[]
[]
[]
[]
[]
[]
[]
[]
[]
[]
[]
[]
[]
[]
[]
[]
[]
[]
[]
[]
[]
[]
[]
[]
[]
[]
[]
[]
[]
[]
[]
[]
[]
[]
[]
[]
[]
[]
[]
[]
[]
[]
[]
[]
[]
[]
[]
[]
[]
[]
[]
[]
[]
[]
[]
[]
[]
[]
[]
[]
[]
[]
[]
[]
[]
[]
[]
[]
[]
[]
[]
[]
[]
[]
[]
[]
[]
[]
[]
[]
[]
[]
[]
[]
[]
[]
[]
[]
[]
[]
[]
[]
[]
[]
[]
[]
[]
[]
[]
[]
[]
[]
[]
[]
[]
[]
[]
[]
[]
[]
[]
[]
[]
[]
[]
[]
[]
[]
[]
[]
[]
[]
[]
[]
[]
[]
[]
[]
[]
[]
[]
[]
[]
[]
[]
[]
[]
[]
[]
[]
[]
[]
[]
[]
[]
[]
[]
[]
[]
[]
[]
[]
[]
[]
[]
[]
[]
[]
[]
[]
[]
[]
[]
[]
[]
[]
[]
[]
[]
[]
[]
[]
[]
[]
[]
[]
[]
[]
[]
[]
[]
[]
[]
[]
[]
[]
[]
[]
[]
[]
[]
[]
[]
[]
[]
[]
[]
[]
[]
[]
[]
[]
[]
[]
[]
[]
[]
[]
[]
[]
[]
[]
[]
[]
[]
[]
[]
[]
[]
[]
[]
[]
[]
[]
[]
[]
[]
[]
[]
[]
[]
[]
[]
[]
[]
[]
[]
[]
[]
[]
[]
[]
[]
[]
[]
[]
[]
[]
[]
[]
[]
[]
[]
[]
[]
[]
[]
[]
[]
[]
[]
[]
[]
[]
[]
[]
[]
[]
[]
[]
[]
[]
[]
[]
[]
[]
[]
[]
[]
[]
[]
[]
[]
[]
[]
[]
[]
[]
[]
[]
[]
[]
[]
[]
[]
[]
[]
[]
[]
[]
[]
[]
[]
[]
[]
[]
[]
[]
[]
[]
[]
[]
[]
[]
[]
[]
[]
[]
[]
[]
[]
[]
[]
[]
[]
[]
[]
[]
[]
[]
[]
[]
[]
[]
[]
[]
[]
[]
[]
[]
[]
[]
[]
[]
[]
[]
[]
[]
[]
[]
[]
[]
[]
[]
[]
[]
[]
[]
[]
[]
[]
[]
[]
[]
[]
[]
[]
[]
[]
[]
[]
[]
[]
[]
[]
[]
[]
[]
[]
[]
[]
[]
[]
[]
[]
[]
[]
[]
[]
[]
[]
[]
[]
[]
[]
[]
[]
[]
[]
[]
[]
[]
[]
[]
[]
[]
[]
[]
[]
[]
[]
[]
[]
[]
[]
[]
[]
[]
[]
[]
[]
[]
[]
[]
[]
[]
[]
[]
[]
[]
[]
[]
[]
[]
[]
[]
[]
[]
[]
[]
[]
[]
[]
[]
[]
[]
[]
[]
[]
[]
[]
[]
[]
[]
[]
[]
[]
[]
[]
[]
[]
[]
[]
[]
[]
[]
[]
[]
[]
[]
[]
[]
[]
[]
[]
[]
[]
[]
[]
[]
[]
[]
[]
[]
[]
[]
[]
[]
[]
[]
[]
[]
[]
[]
[]
[]
[]
[]
[]
[]
[]
[]
[]
[]
[]
[]
[]
[]
[]
[]
[]
[]
[]
[]
[]
[]
[]
[]
[]
[]
[]
[]
[]
[]
[]
[]
[]
[]
[]
[]
[]
[]
[]
[]
[]
[]
[]
[]
[]
[]
[]
[]
[]
[]
[]
[]
[]
[]
[]
[]
[]
[]
[]
[]
[]
[]
[]
[]
[]
[]
[]
[]
[]
[]
[]
[]
[]
[]
[]
[]
[]
[]
[]
[]
[]
[]
[]
[]
[]
[]
[]
[]
[]
[]
[]
[]
[]
[]
[]
[]
[]
[]
[]
[]
[]
[]
[]
[]
[]
[]
[]
[]
[]
[]
[]
[]
[]
[]
[]
[]
[]
[]
[]
[]
[]
[]
[]
[]
[]
[]
[]
[]
[]
[]
[]
[]
[]
[]
[]
[]
[]
[]
[]
[]
[]
[]
[]
[]
[]
[]
[]
[]
[]
[]
[]
[]
[]
[]
[]
[]
[]
[]
[]
[]
[]
[]
[]
[]
[]
[]
[]
[]
[]
[]
[]
[]
[]
[]
[]
[]
[]
[]
[]
[]
[]
[]
[]
[]
[]
[]
[]
[]
[]
[]
[]
[]
[]
[]
[]
[]
[]
[]
[]
[]
[]
[]
[]
[]
[]
[]
[]
[]
[]
[]
[]
[]
[]
[]
[]
[]
[]
[]
[]
[]
[]
[]
[]
[]
[]
[]
[]
[]
[]
[]
[]
[]
[]
[]
[]
[]
[]
[]
[]
[]
[]
[]
[]
[]
[]
[]
[]
[]
[]
[]
[]
[]
[]
[]
[]
[]
[]
[]
[]
[]
[]
[]
[]
[]
[]
[]
[]
[]
[]
[]
[]
[]
[]
[]
[]
[]
[]
[]
[]
[]
[]
[]
[]
[]
[]
[]
[]
[]
[]
[]
[]
[]
[]
[]
[]
[]
[]
[]
[]
[]
[]
[]
[]
[]
[]
[]
[]
[]
[]
[]
[]
[]
[]
[]
[]
[]
[]
[]
[]
[]
[]
[]
[]
[]
[]
[]
[]
[]
[]
[]
[]
[]
[]
[]
[]
[]
[]
[]
[]
[]
[]
[]
[]
[]
[]
[]
[]
[]
[]
[]
[]
[]
[]
[]
[]
[]
[]
[]
[]
[]
[]
[]
[]
[]
[]
[]
[]
[]
[]
[]
[]
[]
[]
[]
[]
[]
[]
[]
[]
[]
[]
[]
[]
[]
[]
[]
[]
[]
[]
[]
[]
[]
[]
[]
[]
[]
[]
[]
[]
[]
[]
[]
[]
[]
[]
[]
[]
[]
[]
[]
[]
[]
[]
[]
[]
[]
[]
[]
[]
[]
[]
[]
[]
[]
[]
[]
[]
[]
[]
[]
[]
[]
[]
[]
[]
[]
[]
[]
[]
[]
[]
[]
[]
[]
[]
[]
[]
[]
[]
[]
[]
[]
[]
[]
[]
[]
[]
[]
[]
[]
[]
[]
[]
[]
[]
[]
[]
[]
[]
[]
[]
[]
[]
[]
[]
[]
[]
[]
[]
[]
[]
[]
[]
[]
[]
[]
[]
[]
[]
[]
[]
[]
[]
[]
[]
[]
[]
[]
[]
[]
[]
[]
[]
[]
[]
[]
[]
[]
[]
[]
[]
[]
[]
[]
[]
[]
[]
[]
[]
[]
[]
[]
[]
[]
[]
[]
[]
[]
[]
[]
[]
[]
[]
[]
[]
[]
[]
[]
[]
[]
[]
[]
[]
[]
[]
[]
[]
[]
[]
[]
[]
[]
[]
[]
[]
[]
[]
[]
[]
[]
[]
[]
[]
[]
[]
[]
[]
[]
[]
[]
[]
[]
[]
[]
[]
[]
[]
[]
[]
[]
[]
[]
[]
[]
[]
[]
[]
[]
[]
[]
[]
[]
[]
[]
[]
[]
[]
[]
[]
[]
[]
[]
[]
[]
[]
[]
[]
[]
[]
[]
[]
[]
[]
[]
[]
[]
[]
[]
[]
[]
[]
[]
[]
[]
[]
[]
[]
[]
[]
[]
[]
[]
[]
[]
[]
[]
[]
[]
[]
[]
[]
[]
[]
[]
[]
[]
[]
[]
[]
[]
[]
[]
[]
[]
[]
[]
[]
[]
[]
[]
[]
[]
[]
[]
[]
[]
[]
[]
[]
[]
[]
[]
[]
[]
[]
[]
[]
[]
[]
[]
[]
[]
[]
[]
[]
[]
[]
[]
[]
[]
[]
[]
[]
[]
[]
[]
[]
[]
[]
[]
[]
[]
[]
[]
[]
[]
[]
[]
[]
[]
[]
[]
[]
[]
[]
[]
[]
[]
[]
[]
[]
[]
[]
[]
[]
[]
[]
[]
[]
[]
[]
[]
[]
[]
[]
[]
[]
[]
[]
[]
[]
[]
[]
[]
[]
[]
[]
[]
[]
[]
[]
[]
[]
[]
[]
[]
[]
[]
[]
[]
[]
[]
[]
[]
[]
[]
[]
[]
[]
[]
[]
[]
[]
[]
[]
[]
[]
[]
[]
[]
[]
[]
[]
[]
[]
[]
[]
[]
[]
[]
[]
[]
[]
[]
[]
[]
[]
[]
[]
[]
[]
[]
[]
[]
[]
[]
[]
[]
[]
[]
[]
[]
[]
[]
[]
[]
[]
[]
[]
[]
[]
[]
[]
[]
[]
[]
[]
[]
[]
[]
[]
[]
[]
[]
[]
[]
[]
[]
[]
[]
[]
[]
[]
[]
[]
[]
[]
[]
[]
[]
[]
[]
[]
[]
[]
[]
[]
[]
[]
[]
[]
[]
[]
[]
[]
[]
[]
[]
[]
[]
[]
[]
[]
[]
[]
[]
[]
[]
[]
[]
[]
[]
[]
[]
[]
[]
[]
[]
[]
[]
[]
[]
[]
[]
[]
[]
[]
[]
[]
[]
[]
[]
[]
[]
[]
[]
[]
[]
[]
[]
[]
[]
[]
[]
[]
[]
[]
[]
[]
[]
[]
[]
[]
[]
[]
[]
[]
[]
[]
[]
[]
[]
[]
[]
[]
[]
[]
[]
[]
[]
[]
[]
[]
[]
[]
[]
[]
[]
[]
[]
[]
[]
[]
[]
[]
[]
[]
[]
[]
[]
[]
[]
[]
[]
[]
[]
[]
[]
[]
[]
[]
[]
[]
[]
[]
[]
[]
[]
[]
[]
[]
[]
[]
[]
[]
[]
[]
[]
[]
[]
[]
[]
[]
[]
[]
[]
[]
[]
[]
[]
[]
[]
[]
[]
[]
[]
[]
[]
[]
[]
[]
[]
[]
[]
[]
[]
[]
[]
[]
[]
[]
[]
[]
[]
[]
[]
[]
[]
[]
[]
[]
[]
[]
[]
[]
[]
[]
[]
[]
[]
[]
[]
[]
[]
[]
[]
[]
[]
[]
[]
[]
[]
[]
[]
[]
[]
[]
[]
[]
[]
[]
[]
[]
[]
[]
[]
[]
[]
[]
[]
[]
[]
[]
[]
[]
[]
[]
[]
[]
[]
[]
[]
[]
[]
[]
[]
[]
[]
[]
[]
[]
[]
[]
[]
[]
[]
[]
[]
[]
[]
[]
[]
[]
[]
[]
[]
[]
[]
[]
[]
[]
[]
[]
[]
[]
[]
[]
[]
[]
[]
[]
[]
[]
[]
[]
[]
[]
[]
[]
[]
[]
[]
[]
[]
[]
[]
[]
[]
[]
[]
[]
[]
[]
[]
[]
[]
[]
[]
[]
[]
[]
[]
[]
[]
[]
[]
[]
[]
[]
[]
[]
[]
[]
[]
[]
[]
[]
[]
[]
[]
[]
[]
[]
[]
[]
[]
[]
[]
[]
[]
[]
[]
[]
[]
[]
[]
[]
[]
[]
[]
[]
[]
[]
[]
[]
[]
[]
[]
[]
[]
[]
[]
[]
[]
[]
[]
[]
[]
[]
[]
[]
[]
[]
[]
[]
[]
[]
[]
[]
[]
[]
[]
[]
[]
[]
[]
[]
[]
[]
[]
[]
[]
[]
[]
[]
[]
[]
[]
[]
[]
[]
[]
[]
[]
[]
[]
[]
[]
[]
[]
[]
[]
[]
[]
[]
[]
[]
[]
[]
[]
[]
[]
[]
[]
[]
[]
[]
[]
[]
[]
[]
[]
[]
[]
[]
[]
[]
[]
[]
[]
[]
[]
[]
[]
[]
[]
[]
[]
[]
[]
[]
[]
[]
[]
[]
[]
[]
[]
[]
[]
[]
[]
[]
[]
[]
[]
[]
[]
[]
[]
[]
[]
[]
[]
[]
[]
[]
[]
[]
[]
[]
[]
[]
[]
[]
[]
[]
[]
[]
[]
[]
[]
[]
[]
[]
[]
[]
[]
[]
[]
[]
[]
[]
[]
[]
[]
[]
[]
[]
[]
[]
[]
[]
[]
[]
[]
[]
[]
[]
[]
[]
[]
[]
[]
[]
[]
[]
[]
[]
[]
[]
[]
[]
[]
[]
[]
[]
[]
[]
[]
[]
[]
[]
[]
[]
[]
[]
[]
[]
[]
[]
[]
[]
[]
[]
[]
[]
[]
[]
[]
[]
[]
[]
[]
[]
[]
[]
[]
[]
[]
[]
[]
[]
[]
[]
[]
[]
[]
[]
[]
[]
[]
[]
[]
[]
[]
[]
[]
[]
[]
[]
[]
[]
[]
[]
[]
[]
[]
[]
[]
[]
[]
[]
[]
[]
[]
[]
[]
[]
[]
[]
[]
[]
[]
[]
[]
[]
[]
[]
[]
[]
[]
[]
[]
[]
[]
[]
[]
[]
[]
[]
[]
[]
[]
[]
[]
[]
[]
[]
[]
[]
[]
[]
[]
[]
[]
[]
[]
[]
[]
[]
[]
[]
[]
[]
[]
[]
[]
[]
[]
[]
[]
[]
[]
[]
[]
[]
[]
[]
[]
[]
[]
[]
[]
[]
[]
[]
[]
[]
[]
[]
[]
[]
[]
[]
[]
[]
[]
[]
[]
[]
[]
[]
[]
[]
[]
[]
[]
[]
[]
[]
[]
[]
[]
[]
[]
[]
[]
[]
[]
[]
[]
[]
[]
[]
[]
[]
[]
[]
[]
[]
[]
[]
[]
[]
[]
[]
[]
[]
[]
[]
[]
[]
[]
[]
[]
[]
[]
[]
[]
[]
[]
[]
[]
[]
[]
[]
[]
[]
[]
[]
[]
[]
[]
[]
[]
[]
[]
[]
[]
[]
[]
[]
[]
[]
[]
[]
[]
[]
[]
[]
[]
[]
[]
[]
[]
[]
[]
[]
[]
[]
[]
[]
[]
[]
[]
[]
[]
[]
[]
[]
[]
[]
[]
[]
[]
[]
[]
[]
[]
[]
[]
[]
[]
[]
[]
[]
[]
[]
[]
[]
[]
[]
[]
[]
[]
[]
[]
[]
[]
[]
[]
[]
[]
[]
[]
[]
[]
[]
[]
[]
[]
[]
[]
[]
[]
[]
[]
[]
[]
[]
[]
[]
[]
[]
[]
[]
[]
[]
[]
[]
[]
[]
[]
[]
[]
[]
[]
[]
[]
[]
[]
[]
[]
[]
[]
[]
[]
[]
[]
[]
[]
[]
[]
[]
[]
[]
[]
[]
[]
[]
[]
[]
[]
[]
[]
[]
[]
[]
[]
[]
[]
[]
[]
[]
[]
[]
[]
[]
[]
[]
[]
[]
[]
[]
[]
[]
[]
[]
[]
[]
[]
[]
[]
[]
[]
[]
[]
[]
[]
[]
[]
[]
[]
[]
[]
[]
[]
[]
[]
[]
[]
[]
[]
[]
[]
[]
[]
[]
[]
[]
[]
[]
[]
[]
[]
[]
[]
[]
[]
[]
[]
[]
[]
[]
[]
[]
[]
[]
[]
[]
[]
[]
[]
[]
[]
[]
[]
[]
[]
[]
[]
[]
[]
[]
[]
[]
[]
[]
[]
[]
[]
[]
[]
[]
[]
[]
[]
[]
[]
[]
[]
[]
[]
[]
[]
[]
[]
[]
[]
[]
[]
[]
[]
[]
[]
[]
[]
[]
[]
[]
[]
[]
[]
[]
[]
[]
[]
[]
[]
[]
[]
[]
[]
[]
[]
[]
[]
[]
[]
[]
[]
[]
[]
[]
[]
[]
[]
[]
[]
[]
[]
[]
[]
[]
[]
[]
[]
[]
[]
[]
[]
[]
[]
[]
[]
[]
[]
[]
[]
[]
[]
[]
[]
[]
[]
[]
[]
[]
[]
[]
[]
[]
[]
[]
[]
[]
[]
[]
[]
[]
[]
[]
[]
[]
[]
[]
[]
[]
[]
[]
[]
[]
[]
[]
[]
[]
[]
[]
[]
[]
[]
[]
[]
[]
[]
[]
[]
[]
[]
[]
[]
[]
[]
[]
[]
[]
[]
[]
[]
[]
[]
[]
[]
[]
[]
[]
[]
[]
[]
[]
[]
[]
[]
[]
[]
[]
[]
[]
[]
[]
[]
[]
[]
[]
[]
[]
[]
[]
[]
[]
[]
[]
[]
[]
[]
[]
[]
[]
[]
[]
[]
[]
[]
[]
[]
[]
[]
[]
[]
[]
[]
[]
[]
[]
[]
[]
[]
[]
[]
[]
[]
[]
[]
[]
[]
[]
[]
[]
[]
[]
[]
[]
[]
[]
[]
[]
[]
[]
[]
[]
[]
[]
[]
[]
[]
[]
[]
[]
[]
[]
[]
[]
[]
[]
[]
[]
[]
[]
[]
[]
[]
[]
[]
[]
[]
[]
[]
[]
[]
[]
[]
[]
[]
[]
[]
[]
[]
[]
[]
[]
[]
[]
[]
[]
[]
[]
[]
[]
[]
[]
[]
[]
[]
[]
[]
[]
[]
[]
[]
[]
[]
[]
[]
[]
[]
[]
[]
[]
[]
[]
[]
[]
[]
[]
[]
[]
[]
[]
[]
[]
[]
[]
[]
[]
[]
[]
[]
[]
[]
[]
[]
[]
[]
[]
[]
[]
[]
[]
[]
[]
[]
[]
[]
[]
[]
[]
[]
[]
[]
[]
[]
[]
[]
[]
[]
[]
[]
[]
[]
[]
[]
[]
[]
[]
[]
[]
[]
[]
[]
[]
[]
[]
[]
[]
[]
[]
[]
[]
[]
[]
[]
[]
[]
[]
[]
[]
[]
[]
[]
[]
[]
[]
[]
[]
[]
[]
[]
[]
[]
[]
[]
[]
[]
[]
[]
[]
[]
[]
[]
[]
[]
[]
[]
[]
[]
[]
[]
[]
[]
[]
[]
[]
[]
[]
[]
[]
[]
[]
[]
[]
[]
[]
[]
[]
[]
[]
[]
[]
[]
[]
[]
[]
[]
[]
[]
[]
[]
[]
[]
[]
[]
[]
[]
[]
[]
[]
[]
[]
[]
[]
[]
[]
[]
[]
[]
[]
[]
[]
[]
[]
[]
[]
[]
[]
[]
[]
[]
[]
[]
[]
[]
[]
[]
[]
[]
[]
[]
[]
[]
[]
[]
[]
[]
[]
[]
[]
[]
[]
[]
[]
[]
[]
[]
[]
[]
[]
[]
[]
[]
[]
[]
[]
[]
[]
[]
[]
[]
[]
[]
[]
[]
[]
[]
[]
[]
[]
[]
[]
[]
[]
[]
[]
[]
[]
[]
[]
[]
[]
[]
[]
[]
[]
[]
[]
[]
[]
[]
[]
[]
[]
[]
[]
[]
[]
[]
[]
[]
[]
[]
[]
[]
[]
[]
[]
[]
[]
[]
[]
[]
[]
[]
[]
[]
[]
[]
[]
[]
[]
[]
[]
[]
[]
[]
[]
[]
[]
[]
[]
[]
[]
[]
[]
[]
[]
[]
[]
[]
[]
[]
[]
[]
[]
[]
[]
[]
[]
[]
[]
[]
[]
[]
[]
[]
[]
[]
[]
[]
[]
[]
[]
[]
[]
[]
[]
[]
[]
[]
[]
[]
[]
[]
[]
[]
[]
[]
[]
[]
[]
[]
[]
[]
[]
[]
[]
[]
[]
[]
[]
[]
[]
[]
[]
[]
[]
[]
[]
[]
[]
[]
[]
[]
[]
[]
[]
[]
[]
[]
[]
[]
[]
[]
[]
[]
[]
[]
[]
[]
[]
[]
[]
[]
[]
[]
[]
[]
[]
[]
[]
[]
[]
[]
[]
[]
[]
[]
[]
[]
[]
[]
[]
[]
[]
[]
[]
[]
[]
[]
[]
[]
[]
[]
[]
[]
[]
[]
[]
[]
[]
[]
[]
[]
[]
[]
[]
[]
[]
[]
[]
[]
[]
[]
[]
[]
[]
[]
[]
[]
[]
[]
[]
[]
[]
[]
[]
[]
[]
[]
[]
[]
[]
[]
[]
[]
[]
[]
[]
[]
[]
[]
[]
[]
[]
[]
[]
[]
[]
[]
[]
[]
[]
[]
[]
[]
[]
[]
[]
[]
[]
[]
[]
[]
[]
[]
[]
[]
[]
[]
[]
[]
[]
[]
[]
[]
[]
[]
[]
[]
[]
[]
[]
[]
[]
[]
[]
[]
[]
[]
[]
[]
[]
[]
[]
[]
[]
[]
[]
[]
[]
[]
[]
[]
[]
[]
[]
[]
[]
[]
[]
[]
[]
[]
[]
[]
[]
[]
[]
[]
[]
[]
[]
[]
[]
[]
[]
[]
[]
[]
[]
[]
[]
[]
[]
[]
[]
[]
[]
[]
[]
[]
[]
[]
[]
[]
[]
[]
[]
[]
[]
[]
[]
[]
[]
[]
[]
[]
[]
[]
[]
[]
[]
[]
[]
[]
[]
[]
[]
[]
[]
[]
[]
[]
[]
[]
[]
[]
[]
[]
[]
[]
[]
[]
[]
[]
[]
[]
[]
[]
[]
[]
[]
[]
[]
[]
[]
[]
[]
[]
[]
[]
[]
[]
[]
[]
[]
[]
[]
[]
[]
[]
[]
[]
[]
[]
[]
[]
[]
[]
[]
[]
[]
[]
[]
[]
[]
[]
[]
[]
[]
[]
[]
[]
[]
[]
[]
[]
[]
[]
[]
[]
[]
[]
[]
[]
[]
[]
[]
[]
[]
[]
[]
[]
[]
[]
[]
[]
[]
[]
[]
[]
[]
[]
[]
[]
[]
[]
[]
[]
[]
[]
[]
[]
[]
[]
[]
[]
[]
[]
[]
[]
[]
[]
[]
[]
[]
[]
[]
[]
[]
[]
[]
[]
[]
[]
[]
[]
[]
[]
[]
[]
[]
[]
[]
[]
[]
[]
[]
[]
[]
[]
[]
[]
[]
[]
[]
[]
[]
[]
[]
[]
[]
[]
[]
[]
[]
[]
[]
[]
[]
[]
[]
[]
[]
[]
[]
[]
[]
[]
[]
[]
[]
[]
[]
[]
[]
[]
[]
[]
[]
[]
[]
[]
[]
[]
[]
[]
[]
[]
[]
[]
[]
[]
[]
[]
[]
[]
[]
[]
[]
[]
[]
[]
[]
[]
[]
[]
[]
[]
[]
[]
[]
[]
[]
[]
[]
[]
[]
[]
[]
[]
[]
[]
[]
[]
[]
[]
[]
[]
[]
[]
[]
[]
[]
[]
[]
[]
[]
[]
[]
[]
[]
[]
[]
[]
[]
[]
[]
[]
[]
[]
[]
[]
[]
[]
[]
[]
[]
[]
[]
[]
[]
[]
[]
[]
[]
[]
[]
[]
[]
[]
[]
[]
[]
[]
[]
[]
[]
[]
[]
[]
[]
[]
[]
[]
[]
[]
[]
[]
[]
[]
[]
[]
[]
[]
[]
[]
[]
[]
[]
[]
[]
[]
[]
[]
[]
[]
[]
[]
[]
[]
[]
[]
[]
[]
[]
[]
[]
[]
[]
[]
[]
[]
[]
[]
[]
[]
[]
[]
[]
[]
[]
[]
[]
[]
[]
[]
[]
[]
[]
[]
[]
[]
[]
[]
[]
[]
[]
[]
[]
[]
[]
[]
[]
[]
[]
[]
[]
[]
[]
[]
[]
[]
[]
[]
[]
[]
[]
[]
[]
[]
[]
[]
[]
[]
[]
[]
[]
[]
[]
[]
[]
[]
[]
[]
[]
[]
[]
[]
[]
[]
[]
[]
[]
[]
[]
[]
[]
[]
[]
[]
[]
[]
[]
[]
[]
[]
[]
[]
[]
[]
[]
[]
[]
[]
[]
[]
[]
[]
[]
[]
[]
[]
[]
[]
[]
[]
[]
[]
[]
[]
[]
[]
[]
[]
[]
[]
[]
[]
[]
[]
[]
[]
[]
[]
[]
[]
[]
[]
[]
[]
[]
[]
[]
[]
[]
[]
[]
[]
[]
[]
[]
[]
[]
[]
[]
[]
[]
[]
[]
[]
[]
[]
[]
[]
[]
[]
[]
[]
[]
[]
[]
[]
[]
[]
[]
[]
[]
[]
[]
[]
[]
[]
[]
[]
[]
[]
[]
[]
[]
[]
[]
[]
[]
[]
[]
[]
[]
[]
[]
[]
[]
[]
[]
[]
[]
[]
[]
[]
[]
[]
[]
[]
[]
[]
[]
[]
[]
[]
[]
[]
[]
[]
[]
[]
[]
[]
[]
[]
[]
[]
[]
[]
[]
[]
[]
[]
[]
[]
[]
[]
[]
[]
[]
[]
[]
[]
[]
[]
[]
[]
[]
[]
[]
[]
[]
[]
[]
[]
[]
[]
[]
[]
[]
[]
[]
[]
[]
[]
[]
[]
[]
[]
[]
[]
[]
[]
[]
[]
[]
[]
[]
[]
[]
[]
[]
[]
[]
[]
[]
[]
[]
[]
[]
[]
[]
[]
[]
[]
[]
[]
[]
[]
[]
[]
[]
[]
[]
[]
[]
[]
[]
[]
[]
[]
[]
[]
[]
[]
[]
[]
[]
[]
[]
[]
[]
[]
[]
[]
[]
[]
[]
[]
[]
[]
[]
[]
[]
[]
[]
[]
[]
[]
[]
[]
[]
[]
[]
[]
[]
[]
[]
[]
[]
[]
[]
[]
[]
[]
[]
[]
[]
[]
[]
[]
[]
[]
[]
[]
[]
[]
[]
[]
[]
[]
[]
[]
[]
[]
[]
[]
[]
[]
[]
[]
[]
[]
[]
[]
[]
[]
[]
[]
[]
[]
[]
[]
[]
[]
[]
[]
[]
[]
[]
[]
[]
[]
[]
[]
[]
[]
[]
[]
[]
[]
[]
[]
[]
[]
[]
[]
[]
[]
[]
[]
[]
[]
[]
[]
[]
[]
[]
[]
[]
[]
[]
[]
[]
[]
[]
[]
[]
[]
[]
[]
[]
[]
[]
[]
[]
[]
[null,null,null," "]
[]
[]
[]
[]
["Item","Équation_Texte","A","B","C","E","F","Équation_Calcul_ha","EMR1_Brut_ha","BNT1_Brut_ha","PE2_ha_PLANIF","PE2_ha_BGAD","PE2_ha_MFFP","MAN_ha_PLANIF","MAN_ha_BGAD","MAN_ha_MFFP","RUB1_ha_PLANIF","RUB1_ha_BGAD","RUB1_ha_MFFP","H2_ha_PLANIF","H2_ha_BGAD","H2_ha_MFFP"]
["C1","-0,0425P+(327,505/P)+4,8643",-4.2500000000000003E-2,327.505,4.8643000000000001,null,null,{"$f":"IFERROR(($C$1048514*'Calcul des taux (formules)'!$G$36+($D$1048514/'Calcul des taux (formules)'!$G$36)+$E$1048514),0)","v":0},"N/A","N/A","N/A","N/A","N/A","N/A","N/A","N/A","N/A","N/A","N/A","N/A","N/A","N/A"]
["C2","-0,0530P+(327,055/P)+5,5333",-5.2999999999999999E-2,327.505,5.5332999999999997,null,null,{"$f":"IFERROR(($C$1048515*'Calcul des taux (formules)'!$G$36+($D$1048515/'Calcul des taux (formules)'!$G$36)+$E$1048515),0)","v":0},"N/A","N/A","N/A","N/A","N/A","N/A","N/A","N/A","N/A","N/A","N/A","N/A","N/A","N/A"]
["C3","-0,0425P+(327,505/P)+4,8643",-4.19E-2,163.75299999999999,5.7779999999999996,null,null,{"$f":"IFERROR(($C$1048516*'Calcul des taux (formules)'!$G$36+($D$1048516/'Calcul des taux (formules)'!$G$36)+$E$1048516),0)","v":0},"N/A","N/A","N/A","N/A","N/A","N/A","N/A","N/A","N/A","N/A","N/A","N/A","N/A","N/A"]
[{"$f":"Menus!$A$356","v":"Formule 1 - EC1"},"( C1 + (4,944vr-0,682 - 7,615vp-0,391))x P",4.944,-0.68200000000000005,7.6150000000000002,-0.39100000000000001,null,{"$f":"IFERROR((($H$1048514+($C$1048517*POWER('Calcul des taux (formules)'!$G$38,$D$1048517))-($E$1048517*POWER('Calcul des taux (formules)'!$G$37,$F$1048517)))*'Calcul des taux (formules)'!$G$36),0)","v":0},"N/A","N/A",{"$f":"IFERROR(IF($I$13=$A$1048517,SUMPRODUCT($C$57:$C$61,G$57:G$61)/G$62-$H$1048517,0),0)","v":0},{"$f":"IFERROR(IF($I$13=$A$1048517,SUMPRODUCT($C$57:$C$61,H$57:H$61)/H$62-$H$1048517,0),0)","v":0},{"$f":"IFERROR(IF($I$13=$A$1048517,SUMPRODUCT($C$57:$C$61,I$57:I$61)/I$62-$H$1048517,0),0)","v":0},{"$f":"IFERROR(IF($I$13=$A$1048517,($K$1048517+$H$1048517)*VLOOKUP($G$65,Menus!$A$334:$C$336,2,0),0),0)","v":0},{"$f":"IFERROR(IF($I$13=$A$1048517,($L$1048517+$H$1048517)*VLOOKUP($H$65,Menus!$A$334:$C$336,2,0),0),0)","v":0},{"$f":"IFERROR(IF($I$13=$A$1048517,($M$1048517+$H$1048517)*VLOOKUP($I$65,Menus!$A$334:$C$336,2,0),0),0)","v":0},{"$f":"IFERROR(IF($I$13=$A$1048517,IF(OR(G$68<15,G$68=Menus!$A$340,G$68=\"\",EXACT(ROUND($G$68,0),$G$68)=FALSE),0,'Majorations applicables'!$B$29*POWER(G$68,'Majorations applicables'!$B$30))*(1+($K$1048517/$H$1048517)),0),0)","v":0},{"$f":"IFERROR(IF($I$13=$A$1048517,IF(OR(H$68<15,H$68=Menus!$A$340,H$68=\"\",EXACT(ROUND($H$68,0),$H$68)=FALSE),0,'Majorations applicables'!$B$29*POWER(H$68,'Majorations applicables'!$B$30))*(1+($L$1048517/$H$1048517)),0),0)","v":0},{"$f":"IFERROR(IF($I$13=$A$1048517,IF(OR(I$68<15,I$68=Menus!$A$340,I$68=\"\",EXACT(ROUND($I$68,0),$I$68)=FALSE),0,'Majorations applicables'!$B$29*POWER(I$68,'Majorations applicables'!$B$30))*(1+($M$1048517/$H$1048517)),0),0)","v":0},{"$f":"IFERROR(IF($I$13=$A$1048517,(SUM(H1048517,K1048517,N1048517,Q1048517)*SUM(VLOOKUP($G$71,Menus!$A$329:$B$330,2,FALSE))),0),0)","v":0},{"$f":"IFERROR(IF($I$13=$A$1048517,(SUM(H1048517,L1048517,O1048517,$R1048517)*SUM(VLOOKUP($H$71,Menus!$A$329:$B$330,2,FALSE))),0),0)","v":0},{"$f":"IFERROR(IF($I$13=$A$1048517,(SUM(H1048517,M1048517,P1048517,S1048517)*SUM(VLOOKUP($I$71,Menus!$A$329:$B$330,2,FALSE))),0),0)","v":0}]
[{"$f":"Menus!$A$357","v":"Formule 1 - EC2"},"( C1 + (4,944vr-0,682 - 7,615vp-0,391))x P",4.944,-0.68200000000000005,7.6150000000000002,-0.39100000000000001,null,{"$f":"IFERROR((($H$1048516+($C$1048518*POWER('Calcul des taux (formules)'!$G$38,$D$1048518))-($E$1048518*POWER('Calcul des taux (formules)'!$G$37,$F$1048518)))*'Calcul des taux (formules)'!$G$36),0)","v":0},"N/A","N/A",{"$f":"IFERROR(IF($I$13=$A$1048518,SUMPRODUCT($C$57:$C$61,G$57:G$61)/G$62-$H$1048518,0),0)","v":0},{"$f":"IFERROR(IF($I$13=$A$1048518,SUMPRODUCT($C$57:$C$61,H$57:H$61)/H$62-$H$1048518,0),0)","v":0},{"$f":"IFERROR(IF($I$13=$A$1048518,SUMPRODUCT($C$57:$C$61,I$57:I$61)/I$62-$H$1048518,0),0)","v":0},"N/A","N/A","N/A",{"$f":"IFERROR(IF($I$13=$A$1048518,IF(OR(G$68<15,G$68=Menus!$A$340,G$68=\"\",EXACT(ROUND($G$68,0),$G$68)=FALSE),0,'Majorations applicables'!$B$29*POWER(G$68,'Majorations applicables'!$B$30))*(1+($K$1048518/$H$1048518)),0),0)","v":0},{"$f":"IFERROR(IF($I$13=$A$1048518,IF(OR(H$68<15,H$68=Menus!$A$340,H$68=\"\",EXACT(ROUND($H$68,0),$H$68)=FALSE),0,'Majorations applicables'!$B$29*POWER(H$68,'Majorations applicables'!$B$30))*(1+($L$1048518/$H$1048518)),0),0)","v":0},{"$f":"IFERROR(IF($I$13=$A$1048518,IF(OR(I$68<15,I$68=Menus!$A$340,I$68=\"\",EXACT(ROUND($I$68,0),$I$68)=FALSE),0,'Majorations applicables'!$B$29*POWER(I$68,'Majorations applicables'!$B$30))*(1+($M$1048518/$H$1048518)),0),0)","v":0},{"$f":"IFERROR(IF($I$13=$A$1048518,(SUM(H1048518,K1048518,N1048518,Q1048518)*SUM(VLOOKUP($G$71,Menus!$A$329:$B$330,2,FALSE))),0),0)","v":0},{"$f":"IFERROR(IF($I$13=$A$1048518,(SUM(H1048518,L1048518,O1048518,$R1048518)*SUM(VLOOKUP($H$71,Menus!$A$329:$B$330,2,FALSE))),0),0)","v":0},{"$f":"IFERROR(IF($I$13=$A$1048518,(SUM(H1048518,M1048518,P1048518,S1048518)*SUM(VLOOKUP($I$71,Menus!$A$329:$B$330,2,FALSE))),0),0)","v":0}]
[{"$f":"Menus!$A$358","v":"Formule 2"},"( C1 + (14,631vr-0,237 - 10,362vp-0,237)-0,44) x P",14.631,-0.23699999999999999,10.362,-0.23699999999999999,0.44,{"$f":"IFERROR((($H$1048514+($C$1048519*POWER('Calcul des taux (formules)'!$G$38,$D$1048519))-($E$1048519*POWER('Calcul des taux (formules)'!$G$37,$F$1048519))-$G$1048519)*'Calcul des taux (formules)'!$G$36),0)","v":0},"N/A","N/A",{"$f":"IFERROR(IF($I$13=$A$1048519,SUMPRODUCT($C$57:$C$61,G$57:G$61)/G$62-$H$1048519,0),0)","v":0},{"$f":"IFERROR(IF($I$13=$A$1048519,SUMPRODUCT($C$57:$C$61,H$57:H$61)/H$62-$H$1048519,0),0)","v":0},{"$f":"IFERROR(IF($I$13=$A$1048519,SUMPRODUCT($C$57:$C$61,I$57:I$61)/I$62-$H$1048519,0),0)","v":0},"N/A","N/A","N/A",{"$f":"IFERROR(IF($I$13=$A$1048519,IF(OR(G$68<15,G$68=Menus!$A$340,G$68=\"\",EXACT(ROUND($G$68,0),$G$68)=FALSE),0,'Majorations applicables'!$B$29*POWER(G$68,'Majorations applicables'!$B$30))*(1+($K$1048519/$H$1048519)),0),0)","v":0},{"$f":"IFERROR(IF($I$13=$A$1048519,IF(OR(H$68<15,H$68=Menus!$A$340,H$68=\"\",EXACT(ROUND($H$68,0),$H$68)=FALSE),0,'Majorations applicables'!$B$29*POWER(H$68,'Majorations applicables'!$B$30))*(1+($L$1048519/$H$1048519)),0),0)","v":0},{"$f":"IFERROR(IF($I$13=$A$1048519,IF(OR(I$68<15,I$68=Menus!$A$340,I$68=\"\",EXACT(ROUND($I$68,0),$I$68)=FALSE),0,'Majorations applicables'!$B$29*POWER(I$68,'Majorations applicables'!$B$30))*(1+($M$1048519/$H$1048519)),0),0)","v":0},{"$f":"IFERROR(IF($I$13=$A$1048519,(SUM(H1048519,K1048519,Q1048519)*SUM(VLOOKUP($G$71,Menus!$A$329:$B$330,2,FALSE))),0),0)","v":0},{"$f":"IFERROR(IF($I$13=$A$1048519,(SUM(H1048519,L1048519,$R1048519)*SUM(VLOOKUP($H$71,Menus!$A$329:$B$330,2,FALSE))),0),0)","v":0},{"$f":"IFERROR(IF($I$13=$A$1048519,(SUM(H1048519,M1048519,S1048519)*SUM(VLOOKUP($I$71,Menus!$A$329:$B$330,2,FALSE))),0),0)","v":0}]
[{"$f":"Menus!$A$359","v":"Formule 4"},"( C2 + (11,18vr-0,526 - 6,603vp-0,563)-0,44) x P",11.18,-0.52600000000000002,6.6029999999999998,-0.56299999999999994,0.44,{"$f":"IFERROR((($H$1048515+($C$1048520*POWER('Calcul des taux (formules)'!$G$38,$D$1048520))-($E$1048520*POWER('Calcul des taux (formules)'!$G$37,$F$1048520))-$G$1048520)*'Calcul des taux (formules)'!$G$36),0)","v":0},{"$f":"IFERROR(($H$1048520*(-'Calcul des taux (formules)'!$G$43)),0)","v":0},{"$f":"IFERROR(IF(OR(EXACT($G$52,0),EXACT($G$52,\"\")),0,IF(AND('Calcul des taux (formules)'!$G$50>0,OR('Calcul des taux (formules)'!$G$51>0,'Calcul des taux (formules)'!$G$52>0)),(-('Majorations applicables'!$B$19*POWER('Calcul des taux (formules)'!$G$46,'Majorations applicables'!$B$20)-('Majorations applicables'!$B$21*'Calcul des taux (formules)'!$G$46)+1)*($H$1048520+$I$1048520)),IF(AND('Calcul des taux (formules)'!$G$50>0,OR('Calcul des taux (formules)'!$G$51=0,'Calcul des taux (formules)'!$G$52=0)),(-('Majorations applicables'!$B$19*POWER('Calcul des taux (formules)'!$G$46,'Majorations applicables'!$B$20)-('Majorations applicables'!$B$21*'Calcul des taux (formules)'!$G$46)+1)*($H$1048520+$I$1048520)),0))),0)","v":0},{"$f":"IFERROR(IF($I$13=$A1048520,SUMPRODUCT($C$57:$C$61,G$57:G$61)/G$62-$H$1048520,0),0)","v":0},{"$f":"IFERROR(IF($I$13=$A1048520,SUMPRODUCT($C$57:$C$61,H$57:H$61)/H$62-$H$1048520,0),0)","v":0},{"$f":"IFERROR(IF($I$13=$A1048520,SUMPRODUCT($C$57:$C$61,I$57:I$61)/I$62-$H$1048520,0),0)","v":0},"N/A","N/A","N/A",{"$f":"IFERROR(IF($I$13=$A$1048520,IF(OR(G$68<15,G$68=Menus!$A$340,G$68=\"\",EXACT(ROUND($G$68,0),$G$68)=FALSE),0,'Majorations applicables'!$B$29*POWER(G$68,'Majorations applicables'!$B$30))*(1+($K$1048520/$H$1048520)),0),0)","v":0},{"$f":"IFERROR(IF($I$13=$A$1048520,IF(OR(H$68<15,H$68=Menus!$A$340,H$68=\"\",EXACT(ROUND($H$68,0),$H$68)=FALSE),0,'Majorations applicables'!$B$29*POWER(H$68,'Majorations applicables'!$B$30))*(1+($L$1048520/$H$1048520)),0),0)","v":0},{"$f":"IFERROR(IF($I$13=$A$1048520,IF(OR(I$68<15,I$68=Menus!$A$340,I$68=\"\",EXACT(ROUND($I$68,0),$I$68)=FALSE),0,'Majorations applicables'!$B$29*POWER(I$68,'Majorations applicables'!$B$30))*(1+($M$1048520/$H$1048520)),0),0)","v":0},{"$f":"IFERROR(IF($I$13=$A$1048520,(SUM(H1048520:J1048520,K1048520,Q1048520)*SUM(VLOOKUP($G$71,Menus!$A$329:$B$330,2,FALSE))),0),0)","v":0},{"$f":"IFERROR(IF($I$13=$A$1048520,(SUM(H1048520:J1048520,L1048520,$R1048520)*SUM(VLOOKUP($H$71,Menus!$A$329:$B$330,2,FALSE))),0),0)","v":0},{"$f":"IFERROR(IF($I$13=$A$1048520,(SUM(H1048520:J1048520,M1048520,S1048520)*SUM(VLOOKUP($I$71,Menus!$A$329:$B$330,2,FALSE))),0),0)","v":0}]
[{"$f":"Menus!$A$360","v":"Formule 6"},"( C2 + (7,769vr-0,534 - 6,418vp-0,564) x P",7.7690000000000001,-0.53400000000000003,6.4180000000000001,-0.56399999999999995,null,{"$f":"IFERROR((($H$1048515+($C$1048521*POWER('Calcul des taux (formules)'!$G$38,$D$1048521))-($E$1048521*POWER('Calcul des taux (formules)'!$G$37,$F$1048521)))*'Calcul des taux (formules)'!$G$36),0)","v":0},{"$f":"IFERROR(($H$1048521*(-'Calcul des taux (formules)'!$G$43)),0)","v":0},{"$f":"IFERROR(IF(OR(EXACT($G$52,0),EXACT($G$52,\"\")),0,IF(AND('Calcul des taux (formules)'!$G$50>0,OR('Calcul des taux (formules)'!$G$51>0,'Calcul des taux (formules)'!$G$52>0)),(-('Majorations applicables'!$B$19*POWER('Calcul des taux (formules)'!$G$46,'Majorations applicables'!$B$20)-('Majorations applicables'!$B$21*'Calcul des taux (formules)'!$G$46)+1)*($H$1048521+$I$1048521)),IF(AND('Calcul des taux (formules)'!$G$50>0,OR('Calcul des taux (formules)'!$G$51=0,'Calcul des taux (formules)'!$G$52=0)),(-('Majorations applicables'!$B$19*POWER('Calcul des taux (formules)'!$G$46,'Majorations applicables'!$B$20)-('Majorations applicables'!$B$21*'Calcul des taux (formules)'!$G$46)+1)*($H$1048521+$I$1048521)),0))),0)","v":0},{"$f":"IFERROR(IF($I$13=$A1048521,SUMPRODUCT($C$57:$C$61,G$57:G$61)/G$62-$H$1048521,0),0)","v":0},{"$f":"IFERROR(IF($I$13=$A1048521,SUMPRODUCT($C$57:$C$61,H$57:H$61)/H$62-$H1048521,0),0)","v":0},{"$f":"IFERROR(IF($I$13=$A1048521,SUMPRODUCT($C$57:$C$61,I$57:I$61)/I$62-$H1048521,0),0)","v":0},"N/A","N/A","N/A","N/A","N/A","N/A",{"$f":"IFERROR(IF($I$13=$A$1048521,(SUM(H1048521:J1048521,K1048521)*SUM(VLOOKUP($G$71,Menus!$A$329:$B$330,2,FALSE))),0),0)","v":0},{"$f":"IFERROR(IF($I$13=$A$1048521,(SUM(H1048521:J1048521,L1048521)*SUM(VLOOKUP($H$71,Menus!$A$329:$B$330,2,FALSE))),0),0)","v":0},{"$f":"IFERROR(IF($I$13=$A$1048521,(SUM(H1048521:J1048521,M1048521)*SUM(VLOOKUP($I$71,Menus!$A$329:$B$330,2,FALSE))),0),0)","v":0}]
[{"$f":"Menus!$A$361","v":"Formule 7"},"( C2 + (7,615vr-0,643 - 6,418vp-0,564) x P",7.6150000000000002,-0.64300000000000002,6.4180000000000001,-0.56399999999999995,null,{"$f":"IFERROR((($H$1048515+($C$1048522*POWER('Calcul des taux (formules)'!$G$38,$D$1048522))-($E$1048522*POWER('Calcul des taux (formules)'!$G$37,$F$1048522)))*'Calcul des taux (formules)'!$G$36),0)","v":0},{"$f":"IFERROR(($H$1048522*(-'Calcul des taux (formules)'!$G$43)),0)","v":0},{"$f":"IFERROR(IF(OR(EXACT($G$52,0),EXACT($G$52,\"\")),0,IF(AND('Calcul des taux (formules)'!$G$50>0,OR('Calcul des taux (formules)'!$G$51>0,'Calcul des taux (formules)'!$G$52>0)),(-('Majorations applicables'!$B$19*POWER('Calcul des taux (formules)'!$G$46,'Majorations applicables'!$B$20)-('Majorations applicables'!$B$21*'Calcul des taux (formules)'!$G$46)+1)*($H$1048522+$I$1048522)),IF(AND('Calcul des taux (formules)'!$G$50>0,OR('Calcul des taux (formules)'!$G$51=0,'Calcul des taux (formules)'!$G$52=0)),(-('Majorations applicables'!$B$19*POWER('Calcul des taux (formules)'!$G$46,'Majorations applicables'!$B$20)-('Majorations applicables'!$B$21*'Calcul des taux (formules)'!$G$46)+1)*($H$1048522+$I$1048522)),0))),0)","v":0},{"$f":"IFERROR(IF($I$13=$A1048522,SUMPRODUCT($C$57:$C$61,G$57:G$61)/G$62-$H1048522,0),0)","v":0},{"$f":"IFERROR(IF($I$13=$A1048522,SUMPRODUCT($C$57:$C$61,H$57:H$61)/H$62-$H$1048522,0),0)","v":0},{"$f":"IFERROR(IF($I$13=$A1048522,SUMPRODUCT($C$57:$C$61,I$57:I$61)/I$62-$H$1048522,0),0)","v":0},"N/A","N/A","N/A",{"$f":"IFERROR(IF($I$13=$A$1048522,IF(OR(G$68<15,G$68=Menus!$A$340,G$68=\"\",EXACT(ROUND($G$68,0),$G$68)=FALSE),0,'Majorations applicables'!$B$29*POWER(G$68,'Majorations applicables'!$B$30))*(1+($K$1048522/$H$1048522)),0),0)","v":0},{"$f":"IFERROR(IF($I$13=$A$1048522,IF(OR(H$68<15,H$68=Menus!$A$340,H$68=\"\",EXACT(ROUND($H$68,0),$H$68)=FALSE),0,'Majorations applicables'!$B$29*POWER(H$68,'Majorations applicables'!$B$30))*(1+($L$1048522/$H$1048522)),0),0)","v":0},{"$f":"IFERROR(IF($I$13=$A$1048522,IF(OR(I$68<15,I$68=Menus!$A$340,I$68=\"\",EXACT(ROUND($I$68,0),$I$68)=FALSE),0,'Majorations applicables'!$B$29*POWER(I$68,'Majorations applicables'!$B$30))*(1+($M$1048522/$H$1048522)),0),0)","v":0},{"$f":"IFERROR(IF($I$13=$A$1048522,(SUM(H1048522:J1048522,K1048522,Q1048522)*SUM(VLOOKUP($G$71,Menus!$A$329:$B$330,2,FALSE))),0),0)","v":0},{"$f":"IFERROR(IF($I$13=$A$1048522,(SUM(H1048522:J1048522,L1048522,$R1048522)*SUM(VLOOKUP($H$71,Menus!$A$329:$B$330,2,FALSE))),0),0)","v":0},{"$f":"IFERROR(IF($I$13=$A$1048522,(SUM(H1048522:J1048522,M1048522,S1048522)*SUM(VLOOKUP($I$71,Menus!$A$329:$B$330,2,FALSE))),0),0)","v":0}]
[{"$f":"Menus!$A$362","v":"Inscrire une valeur"},"Veuillez inscrire une formule à G12"]

{"sheet":"Aide AFRFRQ","index":2,"n_rows":134,"n_cols":101,"rows_kept":134,"cut":false,"hidden":true,"merged":[[0,0,0,6],[18,0,18,5],[4,0,4,5],[11,0,11,6],[5,0,5,5],[3,0,3,6],[7,0,7,5],[15,0,15,6],[6,0,6,5],[16,0,16,5],[17,0,17,5],[2,0,2,5],[1,0,1,6],[8,0,8,5],[33,0,33,5],[12,0,12,4],[13,0,13,4],[14,0,14,4],[23,0,23,6],[25,0,25,6],[26,0,26,6],[27,6,29,6],[31,6,32,6],[31,0,32,5],[19,0,19,6],[20,0,20,5],[21,0,21,5],[30,0,30,5],[22,0,22,5],[27,0,29,5],[9,0,9,6],[24,0,24,6]]}
[]
["Annexe au calcul de l'aide à l’aménagement des forêts résineuses de faibles\nrendement et qualité pour l’année financière\n2019-2020                    \nForêt publique"]
[" *** Veuillez saisir les informations dans les cellules blanches ***",null,null,null,null,null,"Version 1 : 2019-10-09"]
["Identification"]
["Nom du chantier",null,null,null,null,null,null,null,null,null,null,null,null,null,null,null,null,null,null,null,null,null,null,null,null,null,null,null,null,null,null,null,null,null,null,null,null,null,null,null,null,null,null,null,null,null,null,null,null,null,null,null,null,null,null,null,null,null,null,null,null,null,null,null,null,null,null,null,null,null,null,null,null,null,null,null,null,null,null,null,null,null,null,null,null,null,null,null,null,null,null,null,null,null,null,null,null,null,null,null,"NON"]
["Territoire de mise en marché",null,null,null,null,null,null,null,null,null,null,null,null,null,null,null,null,null,null,null,null,null,null,null,null,null,null,null,null,null,null,null,null,null,null,null,null,null,null,null,null,null,null,null,null,null,null,null,null,null,null,null,null,null,null,null,null,null,null,null,null,null,null,null,null,null,null,null,null,null,null,null,null,null,null,null,null,null,null,null,null,null,null,null,null,null,null,null,null,null,null,null,null,null,null,null,null,"01151",151,0]
["Région administrative",null,null,null,null,null,null,null,null,null,null,null,null,null,null,null,null,null,null,null,null,null,null,null,null,null,null,null,null,null,null,null,null,null,null,null,null,null,null,null,null,null,null,null,null,null,null,null,null,null,null,null,null,null,null,null,null,null,null,null,null,null,null,null,null,null,null,null,null,null,null,null,null,null,null,null,null,null,null,null,null,null,null,null,null,null,null,null,null,null,null,null,null,null,null,null,null,"01152",152,0]
["Unité d'aménagement",null,null,null,null,null,null,null,null,null,null,null,null,null,null,null,null,null,null,null,null,null,null,null,null,null,null,null,null,null,null,null,null,null,null,null,null,null,null,null,null,null,null,null,null,null,null,null,null,null,null,null,null,null,null,null,null,null,null,null,null,null,null,null,null,null,null,null,null,null,null,null,null,null,null,null,null,null,null,null,null,null,null,null,null,null,null,null,null,null,null,null,null,null,null,null,null,"01251",153,0]
["Zone de tarification",null,null,null,null,null,"Inscrire une valeur",null,null,null,null,null,null,null,null,null,null,null,null,null,null,null,null,null,null,null,null,null,null,null,null,null,null,null,null,null,null,null,null,null,null,null,null,null,null,null,null,null,null,null,null,null,null,null,null,null,null,null,null,null,null,null,null,null,null,null,null,null,null,null,null,null,null,null,null,null,null,null,null,null,null,null,null,null,null,null,null,null,null,null,null,null,null,null,null,null,null,"02661",185,80]
["Admissibilité de la zone de tarification"]
[{"$f":"IFERROR(IF(ISBLANK($G$9),\"Inscrire une valeur à la cellule G9 pour déterminer l'admissibilité de la zone de tarification et permettre le calcul, le cas échéant.\",VLOOKUP(VALUE($G$9),Menus!$A$680:$D$871,4,FALSE)),\"Inscrire une valeur à la cellule G9 pour déterminer l'admissibilité de la zone de tarification et permettre le calcul, le cas échéant.\")","v":"Inscrire une valeur à la cellule G9 pour déterminer l'admissibilité de la zone de tarification et permettre le calcul, le cas échéant."}]
["Admissibilité du chantier",null,null,null,null,null,null,null,null,null,null,null,null,null,null,null,null,null,null,null,null,null,null,null,null,null,null,null,null,null,null,null,null,null,null,null,null,null,null,null,null,null,null,null,null,null,null,null,null,null,null,null,null,null,null,null,null,null,null,null,null,null,null,null,null,null,null,null,null,null,null,null,null,null,null,null,null,null,null,null,null,null,null,null,null,null,null,null,null,null,null,null,null,null,null,null,null,"01253",155,0]
["Peuplement résineux mature (≥ 75% de la surface terrière)",null,null,null,null,{"$f":"IFERROR(VLOOKUP($G$13,Menus!$A$2:$B$3,2,FALSE),0)","v":0},null,null,null,null,null,null,null,null,null,null,null,null,null,null,null,null,null,null,null,null,null,null,null,null,null,null,null,null,null,null,null,null,null,null,null,null,null,null,null,null,null,null,null,null,null,null,null,null,null,null,null,null,null,null,null,null,null,null,null,null,null,null,null,null,null,null,null,null,null,null,null,null,null,null,null,null,null,null,null,null,null,null,null,null,null,null,null,null,null,null,null,"02251",157,0]
["Scénario sylvicole extensif\n(pas de préparation de site, pas de régénération artificielle et pas d'éducation de peuplement)",null,null,null,null,{"$f":"IFERROR(VLOOKUP($G$14,Menus!$A$2:$B$3,2,FALSE),0)","v":0},null,null,null,null,null,null,null,null,null,null,null,null,null,null,null,null,null,null,null,null,null,null,null,null,null,null,null,null,null,null,null,null,null,null,null,null,null,null,null,null,null,null,null,null,null,null,null,null,null,null,null,null,null,null,null,null,null,null,null,null,null,null,null,null,null,null,null,null,null,null,null,null,null,null,null,null,null,null,null,null,null,null,null,null,null,null,null,null,null,null,null,"02351",158,0]
["Volume net par hectare ≤ 70 m³ pour toutes les essences ",null,null,null,null,{"$f":"IFERROR(VLOOKUP($G$15,Menus!$A$2:$B$3,2,FALSE),0)","v":0},null,null,null,null,null,null,null,null,null,null,null,null,null,null,null,null,null,null,null,null,null,null,null,null,null,null,null,null,null,null,null,null,null,null,null,null,null,null,null,null,null,null,null,null,null,null,null,null,null,null,null,null,null,null,null,null,null,null,null,null,null,null,null,null,null,null,null,null,null,null,null,null,null,null,null,null,null,null,null,null,null,null,null,null,null,null,null,null,null,null,null,"02352",180,0]
["Aide à l’aménagement des forêts résineuses de faibles rendement et qualité",null,null,null,null,null,null,null,null,null,null,null,null,null,null,null,null,null,null,null,null,null,null,null,null,null,null,null,null,null,null,null,null,null,null,null,null,null,null,null,null,null,null,null,null,null,null,null,null,null,null,null,null,null,null,null,null,null,null,null,null,null,null,null,null,null,null,null,null,null,null,null,null,null,null,null,null,null,null,null,null,null,null,null,null,null,null,null,null,null,null,null,null,null,null,null,null,"02452",182,0]
["Volume net récolté par hectare pour toutes les essences (m³/ha)\nLa valeur maximale est de 70m³/ha",null,null,null,null,null,null,null,null,null,null,null,null,null,null,null,null,null,null,null,null,null,null,null,null,null,null,null,null,null,null,null,null,null,null,null,null,null,null,null,null,null,null,null,null,null,null,null,null,null,null,null,null,null,null,null,null,null,null,null,null,null,null,null,null,null,null,null,null,null,null,null,null,null,null,null,null,null,null,null,null,null,null,null,null,null,null,null,null,null,null,null,null,null,null,null,null,"02651",184,200]
["Volume tige moyen récolté brut (m³/tige)\nLa valeur maximale est de 0,083m³/ha"]
["Superficie (hectare)",null,null,null,null,null,null,null,null,null,null,null,null,null,null,null,null,null,null,null,null,null,null,null,null,null,null,null,null,null,null,null,null,null,null,null,null,null,null,null,null,null,null,null,null,null,null,null,null,null,null,null,null,null,null,null,null,null,null,null,null,null,null,null,null,null,null,null,null,null,null,null,null,null,null,null,null,null,null,null,null,null,null,null,null,null,null,null,null,null,null,null,null,null,null,null,null,"02451",181,80]
["Résumé de l'aide à l’aménagement des forêts résineuses de faibles rendement et qualité",null,null,null,null,null,null,null,null,null,null,null,null,null,null,null,null,null,null,null,null,null,null,null,null,null,null,null,null,null,null,null,null,null,null,null,null,null,null,null,null,null,null,null,null,null,null,null,null,null,null,null,null,null,null,null,null,null,null,null,null,null,null,null,null,null,null,null,null,null,null,null,null,null,null,null,null,null,null,null,null,null,null,null,null,null,null,null,null,null,null,null,null,null,null,null,null,"06452",257,280]
["Aide finale ($/m3)",null,null,null,null,null,{"$f":"IFERROR(IF($G$18>Menus!$C$678,0,IF((Menus!$B$874*VLOOKUP(VALUE($G$9),Tableau,3,FALSE)*((Menus!$B$875*$G$17-Menus!$B$876)*$G$17+Menus!$B$877)*(Menus!$B$878*LN($G$18)-Menus!$B$879)*$F$13*$F$14*$F$15)<0,0,(Menus!$B$874*VLOOKUP(VALUE($G$9),Tableau,3,FALSE)*((Menus!$B$875*$G$17-Menus!$B$876)*$G$17+Menus!$B$877)*(Menus!$B$878*LN($G$18)-Menus!$B$879)*$F$13*$F$14*$F$15))),0)","v":0},null,null,null,null,null,null,null,null,null,null,null,null,null,null,null,null,null,null,null,null,null,null,null,null,null,null,null,null,null,null,null,null,null,null,null,null,null,null,null,null,null,null,null,null,null,null,null,null,null,null,null,null,null,null,null,null,null,null,null,null,null,null,null,null,null,null,null,null,null,null,null,null,null,null,null,null,null,null,null,null,null,null,null,null,null,null,null,null,null,null,"07151",258,280]
["Aide finale ($/ha)",null,null,null,null,null,{"$f":"IFERROR(IF(IF($G$17>Menus!$C$677,0,$G$21*$G$17)>VLOOKUP(VALUE($G$9),Tableau,2,FALSE),VLOOKUP(VALUE($G$9),Tableau,2,FALSE),IF($G$17>Menus!$C$677,0,$G$21*$G$17)),0)","v":0},null,null,null,null,null,null,null,null,null,null,null,null,null,null,null,null,null,null,null,null,null,null,null,null,null,null,null,null,null,null,null,null,null,null,null,null,null,null,null,null,null,null,null,null,null,null,null,null,null,null,null,null,null,null,null,null,null,null,null,null,null,null,null,null,null,null,null,null,null,null,null,null,null,null,null,null,null,null,null,null,null,null,null,null,null,null,null,null,null,null,"07152",259,280]
["Aide finale ($)",null,null,null,null,null,{"$f":"IFERROR(ROUND($G$22*$G$19,2),0)","v":0},null,null,null,null,null,null,null,null,null,null,null,null,null,null,null,null,null,null,null,null,null,null,null,null,null,null,null,null,null,null,null,null,null,null,null,null,null,null,null,null,null,null,null,null,null,null,null,null,null,null,null,null,null,null,null,null,null,null,null,null,null,null,null,null,null,null,null,null,null,null,null,null,null,null,null,null,null,null,null,null,null,null,null,null,null,null,null,null,null,null,"07251",260,280]
[null,null,null,null,null,null,null,null,null,null,null,null,null,null,null,null,null,null,null,null,null,null,null,null,null,null,null,null,null,null,null,null,null,null,null,null,null,null,null,null,null,null,null,null,null,null,null,null,null,null,null,null,null,null,null,null,null,null,null,null,null,null,null,null,null,null,null,null,null,null,null,null,null,null,null,null,null,null,null,null,null,null,null,null,null,null,null,null,null,null,null,null,null,null,null,null,null,"07351",261,280]
["Remarques",null,null,null,null,null,null,null,null,null,null,null,null,null,null,null,null,null,null,null,null,null,null,null,null,null,null,null,null,null,null,null,null,null,null,null,null,null,null,null,null,null,null,null,null,null,null,null,null,null,null,null,null,null,null,null,null,null,null,null,null,null,null,null,null,null,null,null,null,null,null,null,null,null,null,null,null,null,null,null,null,null,null,null,null,null,null,null,null,null,null,null,null,null,null,null,null,"07451",263,280]
[null,null,null,null,null,null,null,null,null,null,null,null,null,null,null,null,null,null,null,null,null,null,null,null,null,null,null,null,null,null,null,null,null,null,null,null,null,null,null,null,null,null,null,null,null,null,null,null,null,null,null,null,null,null,null,null,null,null,null,null,null,null,null,null,null,null,null,null,null,null,null,null,null,null,null,null,null,null,null,null,null,null,null,null,null,null,null,null,null,null,null,null,null,null,null,null,null,"08251",266,200]
["J'atteste que les renseignements fournis dans ce document afin de calculer l'aide supplémentaire sont complets et conformes à la vérité, au meilleur de mes connaissances.",null,null,null,null,null,null,null,null,null,null,null,null,null,null,null,null,null,null,null,null,null,null,null,null,null,null,null,null,null,null,null,null,null,null,null,null,null,null,null,null,null,null,null,null,null,null,null,null,null,null,null,null,null,null,null,null,null,null,null,null,null,null,null,null,null,null,null,null,null,null,null,null,null,null,null,null,null,null,null,null,null,null,null,null,null,null,null,null,null,null,null,null,null,null,null,null,"08665",276,280]
[null,null,null,null,null,null,null,null,null,null,null,null,null,null,null,null,null,null,null,null,null,null,null,null,null,null,null,null,null,null,null,null,null,null,null,null,null,null,null,null,null,null,null,null,null,null,null,null,null,null,null,null,null,null,null,null,null,null,null,null,null,null,null,null,null,null,null,null,null,null,null,null,null,null,null,null,null,null,null,null,null,null,null,null,null,null,null,null,null,null,null,null,null,null,null,null,null,"08666",277,280]
[null,null,null,null,null,null,null,null,null,null,null,null,null,null,null,null,null,null,null,null,null,null,null,null,null,null,null,null,null,null,null,null,null,null,null,null,null,null,null,null,null,null,null,null,null,null,null,null,null,null,null,null,null,null,null,null,null,null,null,null,null,null,null,null,null,null,null,null,null,null,null,null,null,null,null,null,null,null,null,null,null,null,null,null,null,null,null,null,null,null,null,null,null,null,null,null,null,"08751",278,280]
[null,null,null,null,null,null,null,null,null,null,null,null,null,null,null,null,null,null,null,null,null,null,null,null,null,null,null,null,null,null,null,null,null,null,null,null,null,null,null,null,null,null,null,null,null,null,null,null,null,null,null,null,null,null,null,null,null,null,null,null,null,null,null,null,null,null,null,null,null,null,null,null,null,null,null,null,null,null,null,null,null,null,null,null,null,null,null,null,null,null,null,null,null,null,null,null,null,"08762",279,280]
["Nom et prénom de l'ingénieur forestier",null,null,null,null,null,"No de permis",null,null,null,null,null,null,null,null,null,null,null,null,null,null,null,null,null,null,null,null,null,null,null,null,null,null,null,null,null,null,null,null,null,null,null,null,null,null,null,null,null,null,null,null,null,null,null,null,null,null,null,null,null,null,null,null,null,null,null,null,null,null,null,null,null,null,null,null,null,null,null,null,null,null,null,null,null,null,null,null,null,null,null,null,null,null,null,null,null,null,"08763",280,280]
[null,null,null,null,null,null,{"$f":"TODAY()","v":"2019-10-10"},null,null,null,null,null,null,null,null,null,null,null,null,null,null,null,null,null,null,null,null,null,null,null,null,null,null,null,null,null,null,null,null,null,null,null,null,null,null,null,null,null,null,null,null,null,null,null,null,null,null,null,null,null,null,null,null,null,null,null,null,null,null,null,null,null,null,null,null,null,null,null,null,null,null,null,null,null,null,null,null,null,null,null,null,null,null,null,null,null,null,"08764",281,280]
[null,null,null,null,null,null,null,null,null,null,null,null,null,null,null,null,null,null,null,null,null,null,null,null,null,null,null,null,null,null,null,null,null,null,null,null,null,null,null,null,null,null,null,null,null,null,null,null,null,null,null,null,null,null,null,null,null,null,null,null,null,null,null,null,null,null,null,null,null,null,null,null,null,null,null,null,null,null,null,null,null,null,null,null,null,null,null,null,null,null,null,null,null,null,null,null,null,"09351",282,280]
["Signature de l'ingénieur forestier",null,null,null,null,null,"Date (AAAA-MM-JJ)",null,null,null,null,null,null,null,null,null,null,null,null,null,null,null,null,null,null,null,null,null,null,null,null,null,null,null,null,null,null,null,null,null,null,null,null,null,null,null,null,null,null,null,null,null,null,null,null,null,null,null,null,null,null,null,null,null,null,null,null,null,null,null,null,null,null,null,null,null,null,null,null,null,null,null,null,null,null,null,null,null,null,null,null,null,null,null,null,null,null,"09352",283,280]
[null,null,null,null,null,null,null,null,null,null,null,null,null,null,null,null,null,null,null,null,null,null,null,null,null,null,null,null,null,null,null,null,null,null,null,null,null,null,null,null,null,null,null,null,null,null,null,null,null,null,null,null,null,null,null,null,null,null,null,null,null,null,null,null,null,null,null,null,null,null,null,null,null,null,null,null,null,null,null,null,null,null,null,null,null,null,null,null,null,null,null,null,null,null,null,null,null,null,455,0]
[null,null,null,null,null,null,null,null,null,null,null,null,null,null,null,null,null,null,null,null,null,null,null,null,null,null,null,null,null,null,null,null,null,null,null,null,null,null,null,null,null,null,null,null,null,null,null,null,null,null,null,null,null,null,null,null,null,null,null,null,null,null,null,null,null,null,null,null,null,null,null,null,null,null,null,null,null,null,null,null,null,null,null,null,null,null,null,null,null,null,null,null,null,null,null,null,null,null,456,0]
[null,null,null,null,null,null,null,null,null,null,null,null,null,null,null,null,null,null,null,null,null,null,null,null,null,null,null,null,null,null,null,null,null,null,null,null,null,null,null,null,null,null,null,null,null,null,null,null,null,null,null,null,null,null,null,null,null,null,null,null,null,null,null,null,null,null,null,null,null,null,null,null,null,null,null,null,null,null,null,null,null,null,null,null,null,null,null,null,null,null,null,null,null,null,null,null,null,null,457,0]
[null,null,null,null,null,null,null,null,null,null,null,null,null,null,null,null,null,null,null,null,null,null,null,null,null,null,null,null,null,null,null,null,null,null,null,null,null,null,null,null,null,null,null,null,null,null,null,null,null,null,null,null,null,null,null,null,null,null,null,null,null,null,null,null,null,null,null,null,null,null,null,null,null,null,null,null,null,null,null,null,null,null,null,null,null,null,null,null,null,null,null,null,null,null,null,null,null,null,458,60]
[null,null,null,null,null,null,null,null,null,null,null,null,null,null,null,null,null,null,null,null,null,null,null,null,null,null,null,null,null,null,null,null,null,null,null,null,null,null,null,null,null,null,null,null,null,null,null,null,null,null,null,null,null,null,null,null,null,null,null,null,null,null,null,null,null,null,null,null,null,null,null,null,null,null,null,null,null,null,null,null,null,null,null,null,null,null,null,null,null,null,null,null,null,null,null,null,null,null,459,60]
[null,null,null,null,null,null,null,null,null,null,null,null,null,null,null,null,null,null,null,null,null,null,null,null,null,null,null,null,null,null,null,null,null,null,null,null,null,null,null,null,null,null,null,null,null,null,null,null,null,null,null,null,null,null,null,null,null,null,null,null,null,null,null,null,null,null,null,null,null,null,null,null,null,null,null,null,null,null,null,null,null,null,null,null,null,null,null,null,null,null,null,null,null,null,null,null,null,null,460,200]
[null,null,null,null,null,null,null,null,null,null,null,null,null,null,null,null,null,null,null,null,null,null,null,null,null,null,null,null,null,null,null,null,null,null,null,null,null,null,null,null,null,null,null,null,null,null,null,null,null,null,null,null,null,null,null,null,null,null,null,null,null,null,null,null,null,null,null,null,null,null,null,null,null,null,null,null,null,null,null,null,null,null,null,null,null,null,null,null,null,null,null,null,null,null,null,null,null,null,461,240]
[null,null,null,null,null,null,null,null,null,null,null,null,null,null,null,null,null,null,null,null,null,null,null,null,null,null,null,null,null,null,null,null,null,null,null,null,null,null,null,null,null,null,null,null,null,null,null,null,null,null,null,null,null,null,null,null,null,null,null,null,null,null,null,null,null,null,null,null,null,null,null,null,null,null,null,null,null,null,null,null,null,null,null,null,null,null,null,null,null,null,null,null,null,null,null,null,null,null,551,0]
[null,null,null,null,null,null,null,null,null,null,null,null,null,null,null,null,null,null,null,null,null,null,null,null,null,null,null,null,null,null,null,null,null,null,null,null,null,null,null,null,null,null,null,null,null,null,null,null,null,null,null,null,null,null,null,null,null,null,null,null,null,null,null,null,null,null,null,null,null,null,null,null,null,null,null,null,null,null,null,null,null,null,null,null,null,null,null,null,null,null,null,null,null,null,null,null,null,null,650,0]
[null,null,null,null,null,null,null,null,null,null,null,null,null,null,null,null,null,null,null,null,null,null,null,null,null,null,null,null,null,null,null,null,null,null,null,null,null,null,null,null,null,null,null,null,null,null,null,null,null,null,null,null,null,null,null,null,null,null,null,null,null,null,null,null,null,null,null,null,null,null,null,null,null,null,null,null,null,null,null,null,null,null,null,null,null,null,null,null,null,null,null,null,null,null,null,null,null,null,651,40]
[null,null,null,null,null,null,null,null,null,null,null,null,null,null,null,null,null,null,null,null,null,null,null,null,null,null,null,null,null,null,null,null,null,null,null,null,null,null,null,null,null,null,null,null,null,null,null,null,null,null,null,null,null,null,null,null,null,null,null,null,null,null,null,null,null,null,null,null,null,null,null,null,null,null,null,null,null,null,null,null,null,null,null,null,null,null,null,null,null,null,null,null,null,null,null,null,null,null,652,200]
[null,null,null,null,null,null,null,null,null,null,null,null,null,null,null,null,null,null,null,null,null,null,null,null,null,null,null,null,null,null,null,null,null,null,null,null,null,null,null,null,null,null,null,null,null,null,null,null,null,null,null,null,null,null,null,null,null,null,null,null,null,null,null,null,null,null,null,null,null,null,null,null,null,null,null,null,null,null,null,null,null,null,null,null,null,null,null,null,null,null,null,null,null,null,null,null,null,null,653,140]
[null,null,null,null,null,null,null,null,null,null,null,null,null,null,null,null,null,null,null,null,null,null,null,null,null,null,null,null,null,null,null,null,null,null,null,null,null,null,null,null,null,null,null,null,null,null,null,null,null,null,null,null,null,null,null,null,null,null,null,null,null,null,null,null,null,null,null,null,null,null,null,null,null,null,null,null,null,null,null,null,null,null,null,null,null,null,null,null,null,null,null,null,null,null,null,null,null,null,654,200]
[null,null,null,null,null,null,null,null,null,null,null,null,null,null,null,null,null,null,null,null,null,null,null,null,null,null,null,null,null,null,null,null,null,null,null,null,null,null,null,null,null,null,null,null,null,null,null,null,null,null,null,null,null,null,null,null,null,null,null,null,null,null,null,null,null,null,null,null,null,null,null,null,null,null,null,null,null,null,null,null,null,null,null,null,null,null,null,null,null,null,null,null,null,null,null,null,null,null,655,40]
[null,null,null,null,null,null,null,null,null,null,null,null,null,null,null,null,null,null,null,null,null,null,null,null,null,null,null,null,null,null,null,null,null,null,null,null,null,null,null,null,null,null,null,null,null,null,null,null,null,null,null,null,null,null,null,null,null,null,null,null,null,null,null,null,null,null,null,null,null,null,null,null,null,null,null,null,null,null,null,null,null,null,null,null,null,null,null,null,null,null,null,null,null,null,null,null,null,null,656,140]
[null,null,null,null,null,null,null,null,null,null,null,null,null,null,null,null,null,null,null,null,null,null,null,null,null,null,null,null,null,null,null,null,null,null,null,null,null,null,null,null,null,null,null,null,null,null,null,null,null,null,null,null,null,null,null,null,null,null,null,null,null,null,null,null,null,null,null,null,null,null,null,null,null,null,null,null,null,null,null,null,null,null,null,null,null,null,null,null,null,null,null,null,null,null,null,null,null,null,657,140]
[null,null,null,null,null,null,null,null,null,null,null,null,null,null,null,null,null,null,null,null,null,null,null,null,null,null,null,null,null,null,null,null,null,null,null,null,null,null,null,null,null,null,null,null,null,null,null,null,null,null,null,null,null,null,null,null,null,null,null,null,null,null,null,null,null,null,null,null,null,null,null,null,null,null,null,null,null,null,null,null,null,null,null,null,null,null,null,null,null,null,null,null,null,null,null,null,null,null,658,220]
[null,null,null,null,null,null,null,null,null,null,null,null,null,null,null,null,null,null,null,null,null,null,null,null,null,null,null,null,null,null,null,null,null,null,null,null,null,null,null,null,null,null,null,null,null,null,null,null,null,null,null,null,null,null,null,null,null,null,null,null,null,null,null,null,null,null,null,null,null,null,null,null,null,null,null,null,null,null,null,null,null,null,null,null,null,null,null,null,null,null,null,null,null,null,null,null,null,null,659,280]
[null,null,null,null,null,null,null,null,null,null,null,null,null,null,null,null,null,null,null,null,null,null,null,null,null,null,null,null,null,null,null,null,null,null,null,null,null,null,null,null,null,null,null,null,null,null,null,null,null,null,null,null,null,null,null,null,null,null,null,null,null,null,null,null,null,null,null,null,null,null,null,null,null,null,null,null,null,null,null,null,null,null,null,null,null,null,null,null,null,null,null,null,null,null,null,null,null,null,660,160]
[null,null,null,null,null,null,null,null,null,null,null,null,null,null,null,null,null,null,null,null,null,null,null,null,null,null,null,null,null,null,null,null,null,null,null,null,null,null,null,null,null,null,null,null,null,null,null,null,null,null,null,null,null,null,null,null,null,null,null,null,null,null,null,null,null,null,null,null,null,null,null,null,null,null,null,null,null,null,null,null,null,null,null,null,null,null,null,null,null,null,null,null,null,null,null,null,null,null,661,40]
[null,null,null,null,null,null,null,null,null,null,null,null,null,null,null,null,null,null,null,null,null,null,null,null,null,null,null,null,null,null,null,null,null,null,null,null,null,null,null,null,null,null,null,null,null,null,null,null,null,null,null,null,null,null,null,null,null,null,null,null,null,null,null,null,null,null,null,null,null,null,null,null,null,null,null,null,null,null,null,null,null,null,null,null,null,null,null,null,null,null,null,null,null,null,null,null,null,null,662,0]
[null,null,null,null,null,null,null,null,null,null,null,null,null,null,null,null,null,null,null,null,null,null,null,null,null,null,null,null,null,null,null,null,null,null,null,null,null,null,null,null,null,null,null,null,null,null,null,null,null,null,null,null,null,null,null,null,null,null,null,null,null,null,null,null,null,null,null,null,null,null,null,null,null,null,null,null,null,null,null,null,null,null,null,null,null,null,null,null,null,null,null,null,null,null,null,null,null,null,750,0]
[null,null,null,null,null,null,null,null,null,null,null,null,null,null,null,null,null,null,null,null,null,null,null,null,null,null,null,null,null,null,null,null,null,null,null,null,null,null,null,null,null,null,null,null,null,null,null,null,null,null,null,null,null,null,null,null,null,null,null,null,null,null,null,null,null,null,null,null,null,null,null,null,null,null,null,null,null,null,null,null,null,null,null,null,null,null,null,null,null,null,null,null,null,null,null,null,null,null,751,40]
[null,null,null,null,null,null,null,null,null,null,null,null,null,null,null,null,null,null,null,null,null,null,null,null,null,null,null,null,null,null,null,null,null,null,null,null,null,null,null,null,null,null,null,null,null,null,null,null,null,null,null,null,null,null,null,null,null,null,null,null,null,null,null,null,null,null,null,null,null,null,null,null,null,null,null,null,null,null,null,null,null,null,null,null,null,null,null,null,null,null,null,null,null,null,null,null,null,null,752,220]
[null,null,null,null,null,null,null,null,null,null,null,null,null,null,null,null,null,null,null,null,null,null,null,null,null,null,null,null,null,null,null,null,null,null,null,null,null,null,null,null,null,null,null,null,null,null,null,null,null,null,null,null,null,null,null,null,null,null,null,null,null,null,null,null,null,null,null,null,null,null,null,null,null,null,null,null,null,null,null,null,null,null,null,null,null,null,null,null,null,null,null,null,null,null,null,null,null,null,753,280]
[null,null,null,null,null,null,null,null,null,null,null,null,null,null,null,null,null,null,null,null,null,null,null,null,null,null,null,null,null,null,null,null,null,null,null,null,null,null,null,null,null,null,null,null,null,null,null,null,null,null,null,null,null,null,null,null,null,null,null,null,null,null,null,null,null,null,null,null,null,null,null,null,null,null,null,null,null,null,null,null,null,null,null,null,null,null,null,null,null,null,null,null,null,null,null,null,null,null,754,80]
[null,null,null,null,null,null,null,null,null,null,null,null,null,null,null,null,null,null,null,null,null,null,null,null,null,null,null,null,null,null,null,null,null,null,null,null,null,null,null,null,null,null,null,null,null,null,null,null,null,null,null,null,null,null,null,null,null,null,null,null,null,null,null,null,null,null,null,null,null,null,null,null,null,null,null,null,null,null,null,null,null,null,null,null,null,null,null,null,null,null,null,null,null,null,null,null,null,null,755,60]
[null,null,null,null,null,null,null,null,null,null,null,null,null,null,null,null,null,null,null,null,null,null,null,null,null,null,null,null,null,null,null,null,null,null,null,null,null,null,null,null,null,null,null,null,null,null,null,null,null,null,null,null,null,null,null,null,null,null,null,null,null,null,null,null,null,null,null,null,null,null,null,null,null,null,null,null,null,null,null,null,null,null,null,null,null,null,null,null,null,null,null,null,null,null,null,null,null,null,756,260]
[null,null,null,null,null,null,null,null,null,null,null,null,null,null,null,null,null,null,null,null,null,null,null,null,null,null,null,null,null,null,null,null,null,null,null,null,null,null,null,null,null,null,null,null,null,null,null,null,null,null,null,null,null,null,null,null,null,null,null,null,null,null,null,null,null,null,null,null,null,null,null,null,null,null,null,null,null,null,null,null,null,null,null,null,null,null,null,null,null,null,null,null,null,null,null,null,null,null,757,260]
[null,null,null,null,null,null,null,null,null,null,null,null,null,null,null,null,null,null,null,null,null,null,null,null,null,null,null,null,null,null,null,null,null,null,null,null,null,null,null,null,null,null,null,null,null,null,null,null,null,null,null,null,null,null,null,null,null,null,null,null,null,null,null,null,null,null,null,null,null,null,null,null,null,null,null,null,null,null,null,null,null,null,null,null,null,null,null,null,null,null,null,null,null,null,null,null,null,null,758,280]
[null,null,null,null,null,null,null,null,null,null,null,null,null,null,null,null,null,null,null,null,null,null,null,null,null,null,null,null,null,null,null,null,null,null,null,null,null,null,null,null,null,null,null,null,null,null,null,null,null,null,null,null,null,null,null,null,null,null,null,null,null,null,null,null,null,null,null,null,null,null,null,null,null,null,null,null,null,null,null,null,null,null,null,null,null,null,null,null,null,null,null,null,null,null,null,null,null,null,850,0]
[null,null,null,null,null,null,null,null,null,null,null,null,null,null,null,null,null,null,null,null,null,null,null,null,null,null,null,null,null,null,null,null,null,null,null,null,null,null,null,null,null,null,null,null,null,null,null,null,null,null,null,null,null,null,null,null,null,null,null,null,null,null,null,null,null,null,null,null,null,null,null,null,null,null,null,null,null,null,null,null,null,null,null,null,null,null,null,null,null,null,null,null,null,null,null,null,null,null,851,0]
[null,null,null,null,null,null,null,null,null,null,null,null,null,null,null,null,null,null,null,null,null,null,null,null,null,null,null,null,null,null,null,null,null,null,null,null,null,null,null,null,null,null,null,null,null,null,null,null,null,null,null,null,null,null,null,null,null,null,null,null,null,null,null,null,null,null,null,null,null,null,null,null,null,null,null,null,null,null,null,null,null,null,null,null,null,null,null,null,null,null,null,null,null,null,null,null,null,null,852,0]
[null,null,null,null,null,null,null,null,null,null,null,null,null,null,null,null,null,null,null,null,null,null,null,null,null,null,null,null,null,null,null,null,null,null,null,null,null,null,null,null,null,null,null,null,null,null,null,null,null,null,null,null,null,null,null,null,null,null,null,null,null,null,null,null,null,null,null,null,null,null,null,null,null,null,null,null,null,null,null,null,null,null,null,null,null,null,null,null,null,null,null,null,null,null,null,null,null,null,853,0]
[null,null,null,null,null,null,null,null,null,null,null,null,null,null,null,null,null,null,null,null,null,null,null,null,null,null,null,null,null,null,null,null,null,null,null,null,null,null,null,null,null,null,null,null,null,null,null,null,null,null,null,null,null,null,null,null,null,null,null,null,null,null,null,null,null,null,null,null,null,null,null,null,null,null,null,null,null,null,null,null,null,null,null,null,null,null,null,null,null,null,null,null,null,null,null,null,null,null,854,0]
[null,null,null,null,null,null,null,null,null,null,null,null,null,null,null,null,null,null,null,null,null,null,null,null,null,null,null,null,null,null,null,null,null,null,null,null,null,null,null,null,null,null,null,null,null,null,null,null,null,null,null,null,null,null,null,null,null,null,null,null,null,null,null,null,null,null,null,null,null,null,null,null,null,null,null,null,null,null,null,null,null,null,null,null,null,null,null,null,null,null,null,null,null,null,null,null,null,null,855,0]
[null,null,null,null,null,null,null,null,null,null,null,null,null,null,null,null,null,null,null,null,null,null,null,null,null,null,null,null,null,null,null,null,null,null,null,null,null,null,null,null,null,null,null,null,null,null,null,null,null,null,null,null,null,null,null,null,null,null,null,null,null,null,null,null,null,null,null,null,null,null,null,null,null,null,null,null,null,null,null,null,null,null,null,null,null,null,null,null,null,null,null,null,null,null,null,null,null,null,856,60]
[null,null,null,null,null,null,null,null,null,null,null,null,null,null,null,null,null,null,null,null,null,null,null,null,null,null,null,null,null,null,null,null,null,null,null,null,null,null,null,null,null,null,null,null,null,null,null,null,null,null,null,null,null,null,null,null,null,null,null,null,null,null,null,null,null,null,null,null,null,null,null,null,null,null,null,null,null,null,null,null,null,null,null,null,null,null,null,null,null,null,null,null,null,null,null,null,null,null,857,80]
[null,null,null,null,null,null,null,null,null,null,null,null,null,null,null,null,null,null,null,null,null,null,null,null,null,null,null,null,null,null,null,null,null,null,null,null,null,null,null,null,null,null,null,null,null,null,null,null,null,null,null,null,null,null,null,null,null,null,null,null,null,null,null,null,null,null,null,null,null,null,null,null,null,null,null,null,null,null,null,null,null,null,null,null,null,null,null,null,null,null,null,null,null,null,null,null,null,null,858,100]
[null,null,null,null,null,null,null,null,null,null,null,null,null,null,null,null,null,null,null,null,null,null,null,null,null,null,null,null,null,null,null,null,null,null,null,null,null,null,null,null,null,null,null,null,null,null,null,null,null,null,null,null,null,null,null,null,null,null,null,null,null,null,null,null,null,null,null,null,null,null,null,null,null,null,null,null,null,null,null,null,null,null,null,null,null,null,null,null,null,null,null,null,null,null,null,null,null,null,859,180]
[null,null,null,null,null,null,null,null,null,null,null,null,null,null,null,null,null,null,null,null,null,null,null,null,null,null,null,null,null,null,null,null,null,null,null,null,null,null,null,null,null,null,null,null,null,null,null,null,null,null,null,null,null,null,null,null,null,null,null,null,null,null,null,null,null,null,null,null,null,null,null,null,null,null,null,null,null,null,null,null,null,null,null,null,null,null,null,null,null,null,null,null,null,null,null,null,null,null,860,260]
[null,null,null,null,null,null,null,null,null,null,null,null,null,null,null,null,null,null,null,null,null,null,null,null,null,null,null,null,null,null,null,null,null,null,null,null,null,null,null,null,null,null,null,null,null,null,null,null,null,null,null,null,null,null,null,null,null,null,null,null,null,null,null,null,null,null,null,null,null,null,null,null,null,null,null,null,null,null,null,null,null,null,null,null,null,null,null,null,null,null,null,null,null,null,null,null,null,null,861,240]
[null,null,null,null,null,null,null,null,null,null,null,null,null,null,null,null,null,null,null,null,null,null,null,null,null,null,null,null,null,null,null,null,null,null,null,null,null,null,null,null,null,null,null,null,null,null,null,null,null,null,null,null,null,null,null,null,null,null,null,null,null,null,null,null,null,null,null,null,null,null,null,null,null,null,null,null,null,null,null,null,null,null,null,null,null,null,null,null,null,null,null,null,null,null,null,null,null,null,862,280]
[null,null,null,null,null,null,null,null,null,null,null,null,null,null,null,null,null,null,null,null,null,null,null,null,null,null,null,null,null,null,null,null,null,null,null,null,null,null,null,null,null,null,null,null,null,null,null,null,null,null,null,null,null,null,null,null,null,null,null,null,null,null,null,null,null,null,null,null,null,null,null,null,null,null,null,null,null,null,null,null,null,null,null,null,null,null,null,null,null,null,null,null,null,null,null,null,null,null,863,280]
[null,null,null,null,null,null,null,null,null,null,null,null,null,null,null,null,null,null,null,null,null,null,null,null,null,null,null,null,null,null,null,null,null,null,null,null,null,null,null,null,null,null,null,null,null,null,null,null,null,null,null,null,null,null,null,null,null,null,null,null,null,null,null,null,null,null,null,null,null,null,null,null,null,null,null,null,null,null,null,null,null,null,null,null,null,null,null,null,null,null,null,null,null,null,null,null,null,null,864,280]
[null,null,null,null,null,null,null,null,null,null,null,null,null,null,null,null,null,null,null,null,null,null,null,null,null,null,null,null,null,null,null,null,null,null,null,null,null,null,null,null,null,null,null,null,null,null,null,null,null,null,null,null,null,null,null,null,null,null,null,null,null,null,null,null,null,null,null,null,null,null,null,null,null,null,null,null,null,null,null,null,null,null,null,null,null,null,null,null,null,null,null,null,null,null,null,null,null,null,865,280]
[null,null,null,null,null,null,null,null,null,null,null,null,null,null,null,null,null,null,null,null,null,null,null,null,null,null,null,null,null,null,null,null,null,null,null,null,null,null,null,null,null,null,null,null,null,null,null,null,null,null,null,null,null,null,null,null,null,null,null,null,null,null,null,null,null,null,null,null,null,null,null,null,null,null,null,null,null,null,null,null,null,null,null,null,null,null,null,null,null,null,null,null,null,null,null,null,null,null,866,280]
[null,null,null,null,null,null,null,null,null,null,null,null,null,null,null,null,null,null,null,null,null,null,null,null,null,null,null,null,null,null,null,null,null,null,null,null,null,null,null,null,null,null,null,null,null,null,null,null,null,null,null,null,null,null,null,null,null,null,null,null,null,null,null,null,null,null,null,null,null,null,null,null,null,null,null,null,null,null,null,null,null,null,null,null,null,null,null,null,null,null,null,null,null,null,null,null,null,null,867,280]
[null,null,null,null,null,null,null,null,null,null,null,null,null,null,null,null,null,null,null,null,null,null,null,null,null,null,null,null,null,null,null,null,null,null,null,null,null,null,null,null,null,null,null,null,null,null,null,null,null,null,null,null,null,null,null,null,null,null,null,null,null,null,null,null,null,null,null,null,null,null,null,null,null,null,null,null,null,null,null,null,null,null,null,null,null,null,null,null,null,null,null,null,null,null,null,null,null,null,868,280]
[null,null,null,null,null,null,null,null,null,null,null,null,null,null,null,null,null,null,null,null,null,null,null,null,null,null,null,null,null,null,null,null,null,null,null,null,null,null,null,null,null,null,null,null,null,null,null,null,null,null,null,null,null,null,null,null,null,null,null,null,null,null,null,null,null,null,null,null,null,null,null,null,null,null,null,null,null,null,null,null,null,null,null,null,null,null,null,null,null,null,null,null,null,null,null,null,null,null,869,280]
[null,null,null,null,null,null,null,null,null,null,null,null,null,null,null,null,null,null,null,null,null,null,null,null,null,null,null,null,null,null,null,null,null,null,null,null,null,null,null,null,null,null,null,null,null,null,null,null,null,null,null,null,null,null,null,null,null,null,null,null,null,null,null,null,null,null,null,null,null,null,null,null,null,null,null,null,null,null,null,null,null,null,null,null,null,null,null,null,null,null,null,null,null,null,null,null,null,null,870,280]
[null,null,null,null,null,null,null,null,null,null,null,null,null,null,null,null,null,null,null,null,null,null,null,null,null,null,null,null,null,null,null,null,null,null,null,null,null,null,null,null,null,null,null,null,null,null,null,null,null,null,null,null,null,null,null,null,null,null,null,null,null,null,null,null,null,null,null,null,null,null,null,null,null,null,null,null,null,null,null,null,null,null,null,null,null,null,null,null,null,null,null,null,null,null,null,null,null,null,871,280]
[null,null,null,null,null,null,null,null,null,null,null,null,null,null,null,null,null,null,null,null,null,null,null,null,null,null,null,null,null,null,null,null,null,null,null,null,null,null,null,null,null,null,null,null,null,null,null,null,null,null,null,null,null,null,null,null,null,null,null,null,null,null,null,null,null,null,null,null,null,null,null,null,null,null,null,null,null,null,null,null,null,null,null,null,null,null,null,null,null,null,null,null,null,null,null,null,null,null,872,280]
[null,null,null,null,null,null,null,null,null,null,null,null,null,null,null,null,null,null,null,null,null,null,null,null,null,null,null,null,null,null,null,null,null,null,null,null,null,null,null,null,null,null,null,null,null,null,null,null,null,null,null,null,null,null,null,null,null,null,null,null,null,null,null,null,null,null,null,null,null,null,null,null,null,null,null,null,null,null,null,null,null,null,null,null,null,null,null,null,null,null,null,null,null,null,null,null,null,null,873,280]
[null,null,null,null,null,null,null,null,null,null,null,null,null,null,null,null,null,null,null,null,null,null,null,null,null,null,null,null,null,null,null,null,null,null,null,null,null,null,null,null,null,null,null,null,null,null,null,null,null,null,null,null,null,null,null,null,null,null,null,null,null,null,null,null,null,null,null,null,null,null,null,null,null,null,null,null,null,null,null,null,null,null,null,null,null,null,null,null,null,null,null,null,null,null,null,null,null,null,874,280]
[null,null,null,null,null,null,null,null,null,null,null,null,null,null,null,null,null,null,null,null,null,null,null,null,null,null,null,null,null,null,null,null,null,null,null,null,null,null,null,null,null,null,null,null,null,null,null,null,null,null,null,null,null,null,null,null,null,null,null,null,null,null,null,null,null,null,null,null,null,null,null,null,null,null,null,null,null,null,null,null,null,null,null,null,null,null,null,null,null,null,null,null,null,null,null,null,null,null,875,280]
[null,null,null,null,null,null,null,null,null,null,null,null,null,null,null,null,null,null,null,null,null,null,null,null,null,null,null,null,null,null,null,null,null,null,null,null,null,null,null,null,null,null,null,null,null,null,null,null,null,null,null,null,null,null,null,null,null,null,null,null,null,null,null,null,null,null,null,null,null,null,null,null,null,null,null,null,null,null,null,null,null,null,null,null,null,null,null,null,null,null,null,null,null,null,null,null,null,null,876,280]
[null,null,null,null,null,null,null,null,null,null,null,null,null,null,null,null,null,null,null,null,null,null,null,null,null,null,null,null,null,null,null,null,null,null,null,null,null,null,null,null,null,null,null,null,null,null,null,null,null,null,null,null,null,null,null,null,null,null,null,null,null,null,null,null,null,null,null,null,null,null,null,null,null,null,null,null,null,null,null,null,null,null,null,null,null,null,null,null,null,null,null,null,null,null,null,null,null,null,877,280]
[null,null,null,null,null,null,null,null,null,null,null,null,null,null,null,null,null,null,null,null,null,null,null,null,null,null,null,null,null,null,null,null,null,null,null,null,null,null,null,null,null,null,null,null,null,null,null,null,null,null,null,null,null,null,null,null,null,null,null,null,null,null,null,null,null,null,null,null,null,null,null,null,null,null,null,null,null,null,null,null,null,null,null,null,null,null,null,null,null,null,null,null,null,null,null,null,null,null,878,280]
[null,null,null,null,null,null,null,null,null,null,null,null,null,null,null,null,null,null,null,null,null,null,null,null,null,null,null,null,null,null,null,null,null,null,null,null,null,null,null,null,null,null,null,null,null,null,null,null,null,null,null,null,null,null,null,null,null,null,null,null,null,null,null,null,null,null,null,null,null,null,null,null,null,null,null,null,null,null,null,null,null,null,null,null,null,null,null,null,null,null,null,null,null,null,null,null,null,null,879,280]
[null,null,null,null,null,null,null,null,null,null,null,null,null,null,null,null,null,null,null,null,null,null,null,null,null,null,null,null,null,null,null,null,null,null,null,null,null,null,null,null,null,null,null,null,null,null,null,null,null,null,null,null,null,null,null,null,null,null,null,null,null,null,null,null,null,null,null,null,null,null,null,null,null,null,null,null,null,null,null,null,null,null,null,null,null,null,null,null,null,null,null,null,null,null,null,null,null,null,880,280]
[null,null,null,null,null,null,null,null,null,null,null,null,null,null,null,null,null,null,null,null,null,null,null,null,null,null,null,null,null,null,null,null,null,null,null,null,null,null,null,null,null,null,null,null,null,null,null,null,null,null,null,null,null,null,null,null,null,null,null,null,null,null,null,null,null,null,null,null,null,null,null,null,null,null,null,null,null,null,null,null,null,null,null,null,null,null,null,null,null,null,null,null,null,null,null,null,null,null,881,280]
[null,null,null,null,null,null,null,null,null,null,null,null,null,null,null,null,null,null,null,null,null,null,null,null,null,null,null,null,null,null,null,null,null,null,null,null,null,null,null,null,null,null,null,null,null,null,null,null,null,null,null,null,null,null,null,null,null,null,null,null,null,null,null,null,null,null,null,null,null,null,null,null,null,null,null,null,null,null,null,null,null,null,null,null,null,null,null,null,null,null,null,null,null,null,null,null,null,null,882,280]
[null,null,null,null,null,null,null,null,null,null,null,null,null,null,null,null,null,null,null,null,null,null,null,null,null,null,null,null,null,null,null,null,null,null,null,null,null,null,null,null,null,null,null,null,null,null,null,null,null,null,null,null,null,null,null,null,null,null,null,null,null,null,null,null,null,null,null,null,null,null,null,null,null,null,null,null,null,null,null,null,null,null,null,null,null,null,null,null,null,null,null,null,null,null,null,null,null,null,883,280]
[null,null,null,null,null,null,null,null,null,null,null,null,null,null,null,null,null,null,null,null,null,null,null,null,null,null,null,null,null,null,null,null,null,null,null,null,null,null,null,null,null,null,null,null,null,null,null,null,null,null,null,null,null,null,null,null,null,null,null,null,null,null,null,null,null,null,null,null,null,null,null,null,null,null,null,null,null,null,null,null,null,null,null,null,null,null,null,null,null,null,null,null,null,null,null,null,null,null,884,280]
[null,null,null,null,null,null,null,null,null,null,null,null,null,null,null,null,null,null,null,null,null,null,null,null,null,null,null,null,null,null,null,null,null,null,null,null,null,null,null,null,null,null,null,null,null,null,null,null,null,null,null,null,null,null,null,null,null,null,null,null,null,null,null,null,null,null,null,null,null,null,null,null,null,null,null,null,null,null,null,null,null,null,null,null,null,null,null,null,null,null,null,null,null,null,null,null,null,null,885,280]
[null,null,null,null,null,null,null,null,null,null,null,null,null,null,null,null,null,null,null,null,null,null,null,null,null,null,null,null,null,null,null,null,null,null,null,null,null,null,null,null,null,null,null,null,null,null,null,null,null,null,null,null,null,null,null,null,null,null,null,null,null,null,null,null,null,null,null,null,null,null,null,null,null,null,null,null,null,null,null,null,null,null,null,null,null,null,null,null,null,null,null,null,null,null,null,null,null,null,886,280]
[null,null,null,null,null,null,null,null,null,null,null,null,null,null,null,null,null,null,null,null,null,null,null,null,null,null,null,null,null,null,null,null,null,null,null,null,null,null,null,null,null,null,null,null,null,null,null,null,null,null,null,null,null,null,null,null,null,null,null,null,null,null,null,null,null,null,null,null,null,null,null,null,null,null,null,null,null,null,null,null,null,null,null,null,null,null,null,null,null,null,null,null,null,null,null,null,null,null,887,280]
[null,null,null,null,null,null,null,null,null,null,null,null,null,null,null,null,null,null,null,null,null,null,null,null,null,null,null,null,null,null,null,null,null,null,null,null,null,null,null,null,null,null,null,null,null,null,null,null,null,null,null,null,null,null,null,null,null,null,null,null,null,null,null,null,null,null,null,null,null,null,null,null,null,null,null,null,null,null,null,null,null,null,null,null,null,null,null,null,null,null,null,null,null,null,null,null,null,null,888,280]
[null,null,null,null,null,null,null,null,null,null,null,null,null,null,null,null,null,null,null,null,null,null,null,null,null,null,null,null,null,null,null,null,null,null,null,null,null,null,null,null,null,null,null,null,null,null,null,null,null,null,null,null,null,null,null,null,null,null,null,null,null,null,null,null,null,null,null,null,null,null,null,null,null,null,null,null,null,null,null,null,null,null,null,null,null,null,null,null,null,null,null,null,null,null,null,null,null,null,889,240]
[null,null,null,null,null,null,null,null,null,null,null,null,null,null,null,null,null,null,null,null,null,null,null,null,null,null,null,null,null,null,null,null,null,null,null,null,null,null,null,null,null,null,null,null,null,null,null,null,null,null,null,null,null,null,null,null,null,null,null,null,null,null,null,null,null,null,null,null,null,null,null,null,null,null,null,null,null,null,null,null,null,null,null,null,null,null,null,null,null,null,null,null,null,null,null,null,null,null,890,280]
[null,null,null,null,null,null,null,null,null,null,null,null,null,null,null,null,null,null,null,null,null,null,null,null,null,null,null,null,null,null,null,null,null,null,null,null,null,null,null,null,null,null,null,null,null,null,null,null,null,null,null,null,null,null,null,null,null,null,null,null,null,null,null,null,null,null,null,null,null,null,null,null,null,null,null,null,null,null,null,null,null,null,null,null,null,null,null,null,null,null,null,null,null,null,null,null,null,null,891,280]
[null,null,null,null,null,null,null,null,null,null,null,null,null,null,null,null,null,null,null,null,null,null,null,null,null,null,null,null,null,null,null,null,null,null,null,null,null,null,null,null,null,null,null,null,null,null,null,null,null,null,null,null,null,null,null,null,null,null,null,null,null,null,null,null,null,null,null,null,null,null,null,null,null,null,null,null,null,null,null,null,null,null,null,null,null,null,null,null,null,null,null,null,null,null,null,null,null,null,892,280]
[null,null,null,null,null,null,null,null,null,null,null,null,null,null,null,null,null,null,null,null,null,null,null,null,null,null,null,null,null,null,null,null,null,null,null,null,null,null,null,null,null,null,null,null,null,null,null,null,null,null,null,null,null,null,null,null,null,null,null,null,null,null,null,null,null,null,null,null,null,null,null,null,null,null,null,null,null,null,null,null,null,null,null,null,null,null,null,null,null,null,null,null,null,null,null,null,null,null,950,280]
[null,null,null,null,null,null,null,null,null,null,null,null,null,null,null,null,null,null,null,null,null,null,null,null,null,null,null,null,null,null,null,null,null,null,null,null,null,null,null,null,null,null,null,null,null,null,null,null,null,null,null,null,null,null,null,null,null,null,null,null,null,null,null,null,null,null,null,null,null,null,null,null,null,null,null,null,null,null,null,null,null,null,null,null,null,null,null,null,null,null,null,null,null,null,null,null,null,null,951,280]
[null,null,null,null,null,null,null,null,null,null,null,null,null,null,null,null,null,null,null,null,null,null,null,null,null,null,null,null,null,null,null,null,null,null,null,null,null,null,null,null,null,null,null,null,null,null,null,null,null,null,null,null,null,null,null,null,null,null,null,null,null,null,null,null,null,null,null,null,null,null,null,null,null,null,null,null,null,null,null,null,null,null,null,null,null,null,null,null,null,null,null,null,null,null,null,null,null,null,952,280]
[null,null,null,null,null,null,null,null,null,null,null,null,null,null,null,null,null,null,null,null,null,null,null,null,null,null,null,null,null,null,null,null,null,null,null,null,null,null,null,null,null,null,null,null,null,null,null,null,null,null,null,null,null,null,null,null,null,null,null,null,null,null,null,null,null,null,null,null,null,null,null,null,null,null,null,null,null,null,null,null,null,null,null,null,null,null,null,null,null,null,null,null,null,null,null,null,null,null,953,280]
[null,null,null,null,null,null,null,null,null,null,null,null,null,null,null,null,null,null,null,null,null,null,null,null,null,null,null,null,null,null,null,null,null,null,null,null,null,null,null,null,null,null,null,null,null,null,null,null,null,null,null,null,null,null,null,null,null,null,null,null,null,null,null,null,null,null,null,null,null,null,null,null,null,null,null,null,null,null,null,null,null,null,null,null,null,null,null,null,null,null,null,null,null,null,null,null,null,null,954,280]
[null,null,null,null,null,null,null,null,null,null,null,null,null,null,null,null,null,null,null,null,null,null,null,null,null,null,null,null,null,null,null,null,null,null,null,null,null,null,null,null,null,null,null,null,null,null,null,null,null,null,null,null,null,null,null,null,null,null,null,null,null,null,null,null,null,null,null,null,null,null,null,null,null,null,null,null,null,null,null,null,null,null,null,null,null,null,null,null,null,null,null,null,null,null,null,null,null,null,955,280]
[null,null,null,null,null,null,null,null,null,null,null,null,null,null,null,null,null,null,null,null,null,null,null,null,null,null,null,null,null,null,null,null,null,null,null,null,null,null,null,null,null,null,null,null,null,null,null,null,null,null,null,null,null,null,null,null,null,null,null,null,null,null,null,null,null,null,null,null,null,null,null,null,null,null,null,null,null,null,null,null,null,null,null,null,null,null,null,null,null,null,null,null,null,null,null,null,null,null,956,280]
[null,null,null,null,null,null,null,null,null,null,null,null,null,null,null,null,null,null,null,null,null,null,null,null,null,null,null,null,null,null,null,null,null,null,null,null,null,null,null,null,null,null,null,null,null,null,null,null,null,null,null,null,null,null,null,null,null,null,null,null,null,null,null,null,null,null,null,null,null,null,null,null,null,null,null,null,null,null,null,null,null,null,null,null,null,null,null,null,null,null,null,null,null,null,null,null,null,null,957,280]
[null,null,null,null,null,null,null,null,null,null,null,null,null,null,null,null,null,null,null,null,null,null,null,null,null,null,null,null,null,null,null,null,null,null,null,null,null,null,null,null,null,null,null,null,null,null,null,null,null,null,null,null,null,null,null,null,null,null,null,null,null,null,null,null,null,null,null,null,null,null,null,null,null,null,null,null,null,null,null,null,null,null,null,null,null,null,null,null,null,null,null,null,null,null,null,null,null,null,960,280]
[null,null,null,null,null,null,null,null,null,null,null,null,null,null,null,null,null,null,null,null,null,null,null,null,null,null,null,null,null,null,null,null,null,null,null,null,null,null,null,null,null,null,null,null,null,null,null,null,null,null,null,null,null,null,null,null,null,null,null,null,null,null,null,null,null,null,null,null,null,null,null,null,null,null,null,null,null,null,null,null,null,null,null,null,null,null,null,null,null,null,null,null,null,null,null,null,null,null,961,280]
[null,null,null,null,null,null,null,null,null,null,null,null,null,null,null,null,null,null,null,null,null,null,null,null,null,null,null,null,null,null,null,null,null,null,null,null,null,null,null,null,null,null,null,null,null,null,null,null,null,null,null,null,null,null,null,null,null,null,null,null,null,null,null,null,null,null,null,null,null,null,null,null,null,null,null,null,null,null,null,null,null,null,null,null,null,null,null,null,null,null,null,null,null,null,null,null,null,null,962,280]
[null,null,null,null,null,null,null,null,null,null,null,null,null,null,null,null,null,null,null,null,null,null,null,null,null,null,null,null,null,null,null,null,null,null,null,null,null,null,null,null,null,null,null,null,null,null,null,null,null,null,null,null,null,null,null,null,null,null,null,null,null,null,null,null,null,null,null,null,null,null,null,null,null,null,null,null,null,null,null,null,null,null,null,null,null,null,null,null,null,null,null,null,null,null,null,null,null,null,963,280]
[null,null,null,null,null,null,null,null,null,null,null,null,null,null,null,null,null,null,null,null,null,null,null,null,null,null,null,null,null,null,null,null,null,null,null,null,null,null,null,null,null,null,null,null,null,null,null,null,null,null,null,null,null,null,null,null,null,null,null,null,null,null,null,null,null,null,null,null,null,null,null,null,null,null,null,null,null,null,null,null,null,null,null,null,null,null,null,null,null,null,null,null,null,null,null,null,null,null,964,280]
[null,null,null,null,null,null,null,null,null,null,null,null,null,null,null,null,null,null,null,null,null,null,null,null,null,null,null,null,null,null,null,null,null,null,null,null,null,null,null,null,null,null,null,null,null,null,null,null,null,null,null,null,null,null,null,null,null,null,null,null,null,null,null,null,null,null,null,null,null,null,null,null,null,null,null,null,null,null,null,null,null,null,null,null,null,null,null,null,null,null,null,null,null,null,null,null,null,null,965,280]
[null,null,null,null,null,null,null,null,null,null,null,null,null,null,null,null,null,null,null,null,null,null,null,null,null,null,null,null,null,null,null,null,null,null,null,null,null,null,null,null,null,null,null,null,null,null,null,null,null,null,null,null,null,null,null,null,null,null,null,null,null,null,null,null,null,null,null,null,null,null,null,null,null,null,null,null,null,null,null,null,null,null,null,null,null,null,null,null,null,null,null,null,null,null,null,null,null,null,966,280]
[null,null,null,null,null,null,null,null,null,null,null,null,null,null,null,null,null,null,null,null,null,null,null,null,null,null,null,null,null,null,null,null,null,null,null,null,null,null,null,null,null,null,null,null,null,null,null,null,null,null,null,null,null,null,null,null,null,null,null,null,null,null,null,null,null,null,null,null,null,null,null,null,null,null,null,null,null,null,null,null,null,null,null,null,null,null,null,null,null,null,null,null,null,null,null,null,null,null,967,280]
[null,null,null,null,null,null,null,null,null,null,null,null,null,null,null,null,null,null,null,null,null,null,null,null,null,null,null,null,null,null,null,null,null,null,null,null,null,null,null,null,null,null,null,null,null,null,null,null,null,null,null,null,null,null,null,null,null,null,null,null,null,null,null,null,null,null,null,null,null,null,null,null,null,null,null,null,null,null,null,null,null,null,null,null,null,null,null,null,null,null,null,null,null,null,null,null,null,null,970,280]
[null,null,null,null,null,null,null,null,null,null,null,null,null,null,null,null,null,null,null,null,null,null,null,null,null,null,null,null,null,null,null,null,null,null,null,null,null,null,null,null,null,null,null,null,null,null,null,null,null,null,null,null,null,null,null,null,null,null,null,null,null,null,null,null,null,null,null,null,null,null,null,null,null,null,null,null,null,null,null,null,null,null,null,null,null,null,null,null,null,null,null,null,null,null,null,null,null,null,980,280]
[null,null,null,null,null,null,null,null,null,null,null,null,null,null,null,null,null,null,null,null,null,null,null,null,null,null,null,null,null,null,null,null,null,null,null,null,null,null,null,null,null,null,null,null,null,null,null,null,null,null,null,null,null,null,null,null,null,null,null,null,null,null,null,null,null,null,null,null,null,null,null,null,null,null,null,null,null,null,null,null,null,null,null,null,null,null,null,null,null,null,null,null,null,null,null,null,null,null,981,280]
[null,null,null,null,null,null,null,null,null,null,null,null,null,null,null,null,null,null,null,null,null,null,null,null,null,null,null,null,null,null,null,null,null,null,null,null,null,null,null,null,null,null,null,null,null,null,null,null,null,null,null,null,null,null,null,null,null,null,null,null,null,null,null,null,null,null,null,null,null,null,null,null,null,null,null,null,null,null,null,null,null,null,null,null,null,null,null,null,null,null,null,null,null,null,null,null,null,null,982,280]
[null,null,null,null,null,null,null,null,null,null,null,null,null,null,null,null,null,null,null,null,null,null,null,null,null,null,null,null,null,null,null,null,null,null,null,null,null,null,null,null,null,null,null,null,null,null,null,null,null,null,null,null,null,null,null,null,null,null,null,null,null,null,null,null,null,null,null,null,null,null,null,null,null,null,null,null,null,null,null,null,null,null,null,null,null,null,null,null,null,null,null,null,null,null,null,null,null,null,983,280]
[null,null,null,null,null,null,null,null,null,null,null,null,null,null,null,null,null,null,null,null,null,null,null,null,null,null,null,null,null,null,null,null,null,null,null,null,null,null,null,null,null,null,null,null,null,null,null,null,null,null,null,null,null,null,null,null,null,null,null,null,null,null,null,null,null,null,null,null,null,null,null,null,null,null,null,null,null,null,null,null,null,null,null,null,null,null,null,null,null,null,null,null,null,null,null,null,null,null,984,280]
[null,null,null,null,null,null,null,null,null,null,null,null,null,null,null,null,null,null,null,null,null,null,null,null,null,null,null,null,null,null,null,null,null,null,null,null,null,null,null,null,null,null,null,null,null,null,null,null,null,null,null,null,null,null,null,null,null,null,null,null,null,null,null,null,null,null,null,null,null,null,null,null,null,null,null,null,null,null,null,null,null,null,null,null,null,null,null,null,null,null,null,null,null,null,null,null,null,null,985,280]
[null,null,null,null,null,null,null,null,null,null,null,null,null,null,null,null,null,null,null,null,null,null,null,null,null,null,null,null,null,null,null,null,null,null,null,null,null,null,null,null,null,null,null,null,null,null,null,null,null,null,null,null,null,null,null,null,null,null,null,null,null,null,null,null,null,null,null,null,null,null,null,null,null,null,null,null,null,null,null,null,null,null,null,null,null,null,null,null,null,null,null,null,null,null,null,null,null,null,986,280]
[null,null,null,null,null,null,null,null,null,null,null,null,null,null,null,null,null,null,null,null,null,null,null,null,null,null,null,null,null,null,null,null,null,null,null,null,null,null,null,null,null,null,null,null,null,null,null,null,null,null,null,null,null,null,null,null,null,null,null,null,null,null,null,null,null,null,null,null,null,null,null,null,null,null,null,null,null,null,null,null,null,null,null,null,null,null,null,null,null,null,null,null,null,null,null,null,null,null,987,280]
[null,null,null,null,null,null,null,null,null,null,null,null,null,null,null,null,null,null,null,null,null,null,null,null,null,null,null,null,null,null,null,null,null,null,null,null,null,null,null,null,null,null,null,null,null,null,null,null,null,null,null,null,null,null,null,null,null,null,null,null,null,null,null,null,null,null,null,null,null,null,null,null,null,null,null,null,null,null,null,null,null,null,null,null,null,null,null,null,null,null,null,null,null,null,null,null,null,null,990,280]
[null,null,null,null,null,null,null,null,null,null,null,null,null,null,null,null,null,null,null,null,null,null,null,null,null,null,null,null,null,null,null,null,null,null,null,null,null,null,null,null,null,null,null,null,null,null,null,null,null,null,null,null,null,null,null,null,null,null,null,null,null,null,null,null,null,null,null,null,null,null,null,null,null,null,null,null,null,null,null,null,null,null,null,null,null,null,null,null,null,null,null,null,null,null,null,null,null,null,995,0]

{"sheet":"Carte - Admissibilité AFRFRQ","index":3,"n_rows":0,"n_cols":0,"rows_kept":0,"cut":false,"hidden":true,"merged":[]}

{"sheet":"Martelage","index":4,"n_rows":96,"n_cols":7,"rows_kept":96,"cut":false,"hidden":true,"merged":[[73,0,73,5],[76,0,76,4],[78,2,79,4],[66,0,66,6],[67,0,69,5],[67,6,69,6],[70,0,70,5],[71,0,72,5],[71,6,72,6],[65,0,65,6],[54,0,54,5],[55,0,55,5],[56,0,56,5],[57,0,57,5],[58,0,58,5],[59,0,59,5],[60,0,60,5],[61,0,61,5],[62,0,62,5],[63,0,63,6],[64,0,64,6],[53,0,53,5],[42,0,42,5],[43,0,43,5],[44,0,44,5],[45,0,45,5],[46,0,46,5],[47,0,47,5],[48,0,48,5],[49,0,49,5],[50,0,50,5],[51,0,51,6],[52,0,52,5],[41,0,41,5],[30,0,30,6],[31,0,31,5],[32,0,32,5],[33,0,33,5],[34,0,34,5],[35,0,35,6],[36,0,36,4],[37,0,37,4],[38,0,38,6],[39,0,39,6],[40,0,40,5],[14,0,14,6],[15,0,15,6],[16,0,16,6],[29,0,29,6],[18,0,18,6],[19,0,19,6],[20,1,20,5],[21,1,21,5],[22,1,22,3],[23,0,23,5],[24,0,24,6],[25,0,25,6],[26,0,26,6],[27,0,27,4],[28,0,28,4],[1,0,1,6],[87,3,87,4],[5,0,5,5],[0,0,0,6],[3,0,3,6],[4,0,4,5],[2,0,2,5],[17,0,17,5],[6,0,6,5],[7,0,7,5],[8,0,8,5],[9,0,9,5],[10,0,10,6],[11,0,11,5],[12,0,12,5],[13,0,13,5]]}
[]
["Annexe au calcul des taux des traitements non commerciaux 2019-2020          \nMartelage\nForêt publique"]
[" *** Veuillez saisir les informations dans les cellules blanches seulement ***",null,null,null,null,null,"Version 1 : 2019-10-09"]
["Identification"]
["Unité d'aménagement (UA)"]
["Secteur d'intervention"]
["Unité de compilation"]
["Numéro de la prescription"]
["Traitement (code DICA)"]
["Traitement (code RATF)"]
["Traitement de martelage à taux fixe ou variable"]
["Traitement",null,null,null,null,null,"Inscrire une valeur"]
["Taux de base",null,null,null,null,null,{"$f":"IFERROR((VLOOKUP($G$12,Menus!$A$923:$C$927,2,FALSE)),0)","v":0}]
["Unité de mesure",null,null,null,null,null,{"$f":"IFERROR((VLOOKUP($G$12,Menus!$A$923:$C$927,3,FALSE)),0)","v":"-"}]
["Taux d'exécution à déterminer selon la formule suivante"]
[{"$f":"IFERROR((VLOOKUP($G$12,'Majorations applicables'!$A$47:$B$48,2,FALSE)),\"\")","v":""}]
["Superficie"]
["Superficie du traitement (hectares)"]
[{"$f":"\"Valeurs spécifiques à remplir selon le traitement - \"&G12","v":"Valeurs spécifiques à remplir selon le traitement - Inscrire une valeur"}]
["Valeurs spécifiques à remplir selon le traitement - Martelage"]
["PF","Proportion de feuillus (Surface terrière des feuillus commerciaux par rapport à la surface terrière totale du peuplement)"]
["NbMSCROP","Nombre de priorité de récolte combinant MSCR et OP                                                       Valeur de 0 à 8 : MO-MP-SO-SP-CO-CP-RO-RP"]
["TC","Type de coupe",null,null,"Valeur",{"$f":"IFERROR((VLOOKUP($G$23,Menus!$A$929:$B$934,2,FALSE)),\"\")","v":""}]
["Taux par hectare calculé à partir de l'équation et des variables reliées à l'activité",null,null,null,null,null,{"$f":"IFERROR((('Calculs grille'!$K$6-('Calculs grille'!$K$7)*SUM($G$21)+('Calculs grille'!K8*SUM($G$22)))*SUM($F$23)),0)","v":0}]
[{"$f":"\"Majorations applicables à l'exécution - \"&$G$12","v":"Majorations applicables à l'exécution - Inscrire une valeur"}]
["H3 - D200"]
["Majoration pour l'hébergement et la distance du secteur d'intervention (H3 et D200)"]
["Hébergement (H3)",null,null,null,null,{"$f":"IF($G$28=\"\",\"\",IF($G$28=Menus!$A$937,Menus!$B$937,IF($G$28=Menus!$A$938,Menus!$B$938,IF($G$28=Menus!$A$939,Menus!$B$939,IF($G$28<=Menus!$B$938,$G$28,\"Max \"&TEXT(Menus!$B$938,\"0,0%\"))))))","v":""}]
["Distance du secteur d'intervention (D200)",null,null,null,null,{"$f":"IF($G$29=Menus!$A$942,Menus!$B$942,IF($G$29=Menus!$A$943,Menus!$B$943,\"\"))","v":""}]
["Vérification"]
["Vérification - Tous"]
["Délimitation des secteurs (taux par kilomètre délimité)"]
["Nombre de kilomètres délimités"]
["Inventaire après traitement (taux par placette inventoriée)"]
["Nombre de placettes inventoriées"]
["Vérification - Majoration pour l'hébergement et la distance du secteur d'intervention (H3 et D200)"]
["Hébergement (H3)",null,null,null,null,{"$f":"IF(G37=\"\",\"\",IF(G37=Menus!A937,Menus!B937,IF(G37=Menus!A938,Menus!B938,IF(G37=Menus!A939,Menus!B939,IF(G37<=0.091,G37,\"Max 9,1%\")))))","v":""}]
["Distance du secteur d'intervention (D200)",null,null,null,null,{"$f":"IF(G38=Menus!A942,Menus!B942,IF(G38=Menus!A943,Menus!B943,\"\"))","v":""}]
["Total"]
["Calculs -  Martelage"]
["Taux d'exécution de base",null,null,null,null,null,{"$f":"IFERROR($G$24,0)","v":0}]
["Taux H3",null,null,null,null,null,{"$f":"IFERROR(($G$41*$F$28),0)","v":0}]
["Taux D200",null,null,null,null,null,{"$f":"IFERROR(($G$41*$F$29),0)","v":0}]
["Taux exécution total et majoration(s) admissible(s)",null,null,null,null,null,{"$f":"IFERROR((ROUND(SUM($G$41:$G$43),2)),0)","v":0}]
["Taux vérification",null,null,null,null,null,{"$f":"IFERROR(((($G$32*$G$33)+($G$34*$G$35))/$G$18),0)","v":0}]
["Taux H3 et/ou D200",null,null,null,null,null,{"$f":"IFERROR(($G$45*SUM($F$37:$F$38)),0)","v":0}]
["Taux exécution et vérification total",null,null,null,null,null,{"$f":"IFERROR((ROUND(SUM($G$44:$G$46),2)),0)","v":0}]
["Superficie (hectares)",null,null,null,null,null,{"$f":"IFERROR($G$18,0)","v":0}]
["Total exécution",null,null,null,null,null,{"$f":"IFERROR(ROUND($G$44*$G$48,2),0)","v":0}]
["Total vérification",null,null,null,null,null,{"$f":"IFERROR(ROUND(SUM($G$45:$G$46)*$G$48,2),0)","v":0}]
["Grand total admissible",null,null,null,null,null,{"$f":"IFERROR(SUM($G$49:$G$50),0)","v":0}]
["Calculs - Martelage positif et négatif  - EC (résineux ou mixte résineux)"]
["Taux d'exécution de base",null,null,null,null,null,{"$f":"IFERROR($G$13,0)","v":0}]
["Taux H3",null,null,null,null,null,{"$f":"IFERROR(($G$53*$F$28),0)","v":0}]
["Taux D200",null,null,null,null,null,{"$f":"IFERROR(($G$53*$F$29),0)","v":0}]
["Taux exécution total et majoration(s) admissible(s)",null,null,null,null,null,{"$f":"IFERROR((ROUND(SUM($G$53:$G$55),2)),0)","v":0}]
["Taux vérification",null,null,null,null,null,{"$f":"IFERROR(((($G$32*$G$33)+($G$34*$G$35))/$G$18),0)","v":0}]
["Taux H3 et/ou D200",null,null,null,null,null,{"$f":"IFERROR(($G$57*SUM($F$37:$F$38)),0)","v":0}]
["Taux exécution et vérification total",null,null,null,null,null,{"$f":"IFERROR((ROUND(SUM($G$56:$G$58),2)),0)","v":0}]
["Superficie",null,null,null,null,null,{"$f":"IFERROR($G$18,0)","v":0}]
["Total exécution",null,null,null,null,null,{"$f":"IFERROR(ROUND($G$56*$G$60,2),0)","v":0}]
["Total vérification",null,null,null,null,null,{"$f":"IFERROR(ROUND(SUM($G$57:$G$58)*$G$60,2),0)","v":0}]
["Grand total admissible",null,null,null,null,null,{"$f":"IFERROR(SUM($G$61:$G$62),0)","v":0}]
[]
["Remarques"]
[]
["J'atteste que les renseignements fournis dans ce document afin de calculer le taux du traitement sont complets et conformes à la vérité, au meilleur de mes connaissances."]
[]
[]
[]
["Nom et prénom de l'ingénieur forestier",null,null,null,null,null,"No de permis"]
[null,null,null,null,null,null,{"$f":"TODAY()","v":"2019-10-10"}]
[]
["Signature de l'ingénieur forestier",null,null,null,null,null,"Date (AAAA-MM-JJ)"]
[]
[]
["Section réservée au suivi du contrat"]
[]
[null,"Numéro de la prescription :",{"$f":"IF($G$8<>\"\",$G$8,\"\")","v":""}]
[]
[null,"Numéro du contrat :"]
[null,"Numéro du projet :"]
[null,"U.G. :"]
[null,"MRC :"]
[null,"Code de traitement DICA :",{"$f":"IF($G$9<>\"\",$G$9,\"\")","v":""}]
[null,"Code de traitement RATF :",{"$f":"IF($G$10<>\"\",$G$10,\"\")","v":""}]
[null,"Type d'attribution : "]
[null,{"$f":"IFERROR(IF($D$88=Menus!$A$963,\"Taux AOP (avec vérif.) :\",IF($D$88=Menus!$A$964,\"Taux AOP (sans vérif.) :\",\"Taux AOP :\")),\"Taux AOP :\")","v":"Taux AOP :"},null,"Inscrire une valeur"]
[null,{"$f":"IFERROR(IF($D$88=Menus!$A$964,\"Taux Grille (sans vérif.) :\",\"Taux Grille (avec vérif.) :\"),\"Taux Grille (avec vérif.) :\")","v":"Taux Grille (avec vérif.) :"},{"$f":"IFERROR(IF(OR($D$88=\"\",$D$88=Menus!$A$965),VLOOKUP($G$12,RXF!$A$1:$G$33,3,FALSE),IF($D$88=Menus!$A$963,VLOOKUP($G$12,RXF!$A$1:$G$4,3,FALSE),IF($D$88=Menus!$A$964,VLOOKUP($G$12,RXF!$A$1:$G$4,4,FALSE)))),0)","v":0}]
[null,"Ratio AOP/Grille :",{"$f":"IF(AND($C$88<>\"\",$C$89>0),ROUND($C$88/$C$89,4),\"S/O\")","v":"S/O"}]
[null,"Grand total AOP :",{"$f":"IF(OR($C$88=\"\",$C$89=0),\"S/O\",IF(AND($C$88>0,OR($D$88=Menus!$A$963,$D$88=Menus!$A$965)),ROUND(VLOOKUP($G$12,RXF!$A$1:$G$4,5,FALSE)*$C$90,2),IF(AND($C$88>0,$D$88=Menus!$A$964),ROUND(VLOOKUP($G$12,RXF!$A$1:$G$4,7,FALSE)*$C$90,2))))","v":"S/O"}]
[null,"Nom de l'entrepreneur : "]
[null,"Numéro de fournisseur : "]
[null,"Date de début :"]
[null,"Date de fin :"]
[null,"Commentaires :"]

{"sheet":"→ Réductions zones-bandes ←","index":5,"n_rows":35,"n_cols":40,"rows_kept":35,"cut":false,"hidden":true,"merged":[[17,11,17,12],[0,0,0,26],[3,0,3,1],[4,0,5,1],[7,0,7,1],[11,1,11,9],[11,22,11,36],[12,44,13,48],[14,13,14,16],[14,39,14,42],[15,11,15,12],[16,11,16,12],[38,30,38,33],[18,11,18,12],[18,31,18,32],[29,23,29,24],[29,25,29,26],[29,27,29,28],[29,29,29,32],[29,33,29,35],[33,1,33,15],[33,26,33,30],[34,26,35,30],[36,18,36,20]]}
["Coupes partielles : exemples de calculs de réductions pour bandes ou zones non traitées"]
[]
["Définition des termes utilisés dans la feuille de calcul :"]
["Bandes* :",null,"Forme étroite et allongée donnée par une coupe qui traverse toute la largeur ou la longueur d'un peuplement ou d'un secteur d'intervention"]
[null,null,"Note 1 : Une bande peut être coupée totalement, coupée partiellement ou résiduelle (non coupée)"]
[null,null,"Note 2 : La largeur d'une bande équivaut minimalement à la demi-hauteur d'un arbre mature (généralement, 10 mètres et plus)"]
[null,null,"*Inspiré du glossaire du Guide sylvicole du Québec"]
["Zones :",null,"Même définition que le terme bande à l'exception du non-respect de la largeur minimale (moins de 10 mètres)"]
[]
["1er cas : Coupe progressive uniforme (avec zones non traitées de moins de 10 mètres de largeur)",null,null,null,null,null,null,null,null,null,null,null,null,null,null,null,null,null,null,null,null,"2e cas : Coupe progressive par bandes (plus de 10 mètres de largeur)"]
[]
[]
[]
[]
[]
[null,null,null,null,null,null,null,null,null,null,null,"LP",null,"Largeur de la coupe partielle, un côté seulement (5 m)",null,null,null,null,null,null,null,null,null,null,null,null,null,null,null,null,null,null,null,null,null,null,null,null,"LP","Largeur de la coupe partielle, un côté seulement (5 m)"]
[null,null,null,null,null,null,null,null,null,null,null,"SE",null,"Sentier de débardage (5 m)",null,null,null,null,null,null,null,null,null,null,null,null,null,null,null,null,null,null,null,null,null,null,null,null,"SE","Sentier de débardage (5 m)"]
[null,null,null,null,null,null,null,null,null,null,null,"ZNT",null,"Zone non traitée (5 m)",null,null,null,null,null,null,null,null,null,null,null,null,null,null,null,null,null,null,null,null,null,null,null,null,"ZNT","Bande non traitée (15 m)"]
[null,null,null,"5m       5m",null,"5m       5m",null,"5m       5m",null,null,null,null,null,"Zone ou bande entièrement récoltée (0 m, si > 0 m, ajouter à la largeur du sentier)",null,null,null,null,null,null,null,null,null,null,null,"5m","5m",null,null,"5m",null,"5m",null,null,null,null,null,null,null,"Zone ou bande entièrement récoltée (0 m, si > 0 m, ajouter à la largeur du sentier)"]
[]
[]
[null,null,null,null,null,null,null,null,null,null,null,"LP : Largeur de la coupe partielle, un côté seulement (m) : 5 m",null,null,null,null,null,null,null,null,null,null,null,null,null,null,null,null,null,null,null,null,null,null,null,null,null,null,"LP : Largeur de la coupe partielle, un côté seulement (m) : 5 m"]
[null,null,null,null,null,null,null,null,null,null,null,"SE : Largeur du sentier de débardage (m) : 5 m",null,null,null,null,null,null,null,null,null,null,null,null,null,null,null,null,null,null,null,null,null,null,null,null,null,null,"SE : Largeur du sentier de débardage (m) : 5 m"]
[null,null,null,null,null,null,null,null,null,null,null,"ZNT : Largeur de la zone ou bande non traitée (m) : 5 m",null,null,null,null,null,null,null,null,null,null,null,null,null,null,null,null,null,null,null,null,null,null,null,null,null,null,"ZNT : Largeur de la zone ou bande non traitée (m) : 15 m"]
[null,null,null,null,null,null,null,null,null,null,null,"Résultat : réduction du taux de 10%",null,null,null,null,null,null,null,null,null,null,null,null,null,null,null,null,null,null,null,null,null,null,null,null,null,null,"Résultat : réduction du taux de 30%"]
[]
[]
[]
[]
[null,null,"5m","I--15 m--I","5m","I--15 m--I","5m","I--15 m--I","5m",null,null,null,null,null,null,null,null,null,null,null,null,null,null,"15 m",null,"I-----15 m-----I",null,"15 m",null,"I-----15 m-----I",null,null,null,"15 m"]
[]
[]
[]
[null,null,null,null,null,null,null,null,null,null,null,null,null,null,null,null,null,null,null,null,null,null,null,null,null,null,"Calcul de la réduction"]
[null,null,null,null,null,null,null,null,null,null,null,null,null,null,null,null,null,null,null,null,null,null,null,null,null,null,"À inscrire dans la feuille de calcul : cellules G50, G51 et G52"]

{"sheet":"→ Coupes sans investissement ←","index":6,"n_rows":51,"n_cols":40,"rows_kept":51,"cut":false,"hidden":true,"merged":[[14,39,14,42],[0,0,0,26],[3,0,3,1],[4,0,5,1],[7,0,7,1],[11,22,11,36],[15,4,18,16],[18,31,18,32],[20,31,20,32],[29,23,29,24],[29,25,29,26],[29,27,29,28],[29,29,29,32],[50,23,50,35],[29,33,29,35],[32,22,32,36],[35,39,35,42],[36,4,39,16],[39,31,39,32],[41,31,41,32]]}
["Coupes partielles : exemples de calculs de réductions pour bandes ou zones non traitées"]
[]
["Définition des termes utilisés dans la feuille de calcul :"]
["Bandes* :",null,"Forme étroite et allongée donnée par une coupe qui traverse toute la largeur ou la longueur d'un peuplement ou d'un secteur d'intervention"]
[null,null,"Note 1 : Une bande peut être coupée totalement, coupée partiellement ou résiduelle (non coupée)"]
[null,null,"Note 2 : La largeur d'une bande équivaut minimalement à la demi-hauteur d'un arbre mature (généralement, 10 mètres et plus)"]
[null,null,"*Inspiré du glossaire du Guide sylvicole du Québec"]
["Zones :",null,"Même définition que le terme bande à l'exception du non-respect de la largeur minimale (moins de 10 mètres)"]
[]
[]
[null,null,null,null,null,null,null,null,null,null,null,null,null,null,null,null,null,null,null,null,null,"Coupe totale par bandes alternes (plus de 10 mètres de largeur)"]
[]
[]
[]
[]
[null,null,null,null,"Aucun investissement, aucune coupe partielle",null,null,null,null,null,null,null,null,null,null,null,null,null,null,null,null,null,null,null,null,null,null,null,null,null,null,null,null,null,null,null,null,null,null,"Bande entièrement récoltée (15m)"]
[null,null,null,null,null,null,null,null,null,null,null,null,null,null,null,null,null,null,null,null,null,null,null,null,null,null,null,null,null,null,null,null,null,null,null,null,null,null,null,"Bande non traitée (15m)"]
[null,null,null,null,null,null,null,null,null,null,null,null,null,null,null,null,null,null,null,null,null,null,null,null,null,null,null,null,null,null,null,null,null,null,null,null,null,null,null,"Sentier de débardage"]
[]
[]
[null,null,null,null,null,null,null,null,null,null,null,null,null,null,null,null,null,null,null,null,null,null,null,null,null,"5m","5m",null,null,"5m",null,"5m",null,null,null,null,null,null,"LP : Largeur de la coupe partielle, un côté seulement (m) : 0 m"]
[null,null,null,null,null,null,null,null,null,null,null,null,null,null,null,null,null,null,null,null,null,null,null,null,null,null,null,null,null,null,null,null,null,null,null,null,null,null,"SE : Largeur du sentier de débardage (m) : 5 m"]
[null,null,null,null,null,null,null,null,null,null,null,null,null,null,null,null,null,null,null,null,null,null,null,null,null,null,null,null,null,null,null,null,null,null,null,null,null,null,"ZNT : Largeur de la zone ou bande non traitée (m) : 15 m"]
[null,null,null,null,null,null,null,null,null,null,null,null,null,null,null,null,null,null,null,null,null,null,null,null,null,null,null,null,null,null,null,null,null,null,null,null,null,null,"Résultat : non financé"]
[]
[]
[]
[]
[]
[null,null,null,null,null,null,null,null,null,null,null,null,null,null,null,null,null,null,null,null,null,null,null,"15 m",null,"I-----15 m-----I",null,"15 m",null,"I-----15 m-----I",null,null,null,"15 m"]
[]
[null,null,null,null,null,null,null,null,null,null,null,null,null,null,null,null,null,null,null,null,null,"Coupe totale par trouées"]
[]
[]
[]
[]
[null,null,null,null,"Non financé, aucune coupe partielle",null,null,null,null,null,null,null,null,null,null,null,null,null,null,null,null,null,null,null,null,null,null,null,null,null,null,null,null,null,null,null,null,null,null,"Trouée entièrement récoltée"]
[null,null,null,null,null,null,null,null,null,null,null,null,null,null,null,null,null,null,null,null,null,null,null,null,null,null,null,null,null,null,null,null,null,null,null,null,null,null,null,"Non traité"]
[null,null,null,null,null,null,null,null,null,null,null,null,null,null,null,null,null,null,null,null,null,null,null,null,null,null,null,null,null,null,null,null,null,null,null,null,null,null,null,"Sentier de débardage"]
[null,null,null,null,null,null,null,null,null,null,null,null,null,null,null,null,null,null,null,null,null,null,null,null,null,null,null,null,null,null,null,null,null,null,null,null,null,null,"Résultat : non financé"]
[]
[]
[]
[]
[]
[]
[]
[]
[]
[]
[null,null,null,null,null,null,null,null,null,null,null,null,null,null,null,null,null,null,null,null,null,null,null,"I-------------------------------------------------75 m-----------------------------------------------I"]

{"sheet":"Traitements admissibles","index":7,"n_rows":104,"n_cols":11,"rows_kept":104,"cut":false,"hidden":true,"merged":[[0,0,0,9]]}
["Traitements admissibles 2019-2020"]
["Catégorie","Composition","Sélection des\ntiges à récolter","Patron d'intervention","Structure cible","Traitement","Code DICA","Code RATF","Description code RATF","Formule à utiliser","Remarque (masqué)"]
["Éclaircies commerciales","SEPM, feuillus intolérants, mixteF (intolérants) et mixteR (SEPM)","-","Uniforme","Régulière","Éclaircie commerciale","EC_MIXTE-BAS","ECMIXBASSF","Éclaircie commerciale mixte par le bas, peuplement SEPM, feuillus intolérants et mixte à tendance résineuse, taux variable",1]
["Éclaircies commerciales","SEPM, feuillus intolérants, mixteF (intolérants) et mixteR (SEPM)","-","Uniforme","Régulière","Éclaircie commerciale","EC_MIXTE-HAUT","ECMIXHAUSF","Éclaircie commerciale mixte par le haut, peuplement SEPM, feuillus intolérants et mixte à tendance résineuse, taux variable",1]
["Éclaircies commerciales","SEPM, feuillus intolérants, mixteF (intolérants) et mixteR (SEPM)","-","Uniforme","Régulière","Éclaircie commerciale","EC_MIXTE-NEUTRE","ECMIXNEUSF","Éclaircie commerciale mixte neutre, peuplement SEPM, feuillus intolérants et mixte à tendance résineuse, taux variable",1]
["Éclaircies commerciales","SEPM, feuillus intolérants, mixteF (intolérants) et mixteR (SEPM)","-","Uniforme","Régulière","Éclaircie commerciale","EC_SEL-BAS","ECSELBASSF","Éclaircie commerciale sélective par le bas, peuplement SEPM et mixte à tendance résineuse et feuillus intolérants, taux variable",1]
["Éclaircies commerciales","SEPM, feuillus intolérants, mixteF (intolérants) et mixteR (SEPM)","-","Uniforme","Régulière","Éclaircie commerciale","EC_SEL-HAUT","ECSELHAUSF","Éclaircie commerciale sélective par le haut, peuplement SEPM et mixte à tendance résineuse et feuillus intolérants, taux variable",1]
["Éclaircies commerciales","SEPM, feuillus intolérants, mixteF (intolérants) et mixteR (SEPM)","-","Uniforme","Régulière","Éclaircie commerciale","EC_SEL-NEUTRE","ECSELNEUSF","Éclaircie commerciale sélective neutre, peuplement SEPM et mixte à tendance résineuse et feuillus intolérants, taux variable",1]
["Éclaircies commerciales","Feuillus tolérants, autres résineux et mixteF (tolérants)","-","Uniforme","Régulière","Éclaircie commerciale","EC_MIXTE-BAS","ECMIXBASFM","Éclaircie commerciale mixte par le bas, peuplement feuillus tolérants, autres résineux et mixte feuillus, taux variable",2]
["Éclaircies commerciales","Feuillus tolérants, autres résineux et mixteF (tolérants)","-","Uniforme","Régulière","Éclaircie commerciale","EC_MIXTE-HAUT","ECMIXHAUFM","Éclaircie commerciale mixte par le haut, peuplement feuillus tolérants, autres résineux et mixte feuillus, taux variable",2]
["Éclaircies commerciales","Feuillus tolérants, autres résineux et mixteF (tolérants)","-","Uniforme","Régulière","Éclaircie commerciale","EC_MIXTE-NEUTRE","ECMIXNEUFM","Éclaircie commerciale patron d'intervention mixte neutre, peuplement feuillus tolérants, autres résineux et mixte feuillus, taux variable",2]
["Éclaircies commerciales","Feuillus tolérants, autres résineux et mixteF (tolérants)","-","Uniforme","Régulière","Éclaircie commerciale","EC_SEL-BAS","ECSELBASFM","Éclaircie commerciale sélective par le bas, peuplement feuillus tolérants, autres résineux et mixte feuillus, taux variable",2]
["Éclaircies commerciales","Feuillus tolérants, autres résineux et mixteF (tolérants)","-","Uniforme","Régulière","Éclaircie commerciale","EC_SEL-HAUT","ECSELHAUFM","Éclaircie commerciale sélective par le haut, peuplement feuillus tolérants, autres résineux et mixte feuillus, taux variable",2]
["Éclaircies commerciales","Feuillus tolérants, autres résineux et mixteF (tolérants)","-","Uniforme","Régulière","Éclaircie commerciale","EC_SEL-NEUTRE","ECSELNEUFM","Éclaircie commerciale sélective neutre, peuplement feuillus tolérants, autres résineux et mixte feuillus, taux variable",2]
["Autres coupes partielles","Feuillus tolérants, mixteF (tolérants), autres résineux et mixte autres résineux","Martelage","Par bandes ou par trouées","Jardinée / gestion avec cohortes juxtaposées","Coupe de jardinage par bande avec éclaircie dans la matrice résiduelle","CJB-EMR","CJBM","Coupe de jardinage par bandes avec éclaircie dans la matrice résiduelle, Martelage",4]
["Autres coupes partielles","Feuillus tolérants, mixteF (tolérants), autres résineux et mixte autres résineux","Opérateur","Par bandes ou par trouées","Jardinée / gestion avec cohortes juxtaposées","Coupe de jardinage par bande avec éclaircie dans la matrice résiduelle","CJB-EMR","CJBMO","Coupe de jardinage par bandes avec éclaircie dans la matrice résiduelle, Opérateur",4]
["Autres coupes partielles","Feuillus tolérants, mixteF (tolérants), autres résineux et mixte autres résineux","Martelage","Uniforme","Jardinée / gestion par arbres","Coupe de jardinage par pieds d'arbres ou pieds d'arbres et groupes d'arbres","CJP-AM","CJPAM","Coupe de jardinage par pieds d'arbre, amélioration de la qualité, Martelage",4,"Code RATF 2018-2019 manquant, Opérateur"]
["Autres coupes partielles","Feuillus tolérants, mixteF (tolérants), autres résineux et mixte autres résineux","Martelage","Uniforme","Jardinée / gestion par arbres","Coupe de jardinage par pieds d'arbres ou pieds d'arbres et groupes d'arbres","CJPG-AM","CJPGAM","Coupe de jardinage par pieds d'arbre et groupes d'arbres, amélioration de la qualité, Martelage",4,"Code RATF 2018-2019 manquant, Opérateur"]
["Autres coupes partielles","Feuillus tolérants, mixteF (tolérants), autres résineux et mixte autres résineux","Martelage","Uniforme","Jardinée / gestion par arbres","Coupe de jardinage par pieds d'arbres ou pieds d'arbres et groupes d'arbres","CJPG-HQ","CJPGHQ","Coupe de jardinage par pieds d'arbre et groupes d'arbres, maintien d'une haute qualité, Martelage",4,"Code RATF 2018-2019 manquant, Opérateur"]
["Autres coupes partielles","Feuillus tolérants, mixteF (tolérants), autres résineux et mixte autres résineux","Martelage","Uniforme","Jardinée / gestion par arbres","Coupe de jardinage par pieds d'arbres ou pieds d'arbres et groupes d'arbres","CJPG-QM","CJPGQM","Coupe de jardinage par pieds d'arbre et groupes d'arbres, maintien d'une qualité modérée, Martelage",4,"Code RATF 2018-2019 manquant, Opérateur"]
["Autres coupes partielles","Feuillus tolérants, mixteF (tolérants), autres résineux et mixte autres résineux","Martelage","Uniforme","Jardinée / gestion par arbres","Coupe de jardinage par pieds d'arbres ou pieds d'arbres et groupes d'arbres","CJP-HQ","CJPHQ","Coupe de jardinage par pieds d'arbre, maintien d'une haute qualité, Martelage",4,"Code RATF 2018-2019 manquant, Opérateur"]
["Autres coupes partielles","Feuillus tolérants, mixteF (tolérants), autres résineux et mixte autres résineux","Martelage","Uniforme","Jardinée / gestion par arbres","Coupe de jardinage par pieds d'arbres ou pieds d'arbres et groupes d'arbres","CJP-QM","CJPQM","Coupe de jardinage par pieds d'arbre, maintien d'une qualité modérée, Martelage",4,"Code RATF 2018-2019 manquant, Opérateur"]
["Autres coupes partielles","Feuillus tolérants, mixteF (tolérants), autres résineux et mixte autres résineux","Opérateur","Par bandes ou par trouées","Jardinée / gestion avec cohortes juxtaposées","Coupe de jardinage par troués avec éclaircie dans la matrice résiduelle","CJT-EMR","CJTMO","Coupe de jardinage par trouées avec éclaircie dans la matrice résiduelle, Opérateur",4]
["Autres coupes partielles","Feuillus tolérants, mixteF (tolérants), autres résineux et mixte autres résineux","Martelage","Par bandes ou par trouées","Jardinée / gestion avec cohortes juxtaposées","Coupe de jardinage par troués avec éclaircie dans la matrice résiduelle","CJT-EMR","CJTM","Coupe de jardinage par trouées avec éclaircie dans la matrice résiduelle, Martelage",4]
["Autres coupes partielles","Feuillus tolérants, mixteF (tolérants), autres résineux et mixte autres résineux","Opérateur","Uniforme","Irrégulière","Coupe progressive irrégulière à couvert permanent","CPI_CP-ENS_U","CPIUENSOFM","Coupe progressive irrégulière à couvert permanent, coupe d'ensemencement, patron d'intervention uniforme, Opérateur,  type de peuplement feuillus tolérants, autres résineux et mixte feuillus",4]
["Autres coupes partielles","Feuillus tolérants, mixteF (tolérants), autres résineux et mixte autres résineux","Martelage","Uniforme","Irrégulière","Coupe progressive irrégulière à couvert permanent","CPI_CP-ENS_U","CPIUENSFM","Coupe progressive irrégulière à couvert permanent, coupe d'ensemencement, patron d'intervention uniforme, Martelage,  type de peuplement feuillus tolérants, autres résineux et mixte feuillus",4]
["Autres coupes partielles","Feuillus tolérants, mixteF (tolérants), autres résineux et mixte autres résineux","Opérateur","Uniforme","Irrégulière","Coupe progressive irrégulière à couvert permanent","CPI_CP-SEC_U","CPIUSECOFM","Coupe progressive irrégulière à couvert permanent, coupe secondaire, patron d'intervention uniforme, Opérateur,  type de peuplement feuillus tolérants, autres résineux et mixte feuillus",4]
["Autres coupes partielles","Feuillus tolérants, mixteF (tolérants), autres résineux et mixte autres résineux","Martelage","Uniforme","Irrégulière","Coupe progressive irrégulière à couvert permanent","CPI_CP-SEC_U","CPIUSECFM","Coupe progressive irrégulière à couvert permanent, coupe secondaire, patron d'intervention uniforme, Martelage,  type de peuplement feuillus tolérants, autres résineux et mixte feuillus",4]
["Autres coupes partielles","Feuillus tolérants, mixteF (tolérants), autres résineux et mixte autres résineux","Opérateur","Uniforme","Irrégulière","Coupe progressive irrégulière à régénération lente en 1 intervention et abandon du volume résiduel phase d'ensemencement","CPI_RL-1INR_ENS","1INRENSOFM","Coupe progressive irrégulière à régénération lente en 1 intervention et abandon du volume résiduel, phase d'ensemencement, Opérateur, type de peuplement feuillus tolérants, autres résineux et mixte feuillus",4]
["Autres coupes partielles","Feuillus tolérants, mixteF (tolérants), autres résineux et mixte autres résineux","Martelage","Uniforme","Irrégulière","Coupe progressive irrégulière à régénération lente en 1 intervention et abandon du volume résiduel phase d'ensemencement","CPI_RL-1INR_ENS","1INRENSMFM","Coupe progressive irrégulière à régénération lente en 1 intervention et abandon du volume résiduel, phase d'ensemencement, Martelage, type de peuplement feuillus tolérants, autres résineux et mixte feuillus",4]
["Autres coupes partielles","Feuillus tolérants, mixteF (tolérants), autres résineux et mixte autres résineux","Opérateur","Uniforme","Irrégulière","Coupe progressive irrégulière à régénération lente en 1 intervention et abandon du volume résiduel multiples phases","CPI_RL-1INR_MUL","1INRMULOFM","Coupe progressive irrégulière à régénération lente en 1 intervention et abandon du volume résiduel, Multiples phases, Opérateur, type de peuplement feuillus tolérants, autres résineux et mixte feuillus",4]
["Autres coupes partielles","Feuillus tolérants, mixteF (tolérants), autres résineux et mixte autres résineux","Martelage","Uniforme","Irrégulière","Coupe progressive irrégulière à régénération lente en 1 intervention et abandon du volume résiduel multiples phases","CPI_RL-1INR_MUL","1INRMULMFM","Coupe progressive irrégulière à régénération lente en 1 intervention et abandon du volume résiduel, Multiples phases, Martelage, type de peuplement feuillus tolérants, autres résineux et mixte feuillus",4]
["Autres coupes partielles","Feuillus tolérants, mixteF (tolérants), autres résineux et mixte autres résineux","Opérateur","Uniforme","Irrégulière","Coupe progressive irrégulière à régénération lente en 1 intervention et abandon du volume résiduel phase secondaire ou d'abri","CPI_RL-1INR_SEC","1INRSECOFM","Coupe progressive irrégulière à régénération lente en 1 intervention et abandon du volume résiduel, phase secondaire, Opérateur, type de peuplement feuillus tolérants, autres résineux et mixte feuillus",4]
["Autres coupes partielles","Feuillus tolérants, mixteF (tolérants), autres résineux et mixte autres résineux","Martelage","Uniforme","Irrégulière","Coupe progressive irrégulière à régénération lente en 1 intervention et abandon du volume résiduel phase secondaire ou d'abri","CPI_RL-1INR_SEC","1INRSECMFM","Coupe progressive irrégulière à régénération lente en 1 intervention et abandon du volume résiduel, phase secondaire, Martelage, type de peuplement feuillus tolérants, autres résineux et mixte feuillus",4]
["Autres coupes partielles","Feuillus tolérants, mixteF (tolérants), autres résineux et mixte autres résineux","Opérateur","Uniforme, par bandes ou par trouées","Irrégulière","Coupe progressive irrégulière à régénération lente","CPI_RL-2I_ENS","CPIL2ENOFM","Coupe progressive irrégulière à régénération lente, 2 interventions, coupe d'ensemencement, Opérateur, type de peuplement feuillus tolérants, autres résineux et mixte feuillus",4]
["Autres coupes partielles","Feuillus tolérants, mixteF (tolérants), autres résineux et mixte autres résineux","Martelage","Uniforme, par bandes ou par trouées","Irrégulière","Coupe progressive irrégulière à régénération lente","CPI_RL-2I_ENS","CPIRL2ENFM","Coupe progressive irrégulière à régénération lente, 2 interventions, coupe d'ensemencement, Martelage, type de peuplement feuillus tolérants, autres résineux et mixte feuillus",4]
["Autres coupes partielles","Feuillus tolérants, mixteF (tolérants), autres résineux et mixte autres résineux","Opérateur","Uniforme","Irrégulière","Coupe progressive irrégulière à régénération lente en 2 interventions multiples phases","CPI_RL-2I_MUL","2IMULOFM","Coupe progressive irrégulière à régénération lente en 2 interventions et abandon du volume résiduel, Multiples phases, Opérateur, type de peuplement feuillus tolérants, autres résineux et mixte feuillus",4]
["Autres coupes partielles","Feuillus tolérants, mixteF (tolérants), autres résineux et mixte autres résineux","Martelage","Uniforme","Irrégulière","Coupe progressive irrégulière à régénération lente en 2 interventions multiples phases","CPI_RL-2I_MUL","2IMULMFM","Coupe progressive irrégulière à régénération lente en 2 interventions et abandon du volume résiduel, Multiples phases, Martelage, type de peuplement feuillus tolérants, autres résineux et mixte feuillus",4]
["Autres coupes partielles","Feuillus tolérants, mixteF (tolérants), autres résineux et mixte autres résineux","Opérateur","Uniforme, par bandes ou par trouées","Irrégulière","Coupe progressive irrégulière à régénération lente","CPI_RL-2I_SEC","CPIL2SEOFM","Coupe progressive irrégulière à régénération lente, 2 interventions, coupe secondaire, Opérateur, type de peuplement feuillus tolérants, autres résineux, mixte feuillus",4]
["Autres coupes partielles","Feuillus tolérants, mixteF (tolérants), autres résineux et mixte autres résineux","Martelage","Uniforme, par bandes ou par trouées","Irrégulière","Coupe progressive irrégulière à régénération lente","CPI_RL-2I_SEC","CPIRL2SEFM","Coupe progressive irrégulière à régénération lente, 2 interventions, coupe secondaire, Martelage, type de peuplement feuillus tolérants, autres résineux, mixte feuillus",4]
["Autres coupes partielles","Feuillus tolérants, mixteF (tolérants), autres résineux et mixte autres résineux","Opérateur","Uniforme, par bandes ou par trouées","Irrégulière","Coupe progressive irrégulière à régénération lente","CPI_RL-3I_ENS","CPIL3ENOFM","Coupe progressive irrégulière à régénération lente, 3 interventions, coupe d'ensemencement, Opérateur, type de peuplement feuillus tolérants, autres résineux et mixte feuillus",4]
["Autres coupes partielles","Feuillus tolérants, mixteF (tolérants), autres résineux et mixte autres résineux","Martelage","Uniforme, par bandes ou par trouées","Irrégulière","Coupe progressive irrégulière à régénération lente","CPI_RL-3I_ENS","CPIRL3ENFM","Coupe progressive irrégulière à régénération lente, 3 interventions, coupe d'ensemencement, Martelage, type de peuplement feuillus tolérants, autres résineux et mixte feuillus",4]
["Autres coupes partielles","Feuillus tolérants, mixteF (tolérants), autres résineux et mixte autres résineux","Opérateur","Uniforme","Irrégulière","Coupe progressive irrégulière à régénération lente en 3 interventions multiples phases","CPI_RL-3I_MUL","3IMULOFM","Coupe progressive irrégulière à régénération lente en 3 interventions et abandon du volume résiduel, Multiples phases, Opérateur, type de peuplement feuillus tolérants, autres résineux et mixte feuillus",4]
["Autres coupes partielles","Feuillus tolérants, mixteF (tolérants), autres résineux et mixte autres résineux","Martelage","Uniforme","Irrégulière","Coupe progressive irrégulière à régénération lente en 3 interventions multiples phases","CPI_RL-3I_MUL","3IMULMFM","Coupe progressive irrégulière à régénération lente en 3 interventions et abandon du volume résiduel, Multiples phases, Martelage, type de peuplement feuillus tolérants, autres résineux et mixte feuillus",4]
["Autres coupes partielles","Feuillus tolérants, mixteF (tolérants), autres résineux et mixte autres résineux","Opérateur","Uniforme, par bandes ou par trouées","Irrégulière","Coupe progressive irrégulière à régénération lente","CPI_RL-3I_SEC","CPIL3SEOFM","Coupe progressive irrégulière à régénération lente, 3 interventions, coupe secondaire, Opérateur, type de peuplement feuillus tolérants, autres résineux, mixte feuillus",4]
["Autres coupes partielles","Feuillus tolérants, mixteF (tolérants), autres résineux et mixte autres résineux","Martelage","Uniforme, par bandes ou par trouées","Irrégulière","Coupe progressive irrégulière à régénération lente","CPI_RL-3I_SEC","CPIRL3SEFM","Coupe progressive irrégulière à régénération lente, 3 interventions, coupe secondaire, Martelage, type de peuplement feuillus tolérants, autres résineux, mixte feuillus",4]
["Autres coupes partielles","Feuillus tolérants, mixteF (tolérants), autres résineux et mixte autres résineux","Opérateur","Uniforme, par bandes ou par trouées","Irrégulière","Coupe progressive irrégulière à régénération lente","CPI_RL-MUL","CPILMULOFM","Coupe progressive irrégulière à régénération lente, coupe multiples phases, Opérateur, type de peuplement feuillus tolérants, autres résineux et mixte feuillus",4]
["Autres coupes partielles","Feuillus tolérants, mixteF (tolérants), autres résineux et mixte autres résineux","Martelage","Uniforme, par bandes ou par trouées","Irrégulière","Coupe progressive irrégulière à régénération lente","CPI_RL-MUL","CPIRLMULFM","Coupe progressive irrégulière à régénération lente, coupe multiples phases, Martelage, type de peuplement feuillus tolérants, autres résineux et mixte feuillus",4]
["Autres coupes partielles","Feuillus tolérants, mixteF (tolérants), autres résineux et mixte autres résineux","Opérateur","Uniforme, par bandes ou par trouées","Irrégulière","Coupe progressive irrégulière à régénération lente","CPI_RL-PR","CPIRLPROFM","Coupe progressive irrégulière à régénération lente, coupe préparatoire, Opérateur, type de peuplement feuillus tolérants, autres résineux et mixte feuillus",4]
["Autres coupes partielles","Feuillus tolérants, mixteF (tolérants), autres résineux et mixte autres résineux","Martelage","Uniforme, par bandes ou par trouées","Irrégulière","Coupe progressive irrégulière à régénération lente","CPI_RL-PR","CPIRLPRFM","Coupe progressive irrégulière à régénération lente, coupe préparatoire, Martelage, type de peuplement feuillus tolérants, autres résineux et mixte feuillus",4]
["Autres coupes partielles","Feuillus tolérants, mixteF (tolérants), autres résineux et mixte autres résineux","Opérateur","Par bandes ou par trouées","Régulière","Coupe progressive régulière par bandes ou trouées\n1 Pour être admissible, il doit y avoir une coupe partielle à l'extérieur des bandes récoltées totalement.","CPR_BA 1","CPRBAOFM","Coupe progressive régulière par bande, Opérateur, type de peuplement feuillus tolérants, autres résineux et mixte feuillus",4]
["Autres coupes partielles","Feuillus tolérants, mixteF (tolérants), autres résineux et mixte autres résineux","Martelage","Par bandes ou par trouées","Régulière","Coupe progressive régulière par bandes ou trouées\n1 Pour être admissible, il doit y avoir une coupe partielle à l'extérieur des bandes récoltées totalement.","CPR_BA 1","CPRBAMFM","Coupe progressive régulière par bande, Martelage, type de peuplement feuillus tolérants, autres résineux et mixte feuillus",4]
["Autres coupes partielles","Feuillus tolérants, mixteF (tolérants), autres résineux et mixte autres résineux","Opérateur","Par bandes ou par trouées","Régulière","Coupe progressive régulière par bandes ou trouées\n2 Pour être admissible, il doit y avoir une coupe partielle à l'extérieur des trouées récoltées totalement.","CPR_T 2","CPRTOFM","Coupe progressive régulière par trouées, Opérateur, type de peuplement feuillus tolérants, autres résineux et mixte feuillus",4]
["Autres coupes partielles","Feuillus tolérants, mixteF (tolérants), autres résineux et mixte autres résineux","Martelage","Par bandes ou par trouées","Régulière","Coupe progressive régulière par bandes ou trouées\n2 Pour être admissible, il doit y avoir une coupe partielle à l'extérieur des trouées récoltées totalement.","CPR_T 2","CPRTMFM","Coupe progressive régulière par troués, Martelage, type de peuplement feuillus tolérants, autres résineux et mixte feuillus",4]
["Autres coupes partielles","Feuillus tolérants, mixteF (tolérants), autres résineux et mixte autres résineux","Martelage","Uniforme","Régulière","Coupe progressive régulière","CPR_U-ENS","CPRUENSFM","Coupe progressive régulière uniforme, coupe d'ensemencement, Martelage, type de peuplement feuillus tolérants, autres résineux et mixte feuillus",4]
["Autres coupes partielles","Feuillus tolérants, mixteF (tolérants), autres résineux et mixte autres résineux","Opérateur","Uniforme","Régulière","Coupe progressive régulière","CPR_U-ENS","CPRUENSOFM","Coupe progressive régulière uniforme, coupe d'ensemencement, Opérateur, type de peuplement feuillus tolérants, autres résineux et mixte feuillus",4]
["Autres coupes partielles","Feuillus tolérants, mixteF (tolérants), autres résineux et mixte autres résineux","Opérateur","Uniforme","Régulière","Coupe progressive régulière","CPR_U-PR","CPRUPROFM","Coupe progressive régulière uniforme, coupe préparatoire, Opérateur, peuplement feuillus tolérants, autres résineux et mixte feuillus",4]
["Autres coupes partielles","Feuillus tolérants, mixteF (tolérants), autres résineux et mixte autres résineux","Martelage","Uniforme","Régulière","Coupe progressive régulière","CPR_U-PR","CPRUPRFM","Coupe progressive régulière uniforme, coupe préparatoire, Martelage, type de peuplement feuillus tolérants, autres résineux et mixte feuillus",4]
["Autres coupes partielles","Feuillus tolérants, mixteF (tolérants), autres résineux et mixte autres résineux","Opérateur","Uniforme","Régulière","Coupe progressive régulière","CPR_U-SEC","CPRUSECOFM","Coupe progressive régulière uniforme, coupe secondaire, Opérateur, type de peuplement feuillus tolérants, autres résineux et mixte feuillus",4]
["Autres coupes partielles","Feuillus tolérants, mixteF (tolérants), autres résineux et mixte autres résineux","Martelage","Uniforme","Régulière","Coupe progressive régulière","CPR_U-SEC","CPRUSECFM","Coupe progressive régulière uniforme, coupe secondaire, Martelage, type de peuplement feuillus tolérants, autres résineux et mixte feuillus",4]
["Autres coupes partielles","Feuillus tolérants, mixteF (tolérants), autres résineux et mixte autres résineux","Martelage","Uniforme","Jardinée / gestion par arbres","Éclaircie jardinatoire par pieds d'arbres ou pieds d'arbres et groupes d'arbres","EJ_P-CLAS","EJPCLAS","Éclaircie jardinatoire par pied d'arbre classique ou finale, Martelage",4,"Code RATF 2018-2019 manquant, Opérateur"]
["Autres coupes partielles","Feuillus tolérants, mixteF (tolérants), autres résineux et mixte autres résineux","Martelage","Uniforme","Jardinée / gestion par arbres","Éclaircie jardinatoire par pieds d'arbres ou pieds d'arbres et groupes d'arbres","EJ_PG-CLAS","EJPGCLAS","Éclaircie jardinatoire par pied d'arbre et groupes d'arbres, classique ou finale, Martelage",4,"Code RATF 2018-2019 manquant, Opérateur"]
["Autres coupes partielles","Feuillus tolérants, mixteF (tolérants), autres résineux et mixte autres résineux","Martelage","Uniforme","Jardinée / gestion par arbres","Éclaircie jardinatoire par pieds d'arbres ou pieds d'arbres et groupes d'arbres","EJ_PG-INI","EJPGINI","Éclaircie jardinatoire par pied d'arbre et groupes d'arbres initiale, Martelage",4,"Code RATF 2018-2019 manquant, Opérateur"]
["Autres coupes partielles","Feuillus tolérants, mixteF (tolérants), autres résineux et mixte autres résineux","Martelage","Uniforme","Jardinée / gestion par arbres","Éclaircie jardinatoire par pieds d'arbres ou pieds d'arbres et groupes d'arbres","EJ_P-INI","EJPINI","Éclaircie jardinatoire par pied d'arbre initiale, Martelage",4,"Code RATF 2018-2019 manquant, Opérateur"]
["Autres coupes partielles","SEPM, feuillus intolérants, mixteF (intolérants) et mixteR (SEPM)","Opérateur","Par bandes ou par trouées","Irrégulière","Coupe progressive irrégulière à couvert permanent par bandes","CPI_CP-ENS_B","CPIENSBOSF","Coupe progressive irrégulière à couvert permanent par bandes, coupe d'ensemencement, Opérateur, type de peuplement SEPM, feuillus intolérants et mixte résineux",6]
["Autres coupes partielles","SEPM, feuillus intolérants, mixteF (intolérants) et mixteR (SEPM)","Opérateur","Uniforme","Irrégulière","Coupe progressive irrégulière à couvert permanent","CPI_CP-ENS_U","CPIUENSOSF","Coupe progressive irrégulière à couvert permanent, coupe d'ensemencement, patron d'intervention uniforme, Opérateur,  type de peuplement SEPM, feuillus intolérants et mixte résineux",6]
["Autres coupes partielles","SEPM, feuillus intolérants, mixteF (intolérants) et mixteR (SEPM)","Opérateur","Par bandes ou par trouées","Irrégulière","Coupe progressive irrégulière à couvert permanent par bandes","CPI_CP-SEC_B","CPISECBOSF","Coupe progressive irrégulière à couvert permanent par bandes, coupe secondaire, Opérateur, type de peuplement SEPM, feuillus intolérants et mixte résineux",6]
["Autres coupes partielles","SEPM, feuillus intolérants, mixteF (intolérants) et mixteR (SEPM)","Opérateur","Uniforme","Irrégulière","Coupe progressive irrégulière à couvert permanent","CPI_CP-SEC_U","CPIUSECOSF","Coupe progressive irrégulière à couvert permanent, coupe secondaire, patron d'intervention uniforme, Opérateur,  type de peuplement SEPM, feuillus intolérants et mixte résineux",6]
["Autres coupes partielles","SEPM, feuillus intolérants, mixteF (intolérants) et mixteR (SEPM)","Opérateur","Par bandes ou par trouées","Irrégulière","Coupe progressive irrégulière à régénération lente en 1 intervention et abandon du volume résiduel phase d'ensemencement","CPI_RL-1INR_ENS","1INRENSOSF","Coupe progressive irrégulière à régénération lente en 1 intervention et abandon du volume résiduel, phase d'ensemencement, Opérateur, type de peuplement SEPM, feuillus intolérants et mixte résineux",6]
["Autres coupes partielles","SEPM, feuillus intolérants, mixteF (intolérants) et mixteR (SEPM)","Opérateur","Par bandes ou par trouées","Irrégulière","Coupe progressive irrégulière à régénération lente en 1 intervention et abandon du volume résiduel multiples phases","CPI_RL-1INR_MUL","1INRMULOSF","Coupe progressive irrégulière à régénération lente en 1 intervention et abandon du volume résiduel, Multiples phases, Opérateur, type de peuplement SEPM, feuillus intolérants et mixte résineux",6]
["Autres coupes partielles","SEPM, feuillus intolérants, mixteF (intolérants) et mixteR (SEPM)","Opérateur","Par bandes ou par trouées","Irrégulière","Coupe progressive irrégulière à régénération lente en 1 intervention et abandon du volume résiduel phase secondaire ou d'abri","CPI_RL-1INR_SEC","1INRSECOSF","Coupe progressive irrégulière à régénération lente en 1 intervention et abandon du volume résiduel, phase secondaire, Opérateur, type de peuplement SEPM, feuillus intolérants et mixte résineux",6]
["Autres coupes partielles","SEPM, feuillus intolérants, mixteF (intolérants) et mixteR (SEPM)","Opérateur","Uniforme, par bandes ou par trouées","Irrégulière","Coupe progressive irrégulière à régénération lente","CPI_RL-2I_ENS","CPIL2ENOSF","Coupe progressive irrégulière à régénération lente, 2 interventions, coupe d'ensemencement, Opérateur, type de peuplement SEPM, feuillus intolérants et mixte résineux",6]
["Autres coupes partielles","SEPM, feuillus intolérants, mixteF (intolérants) et mixteR (SEPM)","Opérateur","Par bandes ou par trouées","Irrégulière","Coupe progressive irrégulière à régénération lente en 2 interventions multiples phases","CPI_RL-2I_MUL","2IMULOSF","Coupe progressive irrégulière à régénération lente en 2 interventions et abandon du volume résiduel, Multiples phases, Opérateur, type de peuplement SEPM, feuillus intolérants et mixte résineux",6]
["Autres coupes partielles","SEPM, feuillus intolérants, mixteF (intolérants) et mixteR (SEPM)","Opérateur","Uniforme, par bandes ou par trouées","Irrégulière","Coupe progressive irrégulière à régénération lente","CPI_RL-2I_SEC","CPIL2SEOSF","Coupe progressive irrégulière à régénération lente, 2 interventions, coupe secondaire, Opérateur, type de peuplement SEPM, feuillus intolérants, mixte résineux",6]
["Autres coupes partielles","SEPM, feuillus intolérants, mixteF (intolérants) et mixteR (SEPM)","Opérateur","Uniforme, par bandes ou par trouées","Irrégulière","Coupe progressive irrégulière à régénération lente","CPI_RL-3I_ENS","CPIL3ENOSF","Coupe progressive irrégulière à régénération lente, 3 interventions, coupe d'ensemencement, Opérateur, type de peuplement SEPM, feuillus intolérants et mixte résineux",6]
["Autres coupes partielles","SEPM, feuillus intolérants, mixteF (intolérants) et mixteR (SEPM)","Opérateur","Par bandes ou par trouées","Irrégulière","Coupe progressive irrégulière à régénération lente en 3 interventions multiples phases","CPI_RL-3I_MUL","3IMULOSF","Coupe progressive irrégulière à régénération lente en 3 interventions et abandon du volume résiduel, Multiples phases, Opérateur, type de peuplement SEPM, feuillus intolérants et mixte résineux",6]
["Autres coupes partielles","SEPM, feuillus intolérants, mixteF (intolérants) et mixteR (SEPM)","Opérateur","Uniforme, par bandes ou par trouées","Irrégulière","Coupe progressive irrégulière à régénération lente","CPI_RL-3I_SEC","CPIL3SEOSF","Coupe progressive irrégulière à régénération lente, 3 interventions, coupe secondaire, Opérateur, type de peuplement SEPM, feuillus intolérants, mixte résineux",6]
["Autres coupes partielles","SEPM, feuillus intolérants, mixteF (intolérants) et mixteR (SEPM)","Opérateur","Uniforme, par bandes ou par trouées","Irrégulière","Coupe progressive irrégulière à régénération lente","CPI_RL-MUL","CPILMULOSF","Coupe progressive irrégulière à régénération lente, coupe multiples phases, Opérateur, type de peuplement SEPM, feuillus intolérants, mixte feuillus",6]
["Autres coupes partielles","SEPM, feuillus intolérants, mixteF (intolérants) et mixteR (SEPM)","Opérateur","Uniforme, par bandes ou par trouées","Irrégulière","Coupe progressive irrégulière à régénération lente","CPI_RL-PR","CPIRLPROSF","Coupe progressive irrégulière à régénération lente, coupe préparatoire, Opérateur, type de peuplement SEPM, feuillus intolérants et mixte résineux",6]
["Autres coupes partielles","SEPM, feuillus intolérants, mixteF (intolérants) et mixteR (SEPM)","Opérateur","Par bandes ou par trouées","Régulière","Coupe progressive régulière par bandes ou trouées\n1 Pour être admissible, il doit y avoir une coupe partielle à l'extérieur des bandes récoltées totalement.","CPR_BA 1","CPRBAOSF","Coupe progressive régulière par bande, Opérateur, type de peuplement  SEPM, feuillus intolérants et mixte résineux",6]
["Autres coupes partielles","SEPM, feuillus intolérants, mixteF (intolérants) et mixteR (SEPM)","Opérateur","Par bandes ou par trouées","Régulière","Coupe progressive régulière par bandes ou trouées\n2 Pour être admissible, il doit y avoir une coupe partielle à l'extérieur des trouées récoltées totalement.","CPR_T 2","CPRTOSF","Coupe progressive régulière par trouées, Opérateur, type de peuplement  SEPM, feuillus intolérants et mixte résineux",6]
["Autres coupes partielles","SEPM, feuillus intolérants, mixteF (intolérants) et mixteR (SEPM)","Opérateur","Uniforme","Régulière","Coupe progressive régulière","CPR_U-ENS","CPRUENSOSF","Coupe progressive régulière uniforme, coupe d'ensemencement, Opérateur, type de peuplement SEPM, feuillus intolérants et mixte résineux",6]
["Autres coupes partielles","SEPM, feuillus intolérants, mixteF (intolérants) et mixteR (SEPM)","Opérateur","Uniforme","Régulière","Coupe progressive régulière","CPR_U-PR","CPRUPROSF","Coupe progressive régulière uniforme, Coupe préparatoire, Opérateur, peuplement SEPM, feuillus intolérants et mixte résineux",6]
["Autres coupes partielles","SEPM, feuillus intolérants, mixteF (intolérants) et mixteR (SEPM)","Opérateur","Uniforme","Régulière","Coupe progressive régulière","CPR_U-SEC","CPRUSECOSF","Coupe progressive régulière uniforme, coupe secondaire, Opérateur, type de peuplement SEPM, feuillus intolérants et mixte résineux",6]
["Autres coupes partielles","SEPM, feuillus intolérants, mixteF (intolérants) et mixteR (SEPM)","Martelage","Par bandes ou par trouées","Irrégulière","Coupe progressive irrégulière à couvert permanent par bandes","CPI_CP-ENS_B","CPIENSBMSF","Coupe progressive irrégulière à couvert permanent par bandes, coupe d'ensemencement, Martelage, type de peuplement SEPM, feuillus intolérants et mixte résineux",7]
["Autres coupes partielles","SEPM, feuillus intolérants, mixteF (intolérants) et mixteR (SEPM)","Martelage","Uniforme","Irrégulière","Coupe progressive irrégulière à couvert permanent","CPI_CP-ENS_U","CPIUENSSF","Coupe progressive irrégulière à couvert permanent, coupe d'ensemencement, patron d'intervention uniforme, Martelage,  type de peuplement SEPM, feuillus intolérants et mixte résineux",7]
["Autres coupes partielles","SEPM, feuillus intolérants, mixteF (intolérants) et mixteR (SEPM)","Martelage","Par bandes ou par trouées","Irrégulière","Coupe progressive irrégulière à couvert permanent par bandes","CPI_CP-SEC_B","CPISECBMSF","Coupe progressive irrégulière à couvert permanent par bandes, coupe secondaire, Martelage, type de peuplement SEPM, feuillus intolérants et mixte résineux",7]
["Autres coupes partielles","SEPM, feuillus intolérants, mixteF (intolérants) et mixteR (SEPM)","Martelage","Uniforme","Irrégulière","Coupe progressive irrégulière à couvert permanent","CPI_CP-SEC_U","CPIUSECSF","Coupe progressive irrégulière à couvert permanent, coupe secondaire, patron d'intervention uniforme, Martelage,  type de peuplement SEPM, feuillus intolérants et mixte résineux",7]
["Autres coupes partielles","SEPM, feuillus intolérants, mixteF (intolérants) et mixteR (SEPM)","Martelage","Par bandes ou par trouées","Irrégulière","Coupe progressive irrégulière à régénération lente en 1 intervention et abandon du volume résiduel phase d'ensemencement","CPI_RL-1INR_ENS","1INRENSMSF","Coupe progressive irrégulière à régénération lente en 1 intervention et abandon du volume résiduel, phase d'ensemencement, Martelage, type de peuplement SEPM, feuillus intolérants et mixte résineux",7]
["Autres coupes partielles","SEPM, feuillus intolérants, mixteF (intolérants) et mixteR (SEPM)","Martelage","Par bandes ou par trouées","Irrégulière","Coupe progressive irrégulière à régénération lente en 1 intervention et abandon du volume résiduel multiples phases","CPI_RL-1INR_MUL","1INRMULMSF","Coupe progressive irrégulière à régénération lente en 1 intervention et abandon du volume résiduel, Multiples phases, Martelage, type de peuplement SEPM, feuillus intolérants et mixte résineux",7]
["Autres coupes partielles","SEPM, feuillus intolérants, mixteF (intolérants) et mixteR (SEPM)","Martelage","Par bandes ou par trouées","Irrégulière","Coupe progressive irrégulière à régénération lente en 1 intervention et abandon du volume résiduel phase secondaire ou d'abri","CPI_RL-1INR_SEC","1INRSECMSF","Coupe progressive irrégulière à régénération lente en 1 intervention et abandon du volume résiduel, phase secondaire, Martelage, type de peuplement SEPM, feuillus intolérants et mixte résineux",7]
["Autres coupes partielles","SEPM, feuillus intolérants, mixteF (intolérants) et mixteR (SEPM)","Martelage","Uniforme, par bandes ou par trouées","Irrégulière","Coupe progressive irrégulière à régénération lente","CPI_RL-2I_ENS","CPIRL2ENSF","Coupe progressive irrégulière à régénération lente, 2 interventions, coupe d'ensemencement, Martelage, type de peuplement SEPM, feuillus intolérants et mixte résineux",7]
["Autres coupes partielles","SEPM, feuillus intolérants, mixteF (intolérants) et mixteR (SEPM)","Martelage","Par bandes ou par trouées","Irrégulière","Coupe progressive irrégulière à régénération lente en 2 interventions multiples phases","CPI_RL-2I_MUL","2IMULMSF","Coupe progressive irrégulière à régénération lente en 2 interventions et abandon du volume résiduel, Multiples phases, Martelage, type de peuplement SEPM, feuillus intolérants et mixte résineux",7]
["Autres coupes partielles","SEPM, feuillus intolérants, mixteF (intolérants) et mixteR (SEPM)","Martelage","Uniforme, par bandes ou par trouées","Irrégulière","Coupe progressive irrégulière à régénération lente","CPI_RL-2I_SEC","CPIRL2SESF","Coupe progressive irrégulière à régénération lente, 2 interventions, coupe secondaire, Martelage, type de peuplement SEPM, feuillus intolérants, mixte résineux",7]
["Autres coupes partielles","SEPM, feuillus intolérants, mixteF (intolérants) et mixteR (SEPM)","Martelage","Uniforme, par bandes ou par trouées","Irrégulière","Coupe progressive irrégulière à régénération lente","CPI_RL-3I_ENS","CPIRL3ENSF","Coupe progressive irrégulière à régénération lente, 3 interventions, coupe d'ensemencement, Martelage, type de peuplement SEPM, feuillus intolérants et mixte résineux",7]
["Autres coupes partielles","SEPM, feuillus intolérants, mixteF (intolérants) et mixteR (SEPM)","Martelage","Par bandes ou par trouées","Irrégulière","Coupe progressive irrégulière à régénération lente en 3 interventions multiples phases","CPI_RL-3I_MUL","3IMULMSF","Coupe progressive irrégulière à régénération lente en 3 interventions et abandon du volume résiduel, Multiples phases, Martelage, type de peuplement SEPM, feuillus intolérants et mixte résineux",7]
["Autres coupes partielles","SEPM, feuillus intolérants, mixteF (intolérants) et mixteR (SEPM)","Martelage","Uniforme, par bandes ou par trouées","Irrégulière","Coupe progressive irrégulière à régénération lente","CPI_RL-3I_SEC","CPIRL3SESF","Coupe progressive irrégulière à régénération lente, 3 interventions, coupe secondaire, Martelage, type de peuplement SEPM, feuillus intolérants, mixte résineux",7]
["Autres coupes partielles","SEPM, feuillus intolérants, mixteF (intolérants) et mixteR (SEPM)","Martelage","Uniforme, par bandes ou par trouées","Irrégulière","Coupe progressive irrégulière à régénération lente","CPI_RL-MUL","CPIRLMULSF","Coupe progressive irrégulière à régénération lente, coupe multiples phases, Martelage, type de peuplement SEPM, feuillus intolérants, mixte feuillus",7]
["Autres coupes partielles","SEPM, feuillus intolérants, mixteF (intolérants) et mixteR (SEPM)","Martelage","Uniforme, par bandes ou par trouées","Irrégulière","Coupe progressive irrégulière à régénération lente","CPI_RL-PR","CPIRLPRSF","Coupe progressive irrégulière à régénération lente, coupe préparatoire, Martelage, type de peuplement SEPM, feuillus intolérants et mixte résineux",7]
["Autres coupes partielles","SEPM, feuillus intolérants, mixteF (intolérants) et mixteR (SEPM)","Martelage","Par bandes ou par trouées","Régulière","Coupe progressive régulière par bandes ou trouées\n1 Pour être admissible, il doit y avoir une coupe partielle à l'extérieur des bandes récoltées totalement.","CPR_BA 1","CPRBAMSF","Coupe progressive régulière par bande, Martelage, type de peuplement  SEPM, feuillus intolérants et mixte résineux",7]
["Autres coupes partielles","SEPM, feuillus intolérants, mixteF (intolérants) et mixteR (SEPM)","Martelage","Par bandes ou par trouées","Régulière","Coupe progressive régulière par bandes ou trouées\n2 Pour être admissible, il doit y avoir une coupe partielle à l'extérieur des trouées récoltées totalement.","CPR_T 2","CPRTMSF","Coupe progressive régulière par trouées, Martelage, type de peuplement  SEPM, feuillus intolérants et mixte résineux",7]
["Autres coupes partielles","SEPM, feuillus intolérants, mixteF (intolérants) et mixteR (SEPM)","Martelage","Uniforme","Régulière","Coupe progressive régulière","CPR_U-ENS","CPRUENSSF","Coupe progressive régulière uniforme, coupe d'ensemencement, Martelage, type de peuplement SEPM, feuillus intolérants et mixte résineux",7]
["Autres coupes partielles","SEPM, feuillus intolérants, mixteF (intolérants) et mixteR (SEPM)","Martelage","Uniforme","Régulière","Coupe progressive régulière","CPR_U-PR","CPRUPRSF","Coupe progressive régulière uniforme, coupe préparatoire, Martelage, type de peuplement SEPM, feuillus intolérants et mixte résineux",7]
["Autres coupes partielles","SEPM, feuillus intolérants, mixteF (intolérants) et mixteR (SEPM)","Martelage","Uniforme","Régulière","Coupe progressive régulière","CPR_U-SEC","CPRUSECSF","Coupe progressive régulière uniforme, coupe secondaire, Martelage, type de peuplement SEPM, feuillus intolérants et mixte résineux",7]

{"sheet":"Étapes calcul majorations","index":8,"n_rows":10,"n_cols":3,"rows_kept":10,"cut":false,"hidden":true,"merged":[]}
["Formule ou activité","Étapes pour appliquer les majorations/réductions à l'exécution","Étapes pour appliquer les majorations à la vérification"]
["Formule 1 - EC1","Taux = (EXE * (1 + PE2) * (1 + MAN) + RUB1 * (1 + PE2)) * (1 + H1)","N/A"]
["Formule 1 - EC2","Taux = (EXE * (1 + PE2) + (1 + PE2) * RUB1) * (1 + H1)","N/A"]
["Formule 2","Taux = (EXE + RUB1) * (1 + PE2)  * (1 + H1)","N/A"]
["Formule 4","Taux = ((EXE + RUB1) * (1 + PE2) - EMR1 - BNT1) * (1 + H1)","N/A"]
["Formule 6","Taux = (EXE * (1 + PE2) - EMR1 - BNT1) * (1 + H1)","N/A"]
["Formule 7","Taux = ((EXE + RUB1) * (1 + PE2) - EMR1 - BNT1) * (1 + H1)","N/A"]
["Martelage","Taux = EXE * (1 + H3 + D200)","Taux = VERIF * (1 + H3 + D200)"]
["Martelage négatif - EC (résineux ou mixte résineux)","Taux = EXE * (1 + H3 + D200)","Taux = VERIF * (1 + H3 + D200)"]
["Martelage positif - EC (résineux ou mixte résineux)","Taux = EXE * (1 + H3 + D200)","Taux = VERIF * (1 + H3 + D200)"]

{"sheet":"Versions du fichier","index":9,"n_rows":6,"n_cols":20,"rows_kept":6,"cut":false,"hidden":true,"merged":[[0,0,0,16],[0,19,0,24],[9,2,10,13]]}
["Suivi des versions du fichier de l’annexe au calcul de l'aide\nà l’aménagement des forêts résineuses de faibles rendement et qualité pour l’année financière 2019-2020                                                                                                                                                                                                                                                                                                         Forêt publique",null,null,null,null,null,null,null,null,null,null,null,null,null,null,null,null,null,null,"Version 1 : 2019-10-09"]
[]
["Version 1","Nom du fichier :","Calcul_aide_AFRFRQ_2019-2020_2019-10-09.xlsm"]
[{"$f":"A3","v":"Version 1"},"Date de mise en ligne :","2019-10-09"]
[{"$f":"A4","v":"Version 1"},"Remarques :","• Version officielle"]
[{"$f":"A5","v":"Version 1"}]

{"sheet":"Calculs grille","index":10,"n_rows":12,"n_cols":12,"rows_kept":12,"cut":false,"hidden":true,"merged":[[0,5,1,5],[0,6,1,6],[0,8,1,8],[0,10,1,10],[0,11,1,11],[0,0,1,0],[0,1,1,1],[0,2,1,2],[0,3,1,3],[0,4,1,4]]}
["Famille","Traitement","Type","Équipement / Modalité","Taux","Paiement","Information","2018-2019","2018-2019","2019-2020","2019-2020","Source 2019-2020"]
[null,null,null,null,null,null,null,"Non arrondis",null,"Non \narrondis"]
["Travaux techniques","Activités liées au martelage pour les traitements commerciaux","Délimitation de secteurs",null,"Taux fixe","Kilomètre délimité",null,75.85640034239141,76,84.097861572141653,{"$f":"ROUND(J3,0)","v":84},"[Grilles TSNC  2019-2020.xlsx]Feuille de calcul'!$AD$131"]
["Travaux techniques","Activités liées au martelage pour les traitements commerciaux","Martelage feuillus",null,"Taux fixe","Hectare","Ce taux n'est pas utilisé, remplacé par l'équation à taux variable",143.05705106073921,143,158.59956473971499,{"$f":"ROUND(J4,0)","v":159},"[Grilles TSNC  2019-2020.xlsx]Feuille de calcul'!$AD$132"]
["Travaux techniques","Activités liées au martelage pour les traitements commerciaux","Martelage résineux",null,"Taux fixe","Hectare","Ce taux n'est pas utilisé, remplacé par l'équation à taux variable",162.87624304634389,163,180.57202397260636,{"$f":"ROUND(J5,0)","v":181},"[Grilles TSNC  2019-2020.xlsx]Feuille de calcul'!$AD$133"]
["Travaux techniques","Activités liées au martelage pour les traitements commerciaux","Martelage à taux variable",null,"Taux variable","Hectare","(Constante 1 - (Variable 1 * PF) + (Variable 2 * NbMSCROP)) * TC",144.2301160715844,144.22999999999999,159.90007805766703,{"$f":"ROUND(J6,2)","v":159.9},"[Grilles TSNC  2019-2020.xlsx]Feuille de calcul'!$AD$134"]
["Travaux techniques","Activités liées au martelage pour les traitements commerciaux","Martelage à taux variable",null,"Taux variable","Hectare","(Constante 1 - (Variable 1 * PF) + (Variable 2 * NbMSCROP)) * TC",35.682471036101894,35.68,39.559213147490738,{"$f":"ROUND(J7,2)","v":39.56},"[Grilles TSNC  2019-2020.xlsx]Feuille de calcul'!$AD$135"]
["Travaux techniques","Activités liées au martelage pour les traitements commerciaux","Martelage à taux variable",null,"Taux variable","Hectare","(Constante 1 - (Variable 1 * PF) + (Variable 2 * NbMSCROP)) * TC",4.0921964158999149,4.09,4.5367953944163641,{"$f":"ROUND(J8,2)","v":4.54},"[Grilles TSNC  2019-2020.xlsx]Feuille de calcul'!$AD$136"]
["Travaux techniques","Activités liées au martelage pour les traitements commerciaux","Martelage en éclaircie commerciale en peuplement résineux (ou mixte à tendance résineuse)","Martelage négatif","Taux fixe","Hectare",null,183.44823091251104,183,203.379067017409,{"$f":"ROUND(J9,0)","v":203},"[Grilles TSNC  2019-2020.xlsx]Feuille de calcul'!$AD$137"]
["Travaux techniques","Activités liées au martelage pour les traitements commerciaux","Martelage en éclaircie commerciale en peuplement résineux (ou mixte à tendance résineuse)","Martelage positif","Taux fixe","Hectare",null,95.61940559305981,96,106.00802963071503,{"$f":"ROUND(J10,0)","v":106},"[Grilles TSNC  2019-2020.xlsx]Feuille de calcul'!$AD$138"]
["Travaux techniques","Activités liées au martelage pour les traitements commerciaux","Inventaire après martelage",null,"Taux fixe","Hectare",null,23.229439282451846,23,25.753214763110631,{"$f":"ROUND(J11,0)","v":26},"[Grilles TSNC  2019-2020.xlsx]Feuille de calcul'!$AD$139"]
["Travaux technique","Valeur des activités liées au martelage pour les traitements commerciaux","Martelage",null,"Taux variable","Taux moyen","Constante",8.9160000000000004,8.9160000000000004,8.9160000000000004,8.9160000000000004,8.9160000000000004]

{"sheet":"Menus","index":11,"n_rows":965,"n_cols":6,"rows_kept":965,"cut":false,"hidden":true,"merged":[[920,0,920,2],[676,0,676,1],[677,0,677,1]]}
["Question"]
["Oui",1]
["Non",0]
[]
["UA"]
["01171"]
["01272"]
["02371"]
["02471"]
["02571"]
["02651"]
["02661"]
["02662"]
["02663"]
["02664"]
["02665"]
["02666"]
["02751"]
["03153"]
["03171"]
["03351"]
["03451"]
["03571"]
["04151"]
["04251"]
["04351"]
["04352"]
["05151"]
["06151"]
["06271"]
["06452"]
["06471"]
["07151"]
["07152"]
["07251"]
["07351"]
["07352"]
["07451"]
["08151"]
["08152"]
["08251"]
["08351"]
["08451"]
["08462"]
["08551"]
["08562"]
["08651"]
["08652"]
["08663"]
["08664"]
["08665"]
["08666"]
["08751"]
["08762"]
["08763"]
["08764"]
["09351"]
["09352"]
["09471"]
["09551"]
["09751"]
["11161"]
["11262"]
["11263"]
[]
["Codes_Dica"]
["CJB-EMR"]
["CJP-AM"]
["CJPG-AM"]
["CJPG-HQ"]
["CJPG-QM"]
["CJP-HQ"]
["CJP-QM"]
["CJT-EMR"]
["CPI_CP-ENS_B"]
["CPI_CP-ENS_U"]
["CPI_CP-SEC_B"]
["CPI_CP-SEC_U"]
["CPI_RL-1INR_ENS"]
["CPI_RL-1INR_MUL"]
["CPI_RL-1INR_SEC"]
["CPI_RL-2I_ENS"]
["CPI_RL-2I_MUL"]
["CPI_RL-2I_SEC"]
["CPI_RL-3I_ENS"]
["CPI_RL-3I_MUL"]
["CPI_RL-3I_SEC"]
["CPI_RL-MUL"]
["CPI_RL-PR"]
["CPR_BA"]
["CPR_T"]
["CPR_U-ENS"]
["CPR_U-PR"]
["CPR_U-SEC"]
["EC_MIXTE-BAS"]
["EC_MIXTE-HAUT"]
["EC_MIXTE-NEUTRE"]
["EC_SEL-BAS"]
["EC_SEL-HAUT"]
["EC_SEL-NEUTRE"]
["EJ_P-CLAS"]
["EJ_PG-CLAS"]
["EJ_PG-INI"]
["EJ_P-INI"]
["Inscrire une valeur"]
[]
["Codes_RATF"]
["CJBM"]
["CJBMO"]
["CJPAM"]
["CJPGAM"]
["CJPGHQ"]
["CJPGQM"]
["CJPHQ"]
["CJPQM"]
["CJTM"]
["CJTMO"]
["CPIENSBMSF"]
["CPIENSBOSF"]
["CPIUENSFM"]
["CPIUENSOFM"]
["CPIUENSOSF"]
["CPIUENSSF"]
["CPISECBMSF"]
["CPISECBOSF"]
["CPIUSECFM"]
["CPIUSECOFM"]
["CPIUSECOSF"]
["CPIUSECSF"]
["1INRENSMFM"]
["1INRENSMSF"]
["1INRENSOFM"]
["1INRENSOSF"]
["1INRMULMFM"]
["1INRMULMSF"]
["1INRMULOFM"]
["1INRMULOSF"]
["1INRSECMFM"]
["1INRSECMSF"]
["1INRSECOFM"]
["1INRSECOSF"]
["CPIL2ENOFM"]
["CPIL2ENOSF"]
["CPIRL2ENFM"]
["CPIRL2ENSF"]
["2IMULMFM"]
["2IMULMSF"]
["2IMULOFM"]
["2IMULOSF"]
["CPIL2SEOFM"]
["CPIL2SEOSF"]
["CPIRL2SEFM"]
["CPIRL2SESF"]
["CPIL3ENOFM"]
["CPIL3ENOSF"]
["CPIRL3ENFM"]
["CPIRL3ENSF"]
["3IMULMFM"]
["3IMULMSF"]
["3IMULOFM"]
["3IMULOSF"]
["CPIL3SEOFM"]
["CPIL3SEOSF"]
["CPIRL3SEFM"]
["CPIRL3SESF"]
["CPILMULOFM"]
["CPILMULOSF"]
["CPIRLMULFM"]
["CPIRLMULSF"]
["CPIRLPRFM"]
["CPIRLPROFM"]
["CPIRLPROSF"]
["CPIRLPRSF"]
["CPRBAMFM"]
["CPRBAMSF"]
["CPRBAOFM"]
["CPRBAOSF"]
["CPRTMFM"]
["CPRTMSF"]
["CPRTOFM"]
["CPRTOSF"]
["CPRUENSFM"]
["CPRUENSOFM"]
["CPRUENSOSF"]
["CPRUENSSF"]
["CPRUPRFM"]
["CPRUPROFM"]
["CPRUPROSF"]
["CPRUPRSF"]
["CPRUSECFM"]
["CPRUSECOFM"]
["CPRUSECOSF"]
["CPRUSECSF"]
["ECMIXBASFM"]
["ECMIXBASSF"]
["ECMIXHAUFM"]
["ECMIXHAUSF"]
["ECMIXNEUFM"]
["ECMIXNEUSF"]
["ECSELBASFM"]
["ECSELBASSF"]
["ECSELHAUFM"]
["ECSELHAUSF"]
["ECSELNEUFM"]
["ECSELNEUSF"]
["EJPCLAS"]
["EJPGCLAS"]
["EJPGINI"]
["EJPINI"]
["Inscrire une valeur"]
[]
["Codes_DICA vs Codes_RATF","Codes_RATF","Indirect","Description"]
["CJB-EMR","CJBM","RATF_CJB_EMR","Coupe de jardinage par bandes avec éclaircie dans la matrice résiduelle, Martelage"]
["CJB-EMR","CJBMO","RATF_CJB_EMR","Coupe de jardinage par bandes avec éclaircie dans la matrice résiduelle, Opérateur"]
["CJP-AM","CJPAM","RATF_CJP_AM","Coupe de jardinage par pieds d'arbre, amélioration de la qualité, Martelage"]
["CJPG-AM","CJPGAM","RATF_CJPG_AM","Coupe de jardinage par pieds d'arbre et groupes d'arbres, amélioration de la qualité, Martelage"]
["CJPG-HQ","CJPGHQ","RATF_CJPG_HQ","Coupe de jardinage par pieds d'arbre et groupes d'arbres, maintien d'une haute qualité, Martelage"]
["CJPG-QM","CJPGQM","RATF_CJPG_QM","Coupe de jardinage par pieds d'arbre et groupes d'arbres, maintien d'une qualité modérée, Martelage"]
["CJP-HQ","CJPHQ","RATF_CJP_HQ","Coupe de jardinage par pieds d'arbre, maintien d'une haute qualité, Martelage"]
["CJP-QM","CJPQM","RATF_CJP_QM","Coupe de jardinage par pieds d'arbre, maintien d'une qualité modérée, Martelage"]
["CJT-EMR","CJTM","RATF_CJT_EMR","Coupe de jardinage par trouées avec éclaircie dans la matrice résiduelle, Martelage"]
["CJT-EMR","CJTMO","RATF_CJT_EMR","Coupe de jardinage par trouées avec éclaircie dans la matrice résiduelle, Opérateur"]
["CPI_CP-ENS_B","CPIENSBMSF","RATF_CPI_CP_ENS_B","Coupe progressive irrégulière à couvert permanent par bandes, coupe d'ensemencement, Martelage, type de peuplement SEPM, feuillus intolérants et mixte résineux"]
["CPI_CP-ENS_B","CPIENSBOSF","RATF_CPI_CP_ENS_B","Coupe progressive irrégulière à couvert permanent par bandes, coupe d'ensemencement, Opérateur, type de peuplement SEPM, feuillus intolérants et mixte résineux"]
["CPI_CP-ENS_U","CPIUENSFM","RATF_CPI_CP_ENS_U","Coupe progressive irrégulière à couvert permanent, coupe d'ensemencement, patron d'intervention uniforme, Martelage,  type de peuplement feuillus tolérants, autres résineux et mixte feuillus"]
["CPI_CP-ENS_U","CPIUENSOFM","RATF_CPI_CP_ENS_U","Coupe progressive irrégulière à couvert permanent, coupe d'ensemencement, patron d'intervention uniforme, Opérateur,  type de peuplement feuillus tolérants, autres résineux et mixte feuillus"]
["CPI_CP-ENS_U","CPIUENSOSF","RATF_CPI_CP_ENS_U","Coupe progressive irrégulière à couvert permanent, coupe d'ensemencement, patron d'intervention uniforme, Opérateur,  type de peuplement SEPM, feuillus intolérants et mixte résineux"]
["CPI_CP-ENS_U","CPIUENSSF","RATF_CPI_CP_ENS_U","Coupe progressive irrégulière à couvert permanent, coupe d'ensemencement, patron d'intervention uniforme, Martelage,  type de peuplement SEPM, feuillus intolérants et mixte résineux"]
["CPI_CP-SEC_B","CPISECBMSF","RATF_CPI_CP_SEC_B","Coupe progressive irrégulière à couvert permanent par bandes, coupe secondaire, Martelage, type de peuplement SEPM, feuillus intolérants et mixte résineux"]
["CPI_CP-SEC_B","CPISECBOSF","RATF_CPI_CP_SEC_B","Coupe progressive irrégulière à couvert permanent par bandes, coupe secondaire, Opérateur, type de peuplement SEPM, feuillus intolérants et mixte résineux"]
["CPI_CP-SEC_U","CPIUSECFM","RATF_CPI_CP_SEC_U","Coupe progressive irrégulière à couvert permanent, coupe secondaire, patron d'intervention uniforme, Martelage,  type de peuplement feuillus tolérants, autres résineux et mixte feuillus"]
["CPI_CP-SEC_U","CPIUSECOFM","RATF_CPI_CP_SEC_U","Coupe progressive irrégulière à couvert permanent, coupe secondaire, patron d'intervention uniforme, Opérateur,  type de peuplement feuillus tolérants, autres résineux et mixte feuillus"]
["CPI_CP-SEC_U","CPIUSECOSF","RATF_CPI_CP_SEC_U","Coupe progressive irrégulière à couvert permanent, coupe secondaire, patron d'intervention uniforme, Opérateur,  type de peuplement SEPM, feuillus intolérants et mixte résineux"]
["CPI_CP-SEC_U","CPIUSECSF","RATF_CPI_CP_SEC_U","Coupe progressive irrégulière à couvert permanent, coupe secondaire, patron d'intervention uniforme, Martelage,  type de peuplement SEPM, feuillus intolérants et mixte résineux"]
["CPI_RL-1INR_ENS","1INRENSMFM","RATF_CPI_RL_1INR_ENS","Coupe progressive irrégulière à régénération lente en 1 intervention et abandon du volume résiduel, phase d'ensemencement, Martelage, type de peuplement feuillus tolérants, autres résineux et mixte feuillus"]
["CPI_RL-1INR_ENS","1INRENSMSF","RATF_CPI_RL_1INR_ENS","Coupe progressive irrégulière à régénération lente en 1 intervention et abandon du volume résiduel, phase d'ensemencement, Martelage, type de peuplement SEPM, feuillus intolérants et mixte résineux"]
["CPI_RL-1INR_ENS","1INRENSOFM","RATF_CPI_RL_1INR_ENS","Coupe progressive irrégulière à régénération lente en 1 intervention et abandon du volume résiduel, phase d'ensemencement, Opérateur, type de peuplement feuillus tolérants, autres résineux et mixte feuillus"]
["CPI_RL-1INR_ENS","1INRENSOSF","RATF_CPI_RL_1INR_ENS","Coupe progressive irrégulière à régénération lente en 1 intervention et abandon du volume résiduel, phase d'ensemencement, Opérateur, type de peuplement SEPM, feuillus intolérants et mixte résineux"]
["CPI_RL-1INR_MUL","1INRMULMFM","RATF_CPI_RL_1INR_MUL","Coupe progressive irrégulière à régénération lente en 1 intervention et abandon du volume résiduel, Multiples phases, Martelage, type de peuplement feuillus tolérants, autres résineux et mixte feuillus"]
["CPI_RL-1INR_MUL","1INRMULMSF","RATF_CPI_RL_1INR_MUL","Coupe progressive irrégulière à régénération lente en 1 intervention et abandon du volume résiduel, Multiples phases, Martelage, type de peuplement SEPM, feuillus intolérants et mixte résineux"]
["CPI_RL-1INR_MUL","1INRMULOFM","RATF_CPI_RL_1INR_MUL","Coupe progressive irrégulière à régénération lente en 1 intervention et abandon du volume résiduel, Multiples phases, Opérateur, type de peuplement feuillus tolérants, autres résineux et mixte feuillus"]
["CPI_RL-1INR_MUL","1INRMULOSF","RATF_CPI_RL_1INR_MUL","Coupe progressive irrégulière à régénération lente en 1 intervention et abandon du volume résiduel, Multiples phases, Opérateur, type de peuplement SEPM, feuillus intolérants et mixte résineux"]
["CPI_RL-1INR_SEC","1INRSECMFM","RATF_CPI_RL_1INR_SEC","Coupe progressive irrégulière à régénération lente en 1 intervention et abandon du volume résiduel, phase secondaire, Martelage, type de peuplement feuillus tolérants, autres résineux et mixte feuillus"]
["CPI_RL-1INR_SEC","1INRSECMSF","RATF_CPI_RL_1INR_SEC","Coupe progressive irrégulière à régénération lente en 1 intervention et abandon du volume résiduel, phase secondaire, Martelage, type de peuplement SEPM, feuillus intolérants et mixte résineux"]
["CPI_RL-1INR_SEC","1INRSECOFM","RATF_CPI_RL_1INR_SEC","Coupe progressive irrégulière à régénération lente en 1 intervention et abandon du volume résiduel, phase secondaire, Opérateur, type de peuplement feuillus tolérants, autres résineux et mixte feuillus"]
["CPI_RL-1INR_SEC","1INRSECOSF","RATF_CPI_RL_1INR_SEC","Coupe progressive irrégulière à régénération lente en 1 intervention et abandon du volume résiduel, phase secondaire, Opérateur, type de peuplement SEPM, feuillus intolérants et mixte résineux"]
["CPI_RL-2I_ENS","CPIL2ENOFM","RATF_CPI_RL_2I_ENS","Coupe progressive irrégulière à régénération lente, 2 interventions, coupe d'ensemencement, Opérateur, type de peuplement feuillus tolérants, autres résineux et mixte feuillus"]
["CPI_RL-2I_ENS","CPIL2ENOSF","RATF_CPI_RL_2I_ENS","Coupe progressive irrégulière à régénération lente, 2 interventions, coupe d'ensemencement, Opérateur, type de peuplement SEPM, feuillus intolérants et mixte résineux"]
["CPI_RL-2I_ENS","CPIRL2ENFM","RATF_CPI_RL_2I_ENS","Coupe progressive irrégulière à régénération lente, 2 interventions, coupe d'ensemencement, Martelage, type de peuplement feuillus tolérants, autres résineux et mixte feuillus"]
["CPI_RL-2I_ENS","CPIRL2ENSF","RATF_CPI_RL_2I_ENS","Coupe progressive irrégulière à régénération lente, 2 interventions, coupe d'ensemencement, Martelage, type de peuplement SEPM, feuillus intolérants et mixte résineux"]
["CPI_RL-2I_MUL","2IMULMFM","RATF_CPI_RL_2I_MUL","Coupe progressive irrégulière à régénération lente en 2 interventions et abandon du volume résiduel, Multiples phases, Martelage, type de peuplement feuillus tolérants, autres résineux et mixte feuillus"]
["CPI_RL-2I_MUL","2IMULMSF","RATF_CPI_RL_2I_MUL","Coupe progressive irrégulière à régénération lente en 2 interventions et abandon du volume résiduel, Multiples phases, Martelage, type de peuplement SEPM, feuillus intolérants et mixte résineux"]
["CPI_RL-2I_MUL","2IMULOFM","RATF_CPI_RL_2I_MUL","Coupe progressive irrégulière à régénération lente en 2 interventions et abandon du volume résiduel, Multiples phases, Opérateur, type de peuplement feuillus tolérants, autres résineux et mixte feuillus"]
["CPI_RL-2I_MUL","2IMULOSF","RATF_CPI_RL_2I_MUL","Coupe progressive irrégulière à régénération lente en 2 interventions et abandon du volume résiduel, Multiples phases, Opérateur, type de peuplement SEPM, feuillus intolérants et mixte résineux"]
["CPI_RL-2I_SEC","CPIL2SEOFM","RATF_CPI_RL_2I_SEC","Coupe progressive irrégulière à régénération lente, 2 interventions, coupe secondaire, Opérateur, type de peuplement feuillus tolérants, autres résineux, mixte feuillus"]
["CPI_RL-2I_SEC","CPIL2SEOSF","RATF_CPI_RL_2I_SEC","Coupe progressive irrégulière à régénération lente, 2 interventions, coupe secondaire, Opérateur, type de peuplement SEPM, feuillus intolérants, mixte résineux"]
["CPI_RL-2I_SEC","CPIRL2SEFM","RATF_CPI_RL_2I_SEC","Coupe progressive irrégulière à régénération lente, 2 interventions, coupe secondaire, Martelage, type de peuplement feuillus tolérants, autres résineux, mixte feuillus"]
["CPI_RL-2I_SEC","CPIRL2SESF","RATF_CPI_RL_2I_SEC","Coupe progressive irrégulière à régénération lente, 2 interventions, coupe secondaire, Martelage, type de peuplement SEPM, feuillus intolérants, mixte résineux"]
["CPI_RL-3I_ENS","CPIL3ENOFM","RATF_CPI_RL_3I_ENS","Coupe progressive irrégulière à régénération lente, 3 interventions, coupe d'ensemencement, Opérateur, type de peuplement feuillus tolérants, autres résineux et mixte feuillus"]
["CPI_RL-3I_ENS","CPIL3ENOSF","RATF_CPI_RL_3I_ENS","Coupe progressive irrégulière à régénération lente, 3 interventions, coupe d'ensemencement, Opérateur, type de peuplement SEPM, feuillus intolérants et mixte résineux"]
["CPI_RL-3I_ENS","CPIRL3ENFM","RATF_CPI_RL_3I_ENS","Coupe progressive irrégulière à régénération lente, 3 interventions, coupe d'ensemencement, Martelage, type de peuplement feuillus tolérants, autres résineux et mixte feuillus"]
["CPI_RL-3I_ENS","CPIRL3ENSF","RATF_CPI_RL_3I_ENS","Coupe progressive irrégulière à régénération lente, 3 interventions, coupe d'ensemencement, Martelage, type de peuplement SEPM, feuillus intolérants et mixte résineux"]
["CPI_RL-3I_MUL","3IMULMFM","RATF_CPI_RL_3I_MUL","Coupe progressive irrégulière à régénération lente en 3 interventions et abandon du volume résiduel, Multiples phases, Martelage, type de peuplement feuillus tolérants, autres résineux et mixte feuillus"]
["CPI_RL-3I_MUL","3IMULMSF","RATF_CPI_RL_3I_MUL","Coupe progressive irrégulière à régénération lente en 3 interventions et abandon du volume résiduel, Multiples phases, Martelage, type de peuplement SEPM, feuillus intolérants et mixte résineux"]
["CPI_RL-3I_MUL","3IMULOFM","RATF_CPI_RL_3I_MUL","Coupe progressive irrégulière à régénération lente en 3 interventions et abandon du volume résiduel, Multiples phases, Opérateur, type de peuplement feuillus tolérants, autres résineux et mixte feuillus"]
["CPI_RL-3I_MUL","3IMULOSF","RATF_CPI_RL_3I_MUL","Coupe progressive irrégulière à régénération lente en 3 interventions et abandon du volume résiduel, Multiples phases, Opérateur, type de peuplement SEPM, feuillus intolérants et mixte résineux"]
["CPI_RL-3I_SEC","CPIL3SEOFM","RATF_CPI_RL_3I_SEC","Coupe progressive irrégulière à régénération lente, 3 interventions, coupe secondaire, Opérateur, type de peuplement feuillus tolérants, autres résineux, mixte feuillus"]
["CPI_RL-3I_SEC","CPIL3SEOSF","RATF_CPI_RL_3I_SEC","Coupe progressive irrégulière à régénération lente, 3 interventions, coupe secondaire, Opérateur, type de peuplement SEPM, feuillus intolérants, mixte résineux"]
["CPI_RL-3I_SEC","CPIRL3SEFM","RATF_CPI_RL_3I_SEC","Coupe progressive irrégulière à régénération lente, 3 interventions, coupe secondaire, Martelage, type de peuplement feuillus tolérants, autres résineux, mixte feuillus"]
["CPI_RL-3I_SEC","CPIRL3SESF","RATF_CPI_RL_3I_SEC","Coupe progressive irrégulière à régénération lente, 3 interventions, coupe secondaire, Martelage, type de peuplement SEPM, feuillus intolérants, mixte résineux"]
["CPI_RL-MUL","CPILMULOFM","RATF_CPI_RL_MUL","Coupe progressive irrégulière à régénération lente, coupe multiples phases, Opérateur, type de peuplement feuillus tolérants, autres résineux et mixte feuillus"]
["CPI_RL-MUL","CPILMULOSF","RATF_CPI_RL_MUL","Coupe progressive irrégulière à régénération lente, coupe multiples phases, Opérateur, type de peuplement SEPM, feuillus intolérants, mixte feuillus"]
["CPI_RL-MUL","CPIRLMULFM","RATF_CPI_RL_MUL","Coupe progressive irrégulière à régénération lente, coupe multiples phases, Martelage, type de peuplement feuillus tolérants, autres résineux et mixte feuillus"]
["CPI_RL-MUL","CPIRLMULSF","RATF_CPI_RL_MUL","Coupe progressive irrégulière à régénération lente, coupe multiples phases, Martelage, type de peuplement SEPM, feuillus intolérants, mixte feuillus"]
["CPI_RL-PR","CPIRLPRFM","RATF_CPI_RL_PR","Coupe progressive irrégulière à régénération lente, coupe préparatoire, Martelage, type de peuplement feuillus tolérants, autres résineux et mixte feuillus"]
["CPI_RL-PR","CPIRLPROFM","RATF_CPI_RL_PR","Coupe progressive irrégulière à régénération lente, coupe préparatoire, Opérateur, type de peuplement feuillus tolérants, autres résineux et mixte feuillus"]
["CPI_RL-PR","CPIRLPROSF","RATF_CPI_RL_PR","Coupe progressive irrégulière à régénération lente, coupe préparatoire, Opérateur, type de peuplement SEPM, feuillus intolérants et mixte résineux"]
["CPI_RL-PR","CPIRLPRSF","RATF_CPI_RL_PR","Coupe progressive irrégulière à régénération lente, coupe préparatoire, Martelage, type de peuplement SEPM, feuillus intolérants et mixte résineux"]
["CPR_BA","CPRBAMFM","RATF_CPR_BA","Coupe progressive régulière par bande, Martelage, type de peuplement feuillus tolérants, autres résineux et mixte feuillus"]
["CPR_BA","CPRBAMSF","RATF_CPR_BA","Coupe progressive régulière par bande, Martelage, type de peuplement  SEPM, feuillus intolérants et mixte résineux"]
["CPR_BA","CPRBAOFM","RATF_CPR_BA","Coupe progressive régulière par bande, Opérateur, type de peuplement feuillus tolérants, autres résineux et mixte feuillus"]
["CPR_BA","CPRBAOSF","RATF_CPR_BA","Coupe progressive régulière par bande, Opérateur, type de peuplement  SEPM, feuillus intolérants et mixte résineux"]
["CPR_T","CPRTMFM","RATF_CPR_T","Coupe progressive régulière par troués, Martelage, type de peuplement feuillus tolérants, autres résineux et mixte feuillus"]
["CPR_T","CPRTMSF","RATF_CPR_T","Coupe progressive régulière par trouées, Martelage, type de peuplement  SEPM, feuillus intolérants et mixte résineux"]
["CPR_T","CPRTOFM","RATF_CPR_T","Coupe progressive régulière par trouées, Opérateur, type de peuplement feuillus tolérants, autres résineux et mixte feuillus"]
["CPR_T","CPRTOSF","RATF_CPR_T","Coupe progressive régulière par trouées, Opérateur, type de peuplement  SEPM, feuillus intolérants et mixte résineux"]
["CPR_U-ENS","CPRUENSFM","RATF_CPR_U_ENS","Coupe progressive régulière uniforme, coupe d'ensemencement, Martelage, type de peuplement feuillus tolérants, autres résineux et mixte feuillus"]
["CPR_U-ENS","CPRUENSOFM","RATF_CPR_U_ENS","Coupe progressive régulière uniforme, coupe d'ensemencement, Opérateur, type de peuplement feuillus tolérants, autres résineux et mixte feuillus"]
["CPR_U-ENS","CPRUENSOSF","RATF_CPR_U_ENS","Coupe progressive régulière uniforme, coupe d'ensemencement, Opérateur, type de peuplement SEPM, feuillus intolérants et mixte résineux"]
["CPR_U-ENS","CPRUENSSF","RATF_CPR_U_ENS","Coupe progressive régulière uniforme, coupe d'ensemencement, Martelage, type de peuplement SEPM, feuillus intolérants et mixte résineux"]
["CPR_U-PR","CPRUPRFM","RATF_CPR_U_PR","Coupe progressive régulière uniforme, coupe préparatoire, Martelage, type de peuplement feuillus tolérants, autres résineux et mixte feuillus"]
["CPR_U-PR","CPRUPROFM","RATF_CPR_U_PR","Coupe progressive régulière uniforme, coupe préparatoire, Opérateur, peuplement feuillus tolérants, autres résineux et mixte feuillus"]
["CPR_U-PR","CPRUPROSF","RATF_CPR_U_PR","Coupe progressive régulière uniforme, Coupe préparatoire, Opérateur, peuplement SEPM, feuillus intolérants et mixte résineux"]
["CPR_U-PR","CPRUPRSF","RATF_CPR_U_PR","Coupe progressive régulière uniforme, coupe préparatoire, Martelage, type de peuplement SEPM, feuillus intolérants et mixte résineux"]
["CPR_U-SEC","CPRUSECFM","RATF_CPR_U_SEC","Coupe progressive régulière uniforme, coupe secondaire, Martelage, type de peuplement feuillus tolérants, autres résineux et mixte feuillus"]
["CPR_U-SEC","CPRUSECOFM","RATF_CPR_U_SEC","Coupe progressive régulière uniforme, coupe secondaire, Opérateur, type de peuplement feuillus tolérants, autres résineux et mixte feuillus"]
["CPR_U-SEC","CPRUSECOSF","RATF_CPR_U_SEC","Coupe progressive régulière uniforme, coupe secondaire, Opérateur, type de peuplement SEPM, feuillus intolérants et mixte résineux"]
["CPR_U-SEC","CPRUSECSF","RATF_CPR_U_SEC","Coupe progressive régulière uniforme, coupe secondaire, Martelage, type de peuplement SEPM, feuillus intolérants et mixte résineux"]
["EC_MIXTE-BAS","ECMIXBASFM","RATF_EC_MIXTE_BAS","Éclaircie commerciale mixte par le bas, peuplement feuillus tolérants, autres résineux et mixte feuillus, taux variable"]
["EC_MIXTE-BAS","ECMIXBASSF","RATF_EC_MIXTE_BAS","Éclaircie commerciale mixte par le bas, peuplement SEPM, feuillus intolérants et mixte à tendance résineuse, taux variable"]
["EC_MIXTE-HAUT","ECMIXHAUFM","RATF_EC_MIXTE_HAUT","Éclaircie commerciale mixte par le haut, peuplement feuillus tolérants, autres résineux et mixte feuillus, taux variable"]
["EC_MIXTE-HAUT","ECMIXHAUSF","RATF_EC_MIXTE_HAUT","Éclaircie commerciale mixte par le haut, peuplement SEPM, feuillus intolérants et mixte à tendance résineuse, taux variable"]
["EC_MIXTE-NEUTRE","ECMIXNEUFM","RATF_EC_MIXTE_NEUTRE","Éclaircie commerciale patron d'intervention mixte neutre, peuplement feuillus tolérants, autres résineux et mixte feuillus, taux variable"]
["EC_MIXTE-NEUTRE","ECMIXNEUSF","RATF_EC_MIXTE_NEUTRE","Éclaircie commerciale mixte neutre, peuplement SEPM, feuillus intolérants et mixte à tendance résineuse, taux variable"]
["EC_SEL-BAS","ECSELBASFM","RATF_EC_SEL_BAS","Éclaircie commerciale sélective par le bas, peuplement feuillus tolérants, autres résineux et mixte feuillus, taux variable"]
["EC_SEL-BAS","ECSELBASSF","RATF_EC_SEL_BAS","Éclaircie commerciale sélective par le bas, peuplement SEPM et mixte à tendance résineuse et feuillus intolérants, taux variable"]
["EC_SEL-HAUT","ECSELHAUFM","RATF_EC_SEL_HAUT","Éclaircie commerciale sélective par le haut, peuplement feuillus tolérants, autres résineux et mixte feuillus, taux variable"]
["EC_SEL-HAUT","ECSELHAUSF","RATF_EC_SEL_HAUT","Éclaircie commerciale sélective par le haut, peuplement SEPM et mixte à tendance résineuse et feuillus intolérants, taux variable"]
["EC_SEL-NEUTRE","ECSELNEUFM","RATF_EC_SEL_NEUTRE","Éclaircie commerciale sélective neutre, peuplement feuillus tolérants, autres résineux et mixte feuillus, taux variable"]
["EC_SEL-NEUTRE","ECSELNEUSF","RATF_EC_SEL_NEUTRE","Éclaircie commerciale sélective neutre, peuplement SEPM et mixte à tendance résineuse et feuillus intolérants, taux variable"]
["EJ_P-CLAS","EJPCLAS","RATF_EJ_P_CLAS","Éclaircie jardinatoire par pied d'arbre classique ou finale, Martelage"]
["EJ_PG-CLAS","EJPGCLAS","RATF_EJ_PG_CLAS","Éclaircie jardinatoire par pied d'arbre et groupes d'arbres, classique ou finale, Martelage"]
["EJ_PG-INI","EJPGINI","RATF_EJ_PG_INI","Éclaircie jardinatoire par pied d'arbre et groupes d'arbres initiale, Martelage"]
["EJ_P-INI","EJPINI","RATF_EJ_P_INI","Éclaircie jardinatoire par pied d'arbre initiale, Martelage"]
["Inscrire une valeur",null,"RATF_Utilisateur"]
[]
[]
["Identification des tiges à récolter","Indirect","Valeur_menu_déroulant"]
["Formule 1 - EC1","Selection_Formule_1-EC1","Sans objet"]
["Formule 1 - EC2","Selection_Formule_1-EC2","Sans objet"]
["Formule 2","Selection_Formule_2","Sans objet"]
["Formule 4","Selection_Formule_4","Martelage"]
["Formule 4","Selection_Formule_4","Opérateur"]
["Formule 6","Selection_Formule_6","Opérateur"]
["Formule 7","Selection_Formule_7","Martelage"]
[]
[]
["H1"]
["AVEC hébergement",3.2000000000000001E-2]
["SANS hébergement",0]
[]
[]
["MAN"]
["Opérations MANUELLES",0.36,"Majoration_MAN_F1"]
["Opérations MÉCANISÉES",0,"Majoration_MAN_F1"]
["Sans objet",0,"Majoration_MAN_DIFF_F1"]
[]
[]
["RUB"]
["Pas de rubannage des sentiers"]
["Inscrire une valeur"]
[20]
[21]
[22]
[23]
[24]
[25]
[26]
[27]
[28]
[29]
[30]
[]
[]
["Formules"]
["Formule 1 - EC1"]
["Formule 1 - EC2"]
["Formule 2"]
["Formule 4"]
["Formule 6"]
["Formule 7"]
["Inscrire une valeur"]
[]
[]
["Code_DICA_vs_Formules","Formule_fin",null,"Valeur_pour_Indirect","DICA_sans_caractères_spéciaux","Indirect"]
["CJB-EMR",4,"Formule_4_CJB-EMR","Formule 4","CJB_EMR","F_CJB_EMR"]
["CJB-EMR",5,"Formule_5_CJB-EMR","Formule 5","CJB_EMR","F_CJB_EMR"]
["CJP-AM",4,"Formule_4_CJP-AM","Formule 4","CJP_AM","F_CJP_AM"]
["CJPG-AM",4,"Formule_4_CJPG-AM","Formule 4","CJPG_AM","F_CJPG_AM"]
["CJPG-HQ",4,"Formule_4_CJPG-HQ","Formule 4","CJPG_HQ","F_CJPG_HQ"]
["CJPG-QM",4,"Formule_4_CJPG-QM","Formule 4","CJPG_QM","F_CJPG_QM"]
["CJP-HQ",4,"Formule_4_CJP-HQ","Formule 4","CJP_HQ","F_CJP_HQ"]
["CJP-QM",4,"Formule_4_CJP-QM","Formule 4","CJP_QM","F_CJP_QM"]
["CJT-EMR",4,"Formule_4_CJT-EMR","Formule 4","CJT_EMR","F_CJT_EMR"]
["CJT-EMR",5,"Formule_5_CJT-EMR","Formule 5","CJT_EMR","F_CJT_EMR"]
["CPI_CP-ENS_B",6,"Formule_6_CPI_CP-ENS_B","Formule 6","CPI_CP_ENS_B","F_CPI_CP_ENS_B"]
["CPI_CP-ENS_B",7,"Formule_7_CPI_CP-ENS_B","Formule 7","CPI_CP_ENS_B","F_CPI_CP_ENS_B"]
["CPI_CP-ENS_U",4,"Formule_4_CPI_CP-ENS_U","Formule 4","CPI_CP_ENS_U","F_CPI_CP_ENS_U"]
["CPI_CP-ENS_U",5,"Formule_6_CPI_CP-ENS_U","Formule 6","CPI_CP_ENS_U","F_CPI_CP_ENS_U"]
["CPI_CP-ENS_U",6,"Formule_7_CPI_CP-ENS_U","Formule 7","CPI_CP_ENS_U","F_CPI_CP_ENS_U"]
["CPI_CP-ENS_U",5,"Formule_5_CPI_CP-ENS_U","Formule 5","CPI_CP_ENS_U","F_CPI_CP_ENS_U"]
["CPI_CP-SEC_B",6,"Formule_6_CPI_CP-SEC_B","Formule 6","CPI_CP_SEC_B","F_CPI_CP_SEC_B"]
["CPI_CP-SEC_B",7,"Formule_7_CPI_CP-SEC_B","Formule 7","CPI_CP_SEC_B","F_CPI_CP_SEC_B"]
["CPI_CP-SEC_U",4,"Formule_4_CPI_CP-SEC_U","Formule 4","CPI_CP_SEC_U","F_CPI_CP_SEC_U"]
["CPI_CP-SEC_U",6,"Formule_6_CPI_CP-SEC_U","Formule 6","CPI_CP_SEC_U","F_CPI_CP_SEC_U"]
["CPI_CP-SEC_U",7,"Formule_7_CPI_CP-SEC_U","Formule 7","CPI_CP_SEC_U","F_CPI_CP_SEC_U"]
["CPI_CP-SEC_U",5,"Formule_5_CPI_CP-SEC_U","Formule 5","CPI_CP_SEC_U","F_CPI_CP_SEC_U"]
["CPI_RL-1INR_ENS",4,"Formule_4_CPI_RL-1INR_ENS","Formule 4","CPI_RL-1INR_ENS","F_CPI_RL_1INR_ENS"]
["CPI_RL-1INR_ENS",6,"Formule_6_CPI_RL-1INR_ENS","Formule 6","CPI_RL-1INR_ENS","F_CPI_RL_1INR_ENS"]
["CPI_RL-1INR_ENS",7,"Formule_7_CPI_RL-1INR_ENS","Formule 7","CPI_RL-1INR_ENS","F_CPI_RL_1INR_ENS"]
["CPI_RL-1INR_ENS",5,"Formule_5_CPI_RL-1INR_ENS","Formule 5","CPI_RL-1INR_ENS","F_CPI_RL_1INR_ENS"]
["CPI_RL-1INR_MUL",4,"Formule_4_CPI_RL-1INR_MUL","Formule 4","CPI_RL-1INR_MUL","F_CPI_RL_1INR_MUL"]
["CPI_RL-1INR_MUL",6,"Formule_6_CPI_RL-1INR_MUL","Formule 6","CPI_RL-1INR_MUL","F_CPI_RL_1INR_MUL"]
["CPI_RL-1INR_MUL",7,"Formule_7_CPI_RL-1INR_MUL","Formule 7","CPI_RL-1INR_MUL","F_CPI_RL_1INR_MUL"]
["CPI_RL-1INR_MUL",5,"Formule_5_CPI_RL-1INR_MUL","Formule 5","CPI_RL-1INR_MUL","F_CPI_RL_1INR_MUL"]
["CPI_RL-1INR_SEC",4,"Formule_4_CPI_RL-1INR_SEC","Formule 4","CPI_RL-1INR_SEC","F_CPI_RL_1INR_SEC"]
["CPI_RL-1INR_SEC",6,"Formule_6_CPI_RL-1INR_SEC","Formule 6","CPI_RL-1INR_SEC","F_CPI_RL_1INR_SEC"]
["CPI_RL-1INR_SEC",7,"Formule_7_CPI_RL-1INR_SEC","Formule 7","CPI_RL-1INR_SEC","F_CPI_RL_1INR_SEC"]
["CPI_RL-1INR_SEC",5,"Formule_5_CPI_RL-1INR_SEC","Formule 5","CPI_RL-1INR_SEC","F_CPI_RL_1INR_SEC"]
["CPI_RL-2I_ENS",4,"Formule_4_CPI_RL-2I_ENS","Formule 4","CPI_RL_2I_ENS","F_CPI_RL_2I_ENS"]
["CPI_RL-2I_ENS",6,"Formule_6_CPI_RL-2I_ENS","Formule 6","CPI_RL_2I_ENS","F_CPI_RL_2I_ENS"]
["CPI_RL-2I_ENS",7,"Formule_7_CPI_RL-2I_ENS","Formule 7","CPI_RL_2I_ENS","F_CPI_RL_2I_ENS"]
["CPI_RL-2I_ENS",5,"Formule_5_CPI_RL-2I_ENS","Formule 5","CPI_RL_2I_ENS","F_CPI_RL_2I_ENS"]
["CPI_RL-2I_MUL",4,"Formule_4_CPI_RL-2I_MUL","Formule 4","CPI_RL-2I_MUL","F_CPI_RL_2I_MUL"]
["CPI_RL-2I_MUL",6,"Formule_6_CPI_RL-2I_MUL","Formule 6","CPI_RL-2I_MUL","F_CPI_RL_2I_MUL"]
["CPI_RL-2I_MUL",7,"Formule_7_CPI_RL-2I_MUL","Formule 7","CPI_RL-2I_MUL","F_CPI_RL_2I_MUL"]
["CPI_RL-2I_MUL",5,"Formule_5_CPI_RL-2I_MUL","Formule 5","CPI_RL-2I_MUL","F_CPI_RL_2I_MUL"]
["CPI_RL-2I_SEC",4,"Formule_4_CPI_RL-2I_SEC","Formule 4","CPI_RL_2I_SEC","F_CPI_RL_2I_SEC"]
["CPI_RL-2I_SEC",6,"Formule_6_CPI_RL-2I_SEC","Formule 6","CPI_RL_2I_SEC","F_CPI_RL_2I_SEC"]
["CPI_RL-2I_SEC",7,"Formule_7_CPI_RL-2I_SEC","Formule 7","CPI_RL_2I_SEC","F_CPI_RL_2I_SEC"]
["CPI_RL-2I_SEC",5,"Formule_5_CPI_RL-2I_SEC","Formule 5","CPI_RL_2I_SEC","F_CPI_RL_2I_SEC"]
["CPI_RL-3I_ENS",4,"Formule_4_CPI_RL-3I_ENS","Formule 4","CPI_RL_3I_ENS","F_CPI_RL_3I_ENS"]
["CPI_RL-3I_ENS",6,"Formule_6_CPI_RL-3I_ENS","Formule 6","CPI_RL_3I_ENS","F_CPI_RL_3I_ENS"]
["CPI_RL-3I_ENS",7,"Formule_7_CPI_RL-3I_ENS","Formule 7","CPI_RL_3I_ENS","F_CPI_RL_3I_ENS"]
["CPI_RL-3I_ENS",5,"Formule_5_CPI_RL-3I_ENS","Formule 5","CPI_RL_3I_ENS","F_CPI_RL_3I_ENS"]
["CPI_RL-3I_MUL",4,"Formule_4_CPI_RL-3I_MUL","Formule 4","CPI_RL-3I_MUL","F_CPI_RL_3I_MUL"]
["CPI_RL-3I_MUL",6,"Formule_6_CPI_RL-3I_MUL","Formule 6","CPI_RL-3I_MUL","F_CPI_RL_3I_MUL"]
["CPI_RL-3I_MUL",7,"Formule_7_CPI_RL-3I_MUL","Formule 7","CPI_RL-3I_MUL","F_CPI_RL_3I_MUL"]
["CPI_RL-3I_MUL",5,"Formule_5_CPI_RL-3I_MUL","Formule 5","CPI_RL-3I_MUL","F_CPI_RL_3I_MUL"]
["CPI_RL-3I_SEC",4,"Formule_4_CPI_RL-3I_SEC","Formule 4","CPI_RL_3I_SEC","F_CPI_RL_3I_SEC"]
["CPI_RL-3I_SEC",6,"Formule_6_CPI_RL-3I_SEC","Formule 6","CPI_RL_3I_SEC","F_CPI_RL_3I_SEC"]
["CPI_RL-3I_SEC",7,"Formule_7_CPI_RL-3I_SEC","Formule 7","CPI_RL_3I_SEC","F_CPI_RL_3I_SEC"]
["CPI_RL-3I_SEC",5,"Formule_5_CPI_RL-3I_SEC","Formule 5","CPI_RL_3I_SEC","F_CPI_RL_3I_SEC"]
["CPI_RL-MUL",4,"Formule_4_CPI_RL-MUL","Formule 4","CPI_RL_MUL","F_CPI_RL_MUL"]
["CPI_RL-MUL",6,"Formule_6_CPI_RL-MUL","Formule 6","CPI_RL_MUL","F_CPI_RL_MUL"]
["CPI_RL-MUL",7,"Formule_7_CPI_RL-MUL","Formule 7","CPI_RL_MUL","F_CPI_RL_MUL"]
["CPI_RL-MUL",5,"Formule_5_CPI_RL-MUL","Formule 5","CPI_RL_MUL","F_CPI_RL_MUL"]
["CPI_RL-PR",4,"Formule_4_CPI_RL-PR","Formule 4","CPI_RL_PR","F_CPI_RL_PR"]
["CPI_RL-PR",6,"Formule_6_CPI_RL-PR","Formule 6","CPI_RL_PR","F_CPI_RL_PR"]
["CPI_RL-PR",7,"Formule_7_CPI_RL-PR","Formule 7","CPI_RL_PR","F_CPI_RL_PR"]
["CPI_RL-PR",5,"Formule_5_CPI_RL-PR","Formule 5","CPI_RL_PR","F_CPI_RL_PR"]
["CPR_BA",4,"Formule_4_CPR_BA","Formule 4","CPR_BA","F_CPR_BA"]
["CPR_BA",6,"Formule_6_CPR_BA","Formule 6","CPR_BA","F_CPR_BA"]
["CPR_BA",7,"Formule_7_CPR_BA","Formule 7","CPR_BA","F_CPR_BA"]
["CPR_BA",5,"Formule_5_CPR_BA","Formule 5","CPR_BA","F_CPR_BA"]
["CPR_T",4,"Formule_4_CPR_T","Formule 4","CPR_T","F_CPR_T"]
["CPR_T",6,"Formule_6_CPR_T","Formule 6","CPR_T","F_CPR_T"]
["CPR_T",7,"Formule_7_CPR_T","Formule 7","CPR_T","F_CPR_T"]
["CPR_T",5,"Formule_5_CPR_T","Formule 5","CPR_T","F_CPR_T"]
["CPR_U-ENS",4,"Formule_4_CPR_U-ENS","Formule 4","CPR_U_ENS","F_CPR_U_ENS"]
["CPR_U-ENS",6,"Formule_6_CPR_U-ENS","Formule 6","CPR_U_ENS","F_CPR_U_ENS"]
["CPR_U-ENS",7,"Formule_7_CPR_U-ENS","Formule 7","CPR_U_ENS","F_CPR_U_ENS"]
["CPR_U-ENS",5,"Formule_5_CPR_U-ENS","Formule 5","CPR_U_ENS","F_CPR_U_ENS"]
["CPR_U-PR",4,"Formule_4_CPR_U-PR","Formule 4","CPR_U_PR","F_CPR_U_PR"]
["CPR_U-PR",6,"Formule_6_CPR_U-PR","Formule 6","CPR_U_PR","F_CPR_U_PR"]
["CPR_U-PR",7,"Formule_7_CPR_U-PR","Formule 7","CPR_U_PR","F_CPR_U_PR"]
["CPR_U-PR",5,"Formule_5_CPR_U-PR","Formule 5","CPR_U_PR","F_CPR_U_PR"]
["CPR_U-SEC",4,"Formule_4_CPR_U-SEC","Formule 4","CPR_U-SEC","F_CPR_U_SEC"]
["CPR_U-SEC",6,"Formule_6_CPR_U-SEC","Formule 6","CPR_U-SEC","F_CPR_U_SEC"]
["CPR_U-SEC",7,"Formule_7_CPR_U-SEC","Formule 7","CPR_U-SEC","F_CPR_U_SEC"]
["CPR_U-SEC",5,"Formule_5_CPR_U-SEC","Formule 5","CPR_U-SEC","F_CPR_U_SEC"]
["EC_MIXTE-BAS","1-EC1","Formule_1-EC1_EC_MIXTE-BAS","Formule 1 - EC1","EC_MIXTE_BAS","F_EC_MIXTE_BAS"]
["EC_MIXTE-BAS","1-EC2","Formule_1-EC2_EC_MIXTE-BAS","Formule 1 - EC2","EC_MIXTE_BAS","F_EC_MIXTE_BAS"]
["EC_MIXTE-BAS",2,"Formule_2_EC_MIXTE-BAS","Formule 2","EC_MIXTE_BAS","F_EC_MIXTE_BAS"]
["EC_MIXTE-HAUT","1-EC1","Formule_1-EC1_EC_MIXTE-HAUT","Formule 1 - EC1","EC_MIXTE_HAUT","F_EC_MIXTE_HAUT"]
["EC_MIXTE-HAUT","1-EC2","Formule_1-EC2_EC_MIXTE-HAUT","Formule 1 - EC2","EC_MIXTE_HAUT","F_EC_MIXTE_HAUT"]
["EC_MIXTE-HAUT",2,"Formule_2_EC_MIXTE-HAUT","Formule 2","EC_MIXTE_HAUT","F_EC_MIXTE_HAUT"]
["EC_MIXTE-NEUTRE","1-EC1","Formule_1-EC1_EC_MIXTE-NEUTRE","Formule 1 - EC1","EC_MIXTE_NEUTRE","F_EC_MIXTE_NEUTRE"]
["EC_MIXTE-NEUTRE","1-EC2","Formule_1-EC2_EC_MIXTE-NEUTRE","Formule 1 - EC2","EC_MIXTE_NEUTRE","F_EC_MIXTE_NEUTRE"]
["EC_MIXTE-NEUTRE",2,"Formule_2_EC_MIXTE-NEUTRE","Formule 2","EC_MIXTE_NEUTRE","F_EC_MIXTE_NEUTRE"]
["EC_SEL-BAS","1-EC1","Formule_1-EC1_EC_SEL-BAS","Formule 1 - EC1","EC_SEL_BAS","F_EC_SEL_BAS"]
["EC_SEL-BAS","1-EC2","Formule_1-EC2_EC_SEL-BAS","Formule 1 - EC2","EC_SEL_BAS","F_EC_SEL_BAS"]
["EC_SEL-BAS",2,"Formule_2_EC_SEL-BAS","Formule 2","EC_SEL_BAS","F_EC_SEL_BAS"]
["EC_SEL-HAUT","1-EC1","Formule_1-EC1_EC_SEL-HAUT","Formule 1 - EC1","EC_SEL_HAUT","F_EC_SEL_HAUT"]
["EC_SEL-HAUT","1-EC2","Formule_1-EC2_EC_SEL-HAUT","Formule 1 - EC2","EC_SEL_HAUT","F_EC_SEL_HAUT"]
["EC_SEL-HAUT",2,"Formule_2_EC_SEL-HAUT","Formule 2","EC_SEL_HAUT","F_EC_SEL_HAUT"]
["EC_SEL-NEUTRE","1-EC1","Formule_1-EC1_EC_SEL-NEUTRE","Formule 1 - EC1","EC_SEL_NEUTRE","F_EC_SEL_NEUTRE"]
["EC_SEL-NEUTRE","1-EC2","Formule_1-EC2_EC_SEL-NEUTRE","Formule 1 - EC2","EC_SEL_NEUTRE","F_EC_SEL_NEUTRE"]
["EC_SEL-NEUTRE",2,"Formule_2_EC_SEL-NEUTRE","Formule 2","EC_SEL_NEUTRE","F_EC_SEL_NEUTRE"]
["EJ_P-CLAS",4,"Formule_4_EJ_P-CLAS","Formule 4","EJ_P_CLAS","F_EJ_P_CLAS"]
["EJ_PG-CLAS",4,"Formule_4_EJ_PG-CLAS","Formule 4","EJ_PG_CLAS","F_EJ_PG_CLAS"]
["EJ_PG-INI",4,"Formule_4_EJ_PG-INI","Formule 4","EJ_PG_INI","F_EJ_PG_INI"]
["EJ_P-INI",4,"Formule_4_EJ_P-INI","Formule 4","EJ_P_INI","F_EJ_P_INI"]
[null,"1-EC1","Formule_1-EC1_Utilisateur","Formule 1 - EC1","Utilisateur","F_Utilisateur"]
[null,"1-EC2","Formule_1-EC2_Utilisateur","Formule 1 - EC2","Utilisateur","F_Utilisateur"]
[null,2,"Formule_2_Utilisateur","Formule 2","Utilisateur","F_Utilisateur"]
[null,4,"Formule_4_Utilisateur","Formule 4","Utilisateur","F_Utilisateur"]
[null,6,"Formule_6_Utilisateur","Formule 6","Utilisateur","F_Utilisateur"]
[null,7,"Formule_7_Utilisateur","Formule 7","Utilisateur","F_Utilisateur"]
[null,5,"Formule_5_Utilisateur","Formule 5","Utilisateur","F_Utilisateur"]
[]
[]
["Zone de tarification","Taux"]
[151,0]
[152,0]
[153,0]
[154,0]
[155,0]
[156,0]
[157,0]
[158,0]
[180,0]
[181,140]
[182,20]
[183,100]
[184,300]
[185,160]
[186,140]
[187,220]
[190,320]
[191,280]
[192,240]
[193,160]
[194,60]
[195,0]
[200,320]
[240,20]
[241,140]
[242,240]
[243,220]
[244,300]
[245,320]
[246,320]
[247,320]
[248,300]
[249,320]
[251,320]
[252,320]
[253,320]
[254,320]
[255,200]
[256,300]
[257,320]
[258,320]
[259,320]
[260,320]
[261,280]
[262,320]
[263,320]
[264,320]
[265,320]
[267,320]
[268,320]
[269,320]
[270,320]
[271,320]
[272,320]
[273,320]
[274,320]
[275,320]
[276,320]
[277,320]
[278,320]
[279,320]
[280,320]
[281,320]
[282,320]
[283,320]
[284,320]
[285,320]
[286,320]
[287,320]
[288,320]
[289,320]
[290,320]
[291,320]
[292,320]
[299,200]
[349,60]
[351,20]
[352,60]
[353,60]
[354,180]
[355,260]
[356,320]
[357,320]
[448,120]
[449,220]
[451,0]
[452,0]
[453,0]
[454,0]
[455,20]
[456,0]
[457,0]
[458,100]
[459,120]
[460,280]
[461,320]
[549,0]
[648,120]
[649,0]
[651,120]
[652,280]
[653,200]
[654,260]
[656,220]
[657,220]
[658,320]
[659,320]
[660,240]
[661,100]
[662,0]
[750,0]
[751,100]
[752,260]
[753,320]
[754,220]
[755,140]
[756,320]
[757,320]
[758,320]
[850,0]
[851,0]
[852,0]
[853,60]
[854,0]
[855,0]
[856,60]
[857,100]
[858,120]
[859,220]
[860,320]
[861,300]
[862,320]
[863,320]
[864,320]
[865,320]
[866,320]
[867,320]
[868,320]
[869,320]
[870,320]
[871,320]
[872,320]
[873,320]
[874,320]
[875,320]
[876,320]
[877,320]
[878,320]
[879,320]
[880,320]
[881,320]
[882,320]
[883,320]
[884,320]
[885,320]
[886,320]
[887,320]
[888,320]
[889,320]
[890,320]
[891,320]
[892,320]
[931,320]
[932,320]
[933,320]
[934,320]
[935,320]
[951,320]
[952,320]
[953,320]
[954,320]
[955,320]
[956,320]
[957,320]
[960,320]
[961,320]
[962,320]
[963,320]
[964,320]
[965,320]
[966,320]
[967,320]
[970,320]
[980,320]
[984,320]
[985,320]
[986,320]
[987,320]
[990,320]
[998,320]
[]
["Volume net/ha de référence",null,14.64559]
["Bénéfice net/m3 de référence",null,-57.936959180203701]
["Volume maximal admissible",null,70]
["Volume tige maximum admissible",null,8.3000000000000004E-2]
[]
["Zone de tarification","Aide finale","Aide $/m3","Éligibilité"]
[151,null,0,"Non admissible"]
[152,null,0,"Non admissible"]
[153,null,0,"Non admissible"]
[154,null,0,"Non admissible"]
[155,null,0,"Non admissible"]
[156,null,0,"Non admissible"]
[157,null,0,"Non admissible"]
[158,null,0,"Non admissible"]
[180,null,0,"Non admissible"]
[181,null,0,"Non admissible"]
[182,null,0,"Non admissible"]
[183,null,0,"Non admissible"]
[184,null,0,"Non admissible"]
[185,null,0,"Non admissible"]
[186,null,0,"Non admissible"]
[187,null,0,"Non admissible"]
[190,null,0,"Non admissible"]
[191,null,0,"Non admissible"]
[192,null,0,"Non admissible"]
[193,null,0,"Non admissible"]
[194,null,0,"Non admissible"]
[195,null,0,"Non admissible"]
[200,null,0,"Taux minimum"]
[240,null,0,"Taux minimum"]
[241,null,0,"Non admissible"]
[242,null,0,"Non admissible"]
[243,null,0,"Taux minimum"]
[244,null,0,"Taux minimum"]
[245,null,0,"Taux minimum"]
[246,null,0,"Taux minimum"]
[247,225,15.362986400684438,"Taux minimum + Aide"]
[248,null,0,"Taux minimum"]
[249,null,0,"Taux minimum"]
[251,200,13.6559879117195,"Taux minimum + Aide"]
[252,200,13.6559879117195,"Taux minimum + Aide"]
[253,175,11.948989422754563,"Taux minimum + Aide"]
[254,150,10.241990933789625,"Taux minimum + Aide"]
[255,null,0,"Taux minimum"]
[256,null,0,"Taux minimum"]
[257,null,0,"Taux minimum"]
[258,null,0,"Taux minimum"]
[259,225,15.362986400684438,"Taux minimum + Aide"]
[260,175,11.948989422754563,"Taux minimum + Aide"]
[261,null,0,"Taux minimum"]
[262,null,0,"Taux minimum"]
[263,125,8.5349924448246881,"Taux minimum + Aide"]
[264,200,13.6559879117195,"Taux minimum + Aide"]
[265,175,11.948989422754563,"Taux minimum + Aide"]
[267,null,0,"Taux minimum"]
[268,null,0,"Taux minimum"]
[269,null,0,"Taux minimum"]
[270,150,10.241990933789625,"Taux minimum + Aide"]
[271,200,13.6559879117195,"Taux minimum + Aide"]
[272,225,15.362986400684438,"Taux minimum + Aide"]
[273,null,0,"Taux minimum"]
[274,null,0,"Taux minimum"]
[275,null,0,"Taux minimum"]
[276,null,0,"Non admissible"]
[277,null,0,"Non admissible"]
[278,null,0,"Non admissible"]
[279,75,5.1209954668948123,"Taux minimum + Aide"]
[280,125,8.5349924448246881,"Taux minimum + Aide"]
[281,175,11.948989422754563,"Taux minimum + Aide"]
[282,null,0,"Non admissible"]
[283,100,6.8279939558597498,"Taux minimum + Aide"]
[284,150,10.241990933789625,"Taux minimum + Aide"]
[285,50,3.4139969779298749,"Taux minimum + Aide"]
[286,null,0,"Non admissible"]
[287,200,13.6559879117195,"Taux minimum + Aide"]
[288,150,10.241990933789625,"Taux minimum + Aide"]
[289,null,0,"Taux minimum"]
[290,null,0,"Taux minimum"]
[291,null,0,"Non admissible"]
[292,null,0,"Taux minimum"]
[299,null,0,"Taux minimum"]
[349,null,0,"Non admissible"]
[351,null,0,"Non admissible"]
[352,null,0,"Non admissible"]
[353,null,0,"Non admissible"]
[354,null,0,"Non admissible"]
[355,null,0,"Non admissible"]
[356,null,0,"Non admissible"]
[357,null,0,"Non admissible"]
[448,null,0,"Non admissible"]
[449,null,0,"Non admissible"]
[451,null,0,"Non admissible"]
[452,null,0,"Non admissible"]
[453,null,0,"Non admissible"]
[454,null,0,"Non admissible"]
[455,null,0,"Non admissible"]
[456,null,0,"Non admissible"]
[457,null,0,"Non admissible"]
[458,null,0,"Non admissible"]
[459,null,0,"Non admissible"]
[460,null,0,"Non admissible"]
[461,null,0,"Taux minimum"]
[549,null,0,"Non admissible"]
[648,null,0,"Non admissible"]
[649,null,0,"Non admissible"]
[651,null,0,"Non admissible"]
[652,null,0,"Non admissible"]
[653,null,0,"Non admissible"]
[654,null,0,"Non admissible"]
[656,null,0,"Non admissible"]
[657,null,0,"Non admissible"]
[658,null,0,"Non admissible"]
[659,null,0,"Non admissible"]
[660,null,0,"Non admissible"]
[661,null,0,"Non admissible"]
[662,null,0,"Non admissible"]
[750,null,0,"Non admissible"]
[751,null,0,"Non admissible"]
[752,null,0,"Non admissible"]
[753,null,0,"Non admissible"]
[754,null,0,"Non admissible"]
[755,null,0,"Non admissible"]
[756,null,0,"Non admissible"]
[757,75,5.1209954668948123,"Taux minimum + Aide"]
[758,200,13.6559879117195,"Taux minimum + Aide"]
[850,null,0,"Non admissible"]
[851,null,0,"Non admissible"]
[852,null,0,"Non admissible"]
[853,100,6.8279939558597498,"Taux minimum + Aide"]
[854,null,0,"Non admissible"]
[855,null,0,"Non admissible"]
[856,50,3.4139969779298749,"Taux minimum + Aide"]
[857,200,13.6559879117195,"Taux minimum + Aide"]
[858,null,0,"Taux minimum"]
[859,null,0,"Non admissible"]
["860",null,0,"Non admissible"]
[861,50,3.4139969779298749,"Taux minimum + Aide"]
[862,150,10.241990933789625,"Taux minimum + Aide"]
[863,150,10.241990933789625,"Taux minimum + Aide"]
[864,null,0,"Taux minimum"]
[865,null,0,"Taux minimum"]
[866,null,0,"Taux minimum"]
[867,null,0,"Taux minimum"]
[868,150,10.241990933789625,"Taux minimum + Aide"]
[869,null,0,"Taux minimum"]
[870,null,0,"Taux minimum"]
[871,null,0,"Taux minimum"]
[872,null,0,"Taux minimum"]
[873,null,0,"Taux minimum"]
[874,null,0,"Taux minimum"]
[875,100,6.8279939558597498,"Taux minimum + Aide"]
[876,200,13.6559879117195,"Taux minimum + Aide"]
[877,125,8.5349924448246881,"Taux minimum + Aide"]
[878,125,8.5349924448246881,"Taux minimum + Aide"]
[879,150,10.241990933789625,"Taux minimum + Aide"]
[880,75,5.1209954668948123,"Taux minimum + Aide"]
[881,null,0,"Taux minimum"]
[882,null,0,"Taux minimum"]
[883,null,0,"Taux minimum"]
[884,175,11.948989422754563,"Taux minimum + Aide"]
[885,25,1.7069984889649374,"Taux minimum + Aide"]
[886,null,0,"Taux minimum"]
[887,null,0,"Taux minimum"]
[888,null,0,"Taux minimum"]
[889,null,0,"Taux minimum"]
[890,null,0,"Taux minimum"]
[891,100,6.8279939558597498,"Taux minimum + Aide"]
[892,100,6.8279939558597498,"Taux minimum + Aide"]
[931,25,1.7069984889649374,"Taux minimum + Aide"]
[932,null,0,"Non admissible"]
[933,25,1.7069984889649374,"Taux minimum + Aide"]
[934,null,0,"Non admissible"]
[935,null,0,"Non admissible"]
[951,null,0,"Non admissible"]
[952,125,8.5349924448246881,"Taux minimum + Aide"]
[953,125,8.5349924448246881,"Taux minimum + Aide"]
[954,100,6.8279939558597498,"Taux minimum + Aide"]
[955,25,1.7069984889649374,"Taux minimum + Aide"]
[956,25,1.7069984889649374,"Taux minimum + Aide"]
[957,125,8.5349924448246881,"Taux minimum + Aide"]
[960,null,0,"Non admissible"]
[961,25,1.7069984889649374,"Taux minimum + Aide"]
[962,25,1.7069984889649374,"Taux minimum + Aide"]
[963,25,1.7069984889649374,"Taux minimum + Aide"]
[964,25,1.7069984889649374,"Taux minimum + Aide"]
[965,25,1.7069984889649374,"Taux minimum + Aide"]
[966,25,1.7069984889649374,"Taux minimum + Aide"]
[967,50,3.4139969779298749,"Taux minimum + Aide"]
[970,100,6.8279939558597498,"Taux minimum + Aide"]
[980,null,0,"Non admissible"]
[984,null,0,"Non admissible"]
[985,25,1.7069984889649374,"Taux minimum + Aide"]
[986,25,1.7069984889649374,"Taux minimum + Aide"]
[987,25,1.7069984889649374,"Taux minimum + Aide"]
[990,25,1.7069984889649374,"Taux minimum + Aide"]
[995,null,0,"Non admissible"]
[998,null,0,"Non admissible"]
[]
["Formule aide résineuse",{"$f":"B874&\" * \"&B880&\" * ((\"&B875&\" * \"&B881&\" - \"&B876&\") * \"&B881&\" + \"&B877&\") * ( \"&B878&\" * LN (\"&B882&\") - \"&B879","v":"0,0173 * Plafond Zone * ((0,00004 * Prélèvement - 0,0097) * Prélèvement + 1,4237) * ( -39,41 * LN (Volume tige) - 97,792"}]
["C1",1.7299999999999999E-2]
["C2",4.0000000000000003E-5]
["C3",9.7000000000000003E-3]
["C4",1.4237]
["C5",-39.409999999999997]
["C6",97.792000000000002]
["Variable 1","Plafond Zone"]
["Variable 2","Prélèvement"]
["Variable 3","Volume tige"]
["Variable 4 (BN)",0.42370000000000002]
["Variable 5 (BN)",1]
[]
["TMM"]
["Centre-Nord"]
["Centre-Sud"]
["Nord-Est"]
["Nord-Ouest"]
["Sud-Est"]
["Sud-Ouest"]
[]
["Région administrative"]
["01"]
["02"]
["03"]
["04"]
["05"]
["07"]
["08"]
["09"]
["10"]
[11]
[14]
[15]
[]
[]
["Contexte"]
["Planification"]
["BGAD"]
["Ministère"]
["Inscrire une valeur"]
[]
["Question_2 (Plancher d'investissement)"]
["Oui"]
["Non"]
["Sans objet"]
[]
[]
["Onglet «Martelage»"]
[]
["Traitement unique","Taux","Unité"]
["Martelage","Variable","$/ha"]
["Martelage négatif - EC (résineux ou mixte résineux)",{"$f":"'Calculs grille'!$K$9","v":203},"$/ha"]
["Martelage positif - EC (résineux ou mixte résineux)",{"$f":"'Calculs grille'!$K$10","v":106},"$/ha"]
["Inscrire une valeur",0,"-"]
[]
["Type de coupe","Facteur"]
["CRS",0.64200000000000002]
["CPI",1]
["CPR",1]
["CJ",1]
["EC feuillus et pins",1]
[]
["H3"]
["AVEC hébergement (inscrire un taux)",0]
["AVEC hébergement (taux maximum)",9.0999999999999998E-2]
["SANS hébergement",0]
[]
["D200"]
["Distance de 0 à 199 kilomètres",0]
["Distance de 200 kilomètres et plus",5.8000000000000003E-2]
[]
["Délimitation des secteurs"]
[0]
[{"$f":"'Calculs grille'!$K$3","v":84}]
[]
["Taux vérification"]
[0]
[{"$f":"'Calculs grille'!$K$11","v":26}]
[]
["Codes_DICA"]
["MART"]
[]
["Codes_RATF"]
["INVAPM"]
["MARTGE"]
["MECON"]
["MECOP"]
[]
["Rexforêt"]
["Vérification INCLUS"]
["Vérification EXCLUS"]
["Inscrire une valeur"]

{"sheet":"Majorations applicables","index":12,"n_rows":53,"n_cols":7,"rows_kept":53,"cut":false,"hidden":true,"merged":[]}
["Formule","M1","M2","M3","M4","M5","Total"]
["Formule 1 - EC1","PE2","MAN","RUB1","H1",null,{"$f":"B2&\" - \"&C2&\" - \"&D2&\" - \"&E2","v":"PE2 - MAN - RUB1 - H1"}]
["Formule 1 - EC2","PE2","RUB1","H1",null,null,{"$f":"B3&\" - \"&C3&\" - \"&D3","v":"PE2 - RUB1 - H1"}]
["Formule 2","PE2","RUB1","H1",null,null,{"$f":"B4&\" - \"&C4&\" - \"&D4","v":"PE2 - RUB1 - H1"}]
["Formule 4","EMR1","BNT1","PE2","RUB1","H1",{"$f":"B5&\" - \"&C5&\" - \"&D5&\" - \"&E5&\" - \"&F5","v":"EMR1 - BNT1 - PE2 - RUB1 - H1"}]
["Formule 6","EMR1","BNT1","PE2","H1",null,{"$f":"B6&\" - \"&C6&\" - \"&D6&\" - \"&E6","v":"EMR1 - BNT1 - PE2 - H1"}]
["Formule 7","EMR1","BNT1","PE2","RUB1","H1",{"$f":"B7&\" - \"&C7&\" - \"&D7&\" - \"&E7&\" - \"&F7","v":"EMR1 - BNT1 - PE2 - RUB1 - H1"}]
["Inscrire une valeur",null,null,null,null,null,"Inscrire une valeur à la cellule I13"]
[]
["PE2"]
["Pente A",{"$f":"(0+1)","v":1}]
["Pente B",{"$f":"(0+1)","v":1}]
["Pente C",{"$f":"(1+0.007)","v":1.0069999999999999}]
["Pente D",{"$f":"(1+0.026)","v":1.026}]
["Pente E et plus",{"$f":"(1+0.061)","v":1.0609999999999999}]
[]
["BNT1 2019-2020"]
["Formule","BNT1 = (1,8 x Pr2) - (2,7 x Pr) + 1"]
["C1",1.8]
["C2",2]
["C3",2.7]
["C4",1]
[]
["Pr 2019-2020"]
[" Pr (%)  = LP x 2 / (LP x 2 + SE + ZNT)"]
[]
["RUB1"]
["Formule",{"$f":"$B$29&\" * ESP EXP \"&$B$30","v":"1209 * ESP EXP -1"}]
["C1",1209,"[Grilles TSNC  2019-2020.xlsx]Feuille de calcul'!$AE$100"]
["C2",-1]
[]
["PCT Investissement"]
[0.9]
[]
["Volet I (Transport)"]
["Formule","(2,03 * Distance) - 472"]
["C1",2.0299999999999998]
["C2",472]
[]
["Volet II"]
["Bois transporté en longueur",49]
["Mesurage  optimisé",79]
[]
["Plancher d'investissement"]
["Travaux techniques",40]
[]
["Traitement","Équation_texte","Équation_référencée"]
["Martelage","Taux ($/ha) = (159,90 - (39,56 * PF) + (4,54 * NbMSCROP)) * TC",{"$f":"\"Taux ($/ha) = (\"&TEXT('Calculs grille'!$K$6,\"0,00\")&\" - (\"&TEXT('Calculs grille'!$K$7,\"0,00\")&\" * PF) + (\"&TEXT('Calculs grille'!$K$8,\"0,00\")&\" * NbMSCROP)) * TC\"","v":"Taux ($/ha) = (159,90 - (39,56 * PF) + (4,54 * NbMSCROP)) * TC"}]
[]
["Majorations applicables"]
["Martelage","Martelage","H3","D200"]
["Martelage","Martelage positif - EC (résineux ou mixte résineux)","H3","D200"]
["Martelage","Martelage négatif - EC (résineux ou mixte résineux)","H3","D200"]

{"sheet":"RXF","index":13,"n_rows":4,"n_cols":7,"rows_kept":4,"cut":false,"hidden":true,"merged":[]}
["Traitement","Onglet","Taux total","Taux sans vérification","Grand total","Vérification","Grand total sans vérification"]
[{"$f":"Menus!A924","v":"Martelage"},"Martelage",{"$f":"Martelage!$G$47","v":0},{"$f":"Martelage!$G$44","v":0},{"$f":"Martelage!$G$51","v":0},{"$f":"Martelage!$G$50","v":0},{"$f":"E2-F2","v":0}]
[{"$f":"Menus!A925","v":"Martelage négatif - EC (résineux ou mixte résineux)"},"Martelage",{"$f":"Martelage!$G$59","v":0},{"$f":"Martelage!$G$56","v":0},{"$f":"Martelage!$G$63","v":0},{"$f":"Martelage!$G$62","v":0},{"$f":"E3-F3","v":0}]
[{"$f":"Menus!A926","v":"Martelage positif - EC (résineux ou mixte résineux)"},"Martelage",{"$f":"Martelage!$G$59","v":0},{"$f":"Martelage!$G$56","v":0},{"$f":"Martelage!$G$63","v":0},{"$f":"Martelage!$G$62","v":0},0]

{"sheet":"Log","index":14,"n_rows":2,"n_cols":4,"rows_kept":2,"cut":false,"hidden":true,"merged":[]}
["Utilisateur","Date","OS","Excel"]
["Pouliot, Simon (BMMB)","2019-10-10T13:27:26","Windows (32-bit) NT 6.01","15.0"]